date,department/service,beneficiary,amount,summary of purpose,category,transaction number,
01.09.2017,ADULT SOCIAL CARE,LEARN SIGN LANGUAGE LTD,660.00,MH PREMISES COSTS,INTERPRETING SERVICES,5902264985,
01.09.2017,CHILDREN AND ADULT,STANDAGE & CO LTD,"-33,025.43",CAPITAL PS (EDUCATION),CONSTRUCTION MAIN CONTRACT,5902266641,
01.09.2017,CHILDREN AND ADULT,STANDAGE & CO LTD,"33,025.43",CAPITAL PS (EDUCATION),CONSTRUCTION MAIN CONTRACT,5902266180,
01.09.2017,COMMUNITIES,LETTING INTERNATIONAL LTD,"-1,519.00",NO RECOURSE TO PUBLIC FUNDS,ACCOMMODATION CHARGES,5902266644,
01.09.2017,COMMUNITIES,LETTING INTERNATIONAL LTD,"1,519.00",NO RECOURSE TO PUBLIC FUNDS,ACCOMMODATION CHARGES,5902266543,
01.09.2017,ENVIRONMENT DIRECTORATE,R J MOTORS LIMITED,354.26,COMMERCIAL VEH CTRL A/C,VEHICLE REPAIRS & MAINTENANCE,5902265714,
01.09.2017,ENVIRONMENT DIRECTORATE,CROWN OIL UK,870.75,SANDGATE STREET,VEHICLE FUEL,5902265898,
01.09.2017,LEISURE DIRECTORATE,ASSETTRAC LTD,"1,610.00",CEMETERIES,GROUNDS MAINTENANCE,5902266124,
01.09.2017,MODERNISATION HGF,GEORGINA EVANS,515.00,FOSTER CARERS TRAINING,TRAINING,5902265433,
01.09.2017,MODERNISATION HGF,JOHN STATTERS ASSOCIATES,"5,225.00",OCCUPATIONAL ASSESSMENT,CONSULTANTS SERVICES,5902266131,
02.09.2017,CENTRAL FUNCTIONS,NPOWER LTD,"6,059.91",HEATING ACCOUNT,ELECTRICITY,5902265830,
02.09.2017,CHIEF EXECUTIVE,PROJECT CENTRE LTD,"2,339.35",CAPITAL PS (REGEN),CONSTR'N SUB CONTRACT - NON CERTIFICATED,5902265760,
02.09.2017,CHILDREN'S SERVICES,NPOWER LTD,982.42,AYLESBURY EARLY YEARS CENTRE,ELECTRICITY,5902266171,
02.09.2017,CHILDREN'S SERVICES,SUPPORTED FOSTERING SERVICES,320.00,CONTACT,OTHER PAYMENTS FOR CLIENTS,5902265279,
02.09.2017,CHILDREN'S SERVICES,TFL TELESALES / OYSTER FULFILMENT,579.30,POST 16 SEN TEAM,REMOVAL EXPENSES,5902266127,
02.09.2017,COMMUNITIES,PARENT AND FAMILY CONSULTING LTD,"5,500.00",PREVENT,PROFESSIONAL FEES,5902266159,
02.09.2017,ENVIRONMENT AND LEISURE,APR SERVICES LTD,"2,950.00",CAPITAL PS (LEISURE),CONSTRUCTION FEES  - EXTERNAL,5902265664,
02.09.2017,ENVIRONMENT AND LEISURE,INTO SERVICES LONDON LTD,"1,628.00",CAPITAL PS (LEISURE),CONST'N MAIN CONTRACT - NON CERTIFICATED,5902265692,
02.09.2017,ENVIRONMENT DIRECTORATE,SOUTHWARK NEWSPAPER LTD,288.00,STREET WORKS OVERHEADS,MARKETING & PUBLICITY SERVICES,5902266249,
02.09.2017,ENVIRONMENT DIRECTORATE,SOUTHWARK NEWSPAPER LTD,288.00,STREET WORKS OVERHEADS,MARKETING & PUBLICITY SERVICES,5902266256,
02.09.2017,ENVIRONMENT DIRECTORATE,SOUTHWARK NEWSPAPER LTD,300.00,STREET WORKS OVERHEADS,MARKETING & PUBLICITY SERVICES,5902266244,
02.09.2017,ENVIRONMENT DIRECTORATE,SOUTHWARK NEWSPAPER LTD,300.00,STREET WORKS OVERHEADS,MARKETING & PUBLICITY SERVICES,5902266255,
02.09.2017,ENVIRONMENT DIRECTORATE,SOUTHWARK NEWSPAPER LTD,300.00,STREET WORKS OVERHEADS,MARKETING & PUBLICITY SERVICES,5902266260,
02.09.2017,ENVIRONMENT DIRECTORATE,SOUTHWARK NEWSPAPER LTD,312.00,STREET WORKS OVERHEADS,MARKETING & PUBLICITY SERVICES,5902266259,
02.09.2017,ENVIRONMENT DIRECTORATE,SOUTHWARK NEWSPAPER LTD,384.00,STREET WORKS OVERHEADS,MARKETING & PUBLICITY SERVICES,5902266252,
02.09.2017,ENVIRONMENT DIRECTORATE,SOUTHWARK NEWSPAPER LTD,384.00,STREET WORKS OVERHEADS,MARKETING & PUBLICITY SERVICES,5902266258,
02.09.2017,F & C S EXCLUDING CORPORATE BUDGETS,INFORM CPI LTD,540.00,ADMINISTRATIVE SUPPORT,PROFESSIONAL FEES,5902265705,
02.09.2017,LEISURE DIRECTORATE,PRODUCT EXPECTATION LIMITED,"3,230.00",STOCK SERVICES,EQUIPMENT PURCHASE & REPAIR,5902266172,
02.09.2017,PLANNING AND TRANSPORT,SOUTHWARK NEWSPAPER LTD,840.00,DEVELOPMENT CONTROL ADMINSTRATION,MARKETING & PUBLICITY SERVICES,5902266322,
02.09.2017,RESIDENT SERVICES,LORRAINE'S CURTAINS,900.00,SPECIAL NEEDS HOSTELS,EQUIPMENT PURCHASE & REPAIR,5902265997,
03.09.2017,ENVIRONMENT AND LEISURE,BRESSINGHAM INVESTMENTS LTD,"1,390.00",CAPITAL PS (LEISURE),CONST'N MAIN CONTRACT - NON CERTIFICATED,5902266295,
03.09.2017,ENVIRONMENT AND LEISURE,BRESSINGHAM INVESTMENTS LTD,"1,390.00",CAPITAL PS (LEISURE),CONST'N MAIN CONTRACT - NON CERTIFICATED,5902266302,
03.09.2017,F & C S EXCLUDING CORPORATE BUDGETS,DSI BILLING SERVICES LTD,"2,225.93",ADMINISTRATIVE SUPPORT,POSTAGES,5902266182,
03.09.2017,LEISURE DIRECTORATE,DULWICH VILLAGE FOOTBALL CLUB,575.00,COMMUNITY SPORTS SMALL GRANTS,PROFESSIONAL FEES,5902266176,
04.09.2017,ADULT SOCIAL CARE,CHOICE SUPPORT,480.00,APPOINTEESHIPS,OTHER PAYMENTS FOR CLIENTS,2102714518,
04.09.2017,ADULT SOCIAL CARE,CYGNET HOSPITAL BURY,340.00,APPOINTEESHIPS,OTHER PAYMENTS FOR CLIENTS,2102714493,
04.09.2017,ADULT SOCIAL CARE,ELIZABETH PETERS CARE HOMES LTD,280.00,APPOINTEESHIPS,OTHER PAYMENTS FOR CLIENTS,2102714517,
04.09.2017,ADULT SOCIAL CARE,EQUINOX CARE,"1,090.20",APPOINTEESHIPS,OTHER PAYMENTS FOR CLIENTS,2102714513,
04.09.2017,ADULT SOCIAL CARE,FOUNTAIN CARE LTD,329.40,APPOINTEESHIPS,OTHER PAYMENTS FOR CLIENTS,2102714536,
04.09.2017,ADULT SOCIAL CARE,HEXAGON HOUSING ASSOCIATION LTD,537.08,APPOINTEESHIPS,OTHER PAYMENTS FOR CLIENTS,2102714496,
04.09.2017,ADULT SOCIAL CARE,LOOK AHEAD CARE AND SUPPORT LTD,"1,240.97",APPOINTEESHIPS,OTHER PAYMENTS FOR CLIENTS,2102714509,
04.09.2017,ADULT SOCIAL CARE,METRO HOMECARE LTD,340.00,APPOINTEESHIPS,OTHER PAYMENTS FOR CLIENTS,2102714522,
04.09.2017,ADULT SOCIAL CARE,PEABODY TRUST,364.80,APPOINTEESHIPS,OTHER PAYMENTS FOR CLIENTS,2102714502,
04.09.2017,ADULT SOCIAL CARE,PEABODY TRUST,384.08,APPOINTEESHIPS,OTHER PAYMENTS FOR CLIENTS,2102714503,
04.09.2017,ADULT SOCIAL CARE,REDACTED PERSONAL DATA,320.00,APPOINTEESHIPS,OTHER PAYMENTS FOR CLIENTS,2102714494,
04.09.2017,ADULT SOCIAL CARE,REDACTED PERSONAL DATA,260.00,APPOINTEESHIPS,OTHER PAYMENTS FOR CLIENTS,2102714504,
04.09.2017,ADULT SOCIAL CARE,REDACTED PERSONAL DATA,558.32,APPOINTEESHIPS,OTHER PAYMENTS FOR CLIENTS,2102714505,
04.09.2017,ADULT SOCIAL CARE,REDACTED PERSONAL DATA,460.00,APPOINTEESHIPS,OTHER PAYMENTS FOR CLIENTS,2102714491,
04.09.2017,ADULT SOCIAL CARE,RIGHT SUPPORT MANAGEMENT LTD,500.00,APPOINTEESHIPS,OTHER PAYMENTS FOR CLIENTS,2102714506,
04.09.2017,ADULT SOCIAL CARE,ASHMEAD HEALTHCARE LTD,"1,911.00",CONTINUING CARE PERSONAL BUDGETS DR,RECOVERABLE COSTS INCL. HEALTH,2102716539,
04.09.2017,ADULT SOCIAL CARE,ROSENMANOR LTD,"1,900.00",CONTINUING CARE PERSONAL BUDGETS DR,RECOVERABLE COSTS INCL. HEALTH,2102715598,
04.09.2017,ADULT SOCIAL CARE,ROSENMANOR LTD,"2,624.00",CONTINUING CARE PERSONAL BUDGETS DR,RECOVERABLE COSTS INCL. HEALTH,2102716318,
04.09.2017,ADULT SOCIAL CARE,VOYAGE CARE (MOUNTEARL),"4,968.16",CONTINUING CARE PERSONAL BUDGETS DR,RECOVERABLE COSTS INCL. HEALTH,2102715342,
04.09.2017,ADULT SOCIAL CARE,31 WOODBOURNE (FRANCES TAYLOR FOUNDATION),-402.60,LD LTS 18-64,"MAND STATUTORY CHARGES, RESIDENTIAL",2102715934,
04.09.2017,ADULT SOCIAL CARE,31 WOODBOURNE (FRANCES TAYLOR FOUNDATION),"2,444.76",LD LTS 18-64,RESIDENTIAL CARE,2102715933,
04.09.2017,ADULT SOCIAL CARE,ACTION ON HEARING LOSS,-323.00,LD LTS 18-64,"MAND STATUTORY CHARGES, RESIDENTIAL",2102715838,
04.09.2017,ADULT SOCIAL CARE,ACTION ON HEARING LOSS,"8,350.80",LD LTS 18-64,RESIDENTIAL CARE,2102715837,
04.09.2017,ADULT SOCIAL CARE,AITCH CARE HOMES (LONDON) LTD,-537.80,LD LTS 18-64,"MAND STATUTORY CHARGES, RESIDENTIAL",2102716301,
04.09.2017,ADULT SOCIAL CARE,AITCH CARE HOMES (LONDON) LTD,"5,191.40",LD LTS 18-64,RESIDENTIAL CARE,2102716300,
04.09.2017,ADULT SOCIAL CARE,ASD UNIQUE SERVICES LTD,-323.00,LD LTS 18-64,"MAND STATUTORY CHARGES, RESIDENTIAL",2102715755,
04.09.2017,ADULT SOCIAL CARE,ASD UNIQUE SERVICES LTD,"4,941.12",LD LTS 18-64,RESIDENTIAL CARE,2102715754,
04.09.2017,ADULT SOCIAL CARE,ASHBROOK HOUSE,-323.00,LD LTS 18-64,"MAND STATUTORY CHARGES, RESIDENTIAL",2102716498,
04.09.2017,ADULT SOCIAL CARE,ASHBROOK HOUSE,"4,325.16",LD LTS 18-64,RESIDENTIAL CARE,2102716497,
04.09.2017,ADULT SOCIAL CARE,ASHDENE HOUSE LIMITED,-401.56,LD LTS 18-64,"MAND STATUTORY CHARGES, RESIDENTIAL",2102716249,
04.09.2017,ADULT SOCIAL CARE,ASHDENE HOUSE LIMITED,"3,272.76",LD LTS 18-64,RESIDENTIAL CARE,2102716248,
04.09.2017,ADULT SOCIAL CARE,ASHINGHAM HOUSE LIMITED,-323.00,LD LTS 18-64,"MAND STATUTORY CHARGES, RESIDENTIAL",2102716060,
04.09.2017,ADULT SOCIAL CARE,ASHINGHAM HOUSE LIMITED,"8,533.48",LD LTS 18-64,RESIDENTIAL CARE,2102716059,
04.09.2017,ADULT SOCIAL CARE,AURORA OPTIONS,"3,120.00",LD LTS 18-64,SUPPORTED LIVING,2102715711,
04.09.2017,ADULT SOCIAL CARE,BRANDON TRUST,"-3,896.40",LD LTS 18-64,"MAND STATUTORY CHARGES, RESIDENTIAL",2102716141,
04.09.2017,ADULT SOCIAL CARE,BRANDON TRUST,-690.64,LD LTS 18-64,"MAND STATUTORY CHARGES, RESIDENTIAL",2102715719,
04.09.2017,ADULT SOCIAL CARE,BRANDON TRUST,-404.04,LD LTS 18-64,"MAND STATUTORY CHARGES, RESIDENTIAL",2102715483,
04.09.2017,ADULT SOCIAL CARE,BRANDON TRUST,-400.60,LD LTS 18-64,"MAND STATUTORY CHARGES, RESIDENTIAL",2102715569,
04.09.2017,ADULT SOCIAL CARE,BRANDON TRUST,-400.60,LD LTS 18-64,"MAND STATUTORY CHARGES, RESIDENTIAL",2102715626,
04.09.2017,ADULT SOCIAL CARE,BRANDON TRUST,-400.60,LD LTS 18-64,"MAND STATUTORY CHARGES, RESIDENTIAL",2102716109,
04.09.2017,ADULT SOCIAL CARE,BRANDON TRUST,-400.40,LD LTS 18-64,"MAND STATUTORY CHARGES, RESIDENTIAL",2102715487,
04.09.2017,ADULT SOCIAL CARE,BRANDON TRUST,-329.76,LD LTS 18-64,"MAND STATUTORY CHARGES, RESIDENTIAL",2102715530,
04.09.2017,ADULT SOCIAL CARE,BRANDON TRUST,-328.24,LD LTS 18-64,"MAND STATUTORY CHARGES, RESIDENTIAL",2102715807,
04.09.2017,ADULT SOCIAL CARE,BRANDON TRUST,-325.88,LD LTS 18-64,"MAND STATUTORY CHARGES, RESIDENTIAL",2102715820,
04.09.2017,ADULT SOCIAL CARE,BRANDON TRUST,-323.00,LD LTS 18-64,"MAND STATUTORY CHARGES, RESIDENTIAL",2102715396,
04.09.2017,ADULT SOCIAL CARE,BRANDON TRUST,-323.00,LD LTS 18-64,"MAND STATUTORY CHARGES, RESIDENTIAL",2102715547,
04.09.2017,ADULT SOCIAL CARE,BRANDON TRUST,-323.00,LD LTS 18-64,"MAND STATUTORY CHARGES, RESIDENTIAL",2102715661,
04.09.2017,ADULT SOCIAL CARE,BRANDON TRUST,-323.00,LD LTS 18-64,"MAND STATUTORY CHARGES, RESIDENTIAL",2102715663,
04.09.2017,ADULT SOCIAL CARE,BRANDON TRUST,-323.00,LD LTS 18-64,"MAND STATUTORY CHARGES, RESIDENTIAL",2102715828,
04.09.2017,ADULT SOCIAL CARE,BRANDON TRUST,-323.00,LD LTS 18-64,"MAND STATUTORY CHARGES, RESIDENTIAL",2102715905,
04.09.2017,ADULT SOCIAL CARE,BRANDON TRUST,-323.00,LD LTS 18-64,"MAND STATUTORY CHARGES, RESIDENTIAL",2102716030,
04.09.2017,ADULT SOCIAL CARE,BRANDON TRUST,-323.00,LD LTS 18-64,"MAND STATUTORY CHARGES, RESIDENTIAL",2102716097,
04.09.2017,ADULT SOCIAL CARE,BRANDON TRUST,-323.00,LD LTS 18-64,"MAND STATUTORY CHARGES, RESIDENTIAL",2102716185,
04.09.2017,ADULT SOCIAL CARE,BRANDON TRUST,-323.00,LD LTS 18-64,"MAND STATUTORY CHARGES, RESIDENTIAL",2102716206,
04.09.2017,ADULT SOCIAL CARE,BRANDON TRUST,-323.00,LD LTS 18-64,"MAND STATUTORY CHARGES, RESIDENTIAL",2102716346,
04.09.2017,ADULT SOCIAL CARE,BRANDON TRUST,-323.00,LD LTS 18-64,"MAND STATUTORY CHARGES, RESIDENTIAL",2102716411,
04.09.2017,ADULT SOCIAL CARE,BRANDON TRUST,-323.00,LD LTS 18-64,"MAND STATUTORY CHARGES, RESIDENTIAL",2102716507,
04.09.2017,ADULT SOCIAL CARE,BRANDON TRUST,-323.00,LD LTS 18-64,"MAND STATUTORY CHARGES, RESIDENTIAL",2102716546,
04.09.2017,ADULT SOCIAL CARE,BRANDON TRUST,-311.40,LD LTS 18-64,"MAND STATUTORY CHARGES, RESIDENTIAL",2102716135,
04.09.2017,ADULT SOCIAL CARE,BRANDON TRUST,-311.40,LD LTS 18-64,"MAND STATUTORY CHARGES, RESIDENTIAL",2102716387,
04.09.2017,ADULT SOCIAL CARE,BRANDON TRUST,"2,031.20",LD LTS 18-64,RESIDENTIAL CARE,2102715486,
04.09.2017,ADULT SOCIAL CARE,BRANDON TRUST,"2,342.72",LD LTS 18-64,RESIDENTIAL CARE,2102716029,
04.09.2017,ADULT SOCIAL CARE,BRANDON TRUST,"2,896.72",LD LTS 18-64,RESIDENTIAL CARE,2102716205,
04.09.2017,ADULT SOCIAL CARE,BRANDON TRUST,"2,955.52",LD LTS 18-64,RESIDENTIAL CARE,2102715529,
04.09.2017,ADULT SOCIAL CARE,BRANDON TRUST,"3,058.88",LD LTS 18-64,RESIDENTIAL CARE,2102716410,
04.09.2017,ADULT SOCIAL CARE,BRANDON TRUST,"3,066.92",LD LTS 18-64,RESIDENTIAL CARE,2102715568,
04.09.2017,ADULT SOCIAL CARE,BRANDON TRUST,"3,236.72",LD LTS 18-64,RESIDENTIAL CARE,2102715625,
04.09.2017,ADULT SOCIAL CARE,BRANDON TRUST,"3,236.72",LD LTS 18-64,RESIDENTIAL CARE,2102716345,
04.09.2017,ADULT SOCIAL CARE,BRANDON TRUST,"3,240.80",LD LTS 18-64,RESIDENTIAL CARE,2102715718,
04.09.2017,ADULT SOCIAL CARE,BRANDON TRUST,"3,305.56",LD LTS 18-64,RESIDENTIAL CARE,2102716108,
04.09.2017,ADULT SOCIAL CARE,BRANDON TRUST,"3,408.80",LD LTS 18-64,RESIDENTIAL CARE,2102715546,
04.09.2017,ADULT SOCIAL CARE,BRANDON TRUST,"3,414.68",LD LTS 18-64,RESIDENTIAL CARE,2102715904,
04.09.2017,ADULT SOCIAL CARE,BRANDON TRUST,"4,188.52",LD LTS 18-64,RESIDENTIAL CARE,2102716386,
04.09.2017,ADULT SOCIAL CARE,BRANDON TRUST,"4,203.04",LD LTS 18-64,RESIDENTIAL CARE,2102716096,
04.09.2017,ADULT SOCIAL CARE,BRANDON TRUST,"4,353.00",LD LTS 18-64,RESIDENTIAL CARE,2102715806,
04.09.2017,ADULT SOCIAL CARE,BRANDON TRUST,"4,377.40",LD LTS 18-64,RESIDENTIAL CARE,2102716184,
04.09.2017,ADULT SOCIAL CARE,BRANDON TRUST,"4,521.44",LD LTS 18-64,RESIDENTIAL CARE,2102715662,
04.09.2017,ADULT SOCIAL CARE,BRANDON TRUST,"5,068.96",LD LTS 18-64,RESIDENTIAL CARE,2102715482,
04.09.2017,ADULT SOCIAL CARE,BRANDON TRUST,"5,111.08",LD LTS 18-64,RESIDENTIAL CARE,2102716134,
04.09.2017,ADULT SOCIAL CARE,BRANDON TRUST,"5,159.20",LD LTS 18-64,RESIDENTIAL CARE,2102716506,
04.09.2017,ADULT SOCIAL CARE,BRANDON TRUST,"6,476.60",LD LTS 18-64,RESIDENTIAL CARE,2102715827,
04.09.2017,ADULT SOCIAL CARE,BRANDON TRUST,"6,655.96",LD LTS 18-64,RESIDENTIAL CARE,2102715395,
04.09.2017,ADULT SOCIAL CARE,BRANDON TRUST,"7,054.48",LD LTS 18-64,RESIDENTIAL CARE,2102716140,
04.09.2017,ADULT SOCIAL CARE,BRANDON TRUST,"7,226.48",LD LTS 18-64,RESIDENTIAL CARE,2102715819,
04.09.2017,ADULT SOCIAL CARE,BRANDON TRUST,"7,268.60",LD LTS 18-64,RESIDENTIAL CARE,2102715660,
04.09.2017,ADULT SOCIAL CARE,BRANDON TRUST,"7,840.52",LD LTS 18-64,RESIDENTIAL CARE,2102716545,
04.09.2017,ADULT SOCIAL CARE,BRANDON TRUST,"2,778.52",LD LTS 18-64,SUPPORTED LIVING,2102715359,
04.09.2017,ADULT SOCIAL CARE,BROADHAM CARE LIMITED,-323.00,LD LTS 18-64,"MAND STATUTORY CHARGES, RESIDENTIAL",2102716443,
04.09.2017,ADULT SOCIAL CARE,BROADHAM CARE LIMITED,-262.20,LD LTS 18-64,"MAND STATUTORY CHARGES, RESIDENTIAL",2102715427,
04.09.2017,ADULT SOCIAL CARE,BROADHAM CARE LIMITED,"7,200.00",LD LTS 18-64,RESIDENTIAL CARE,2102716442,
04.09.2017,ADULT SOCIAL CARE,BROADHAM CARE LIMITED,"7,600.00",LD LTS 18-64,RESIDENTIAL CARE,2102715426,
04.09.2017,ADULT SOCIAL CARE,BROADHAM CARE LIMITED,"7,814.88",LD LTS 18-64,RESIDENTIAL CARE,2102715412,
04.09.2017,ADULT SOCIAL CARE,BURNHAM HOUSE,"8,012.96",LD LTS 18-64,RESIDENTIAL CARE,2102716252,
04.09.2017,ADULT SOCIAL CARE,CARE MANAGEMENT GROUP,-793.64,LD LTS 18-64,"MAND STATUTORY CHARGES, RESIDENTIAL",2102716225,
04.09.2017,ADULT SOCIAL CARE,CARE MANAGEMENT GROUP,-408.04,LD LTS 18-64,"MAND STATUTORY CHARGES, RESIDENTIAL",2102715868,
04.09.2017,ADULT SOCIAL CARE,CARE MANAGEMENT GROUP,-402.60,LD LTS 18-64,"MAND STATUTORY CHARGES, RESIDENTIAL",2102716052,
04.09.2017,ADULT SOCIAL CARE,CARE MANAGEMENT GROUP,"5,391.76",LD LTS 18-64,RESIDENTIAL CARE,2102715867,
04.09.2017,ADULT SOCIAL CARE,CARE MANAGEMENT GROUP,"5,656.00",LD LTS 18-64,RESIDENTIAL CARE,2102716051,
04.09.2017,ADULT SOCIAL CARE,CARE MANAGEMENT GROUP,"7,745.24",LD LTS 18-64,RESIDENTIAL CARE,2102716224,
04.09.2017,ADULT SOCIAL CARE,CARE MANAGEMENT GROUP,"4,832.00",LD LTS 18-64,SUPPORTED LIVING,2102715540,
04.09.2017,ADULT SOCIAL CARE,CARETECH COMMUNITY SERVICES LTD,"8,960.00",LD LTS 18-64,RESIDENTIAL CARE,2102715892,
04.09.2017,ADULT SOCIAL CARE,CARLTON NURSING HOMES LTD,-262.20,LD LTS 18-64,"MAND STATUTORY CHARGES, RESIDENTIAL",2102716259,
04.09.2017,ADULT SOCIAL CARE,CARLTON NURSING HOMES LTD,"14,723.24",LD LTS 18-64,RESIDENTIAL CARE,2102716258,
04.09.2017,ADULT SOCIAL CARE,CAS CARE SERVICES LTD,"12,404.00",LD LTS 18-64,RESIDENTIAL CARE,2102716250,
04.09.2017,ADULT SOCIAL CARE,CAS CARE SERVICES LTD,"12,672.80",LD LTS 18-64,RESIDENTIAL CARE,2102715624,
04.09.2017,ADULT SOCIAL CARE,CHOICE LTD,-402.60,LD LTS 18-64,"MAND STATUTORY CHARGES, RESIDENTIAL",2102716269,
04.09.2017,ADULT SOCIAL CARE,CHOICE LTD,-402.60,LD LTS 18-64,"MAND STATUTORY CHARGES, RESIDENTIAL",2102716460,
04.09.2017,ADULT SOCIAL CARE,CHOICE LTD,-358.60,LD LTS 18-64,"MAND STATUTORY CHARGES, RESIDENTIAL",2102715986,
04.09.2017,ADULT SOCIAL CARE,CHOICE LTD,-323.00,LD LTS 18-64,"MAND STATUTORY CHARGES, RESIDENTIAL",2102715710,
04.09.2017,ADULT SOCIAL CARE,CHOICE LTD,-323.00,LD LTS 18-64,"MAND STATUTORY CHARGES, RESIDENTIAL",2102716121,
04.09.2017,ADULT SOCIAL CARE,CHOICE LTD,"7,017.00",LD LTS 18-64,RESIDENTIAL CARE,2102715709,
04.09.2017,ADULT SOCIAL CARE,CHOICE LTD,"7,760.84",LD LTS 18-64,RESIDENTIAL CARE,2102716268,
04.09.2017,ADULT SOCIAL CARE,CHOICE LTD,"7,962.60",LD LTS 18-64,RESIDENTIAL CARE,2102716120,
04.09.2017,ADULT SOCIAL CARE,CHOICE LTD,"8,059.80",LD LTS 18-64,RESIDENTIAL CARE,2102716459,
04.09.2017,ADULT SOCIAL CARE,CHOICE LTD,"8,403.92",LD LTS 18-64,RESIDENTIAL CARE,2102715985,
04.09.2017,ADULT SOCIAL CARE,CHOICE SUPPORT,-346.60,LD LTS 18-64,"MAND STATUTORY CHARGES, RESIDENTIAL",2102715355,
04.09.2017,ADULT SOCIAL CARE,CHOICE SUPPORT,-330.40,LD LTS 18-64,"MAND STATUTORY CHARGES, RESIDENTIAL",2102715772,
04.09.2017,ADULT SOCIAL CARE,CHOICE SUPPORT,-323.00,LD LTS 18-64,"MAND STATUTORY CHARGES, RESIDENTIAL",2102716280,
04.09.2017,ADULT SOCIAL CARE,CHOICE SUPPORT,-323.00,LD LTS 18-64,"MAND STATUTORY CHARGES, RESIDENTIAL",2102716424,
04.09.2017,ADULT SOCIAL CARE,CHOICE SUPPORT,"2,056.00",LD LTS 18-64,RESIDENTIAL CARE,2102716279,
04.09.2017,ADULT SOCIAL CARE,CHOICE SUPPORT,"4,264.92",LD LTS 18-64,RESIDENTIAL CARE,2102716324,
04.09.2017,ADULT SOCIAL CARE,CHOICE SUPPORT,"4,572.76",LD LTS 18-64,RESIDENTIAL CARE,2102716423,
04.09.2017,ADULT SOCIAL CARE,CHOICE SUPPORT,"5,504.52",LD LTS 18-64,RESIDENTIAL CARE,2102715889,
04.09.2017,ADULT SOCIAL CARE,CHOICE SUPPORT,"5,536.76",LD LTS 18-64,RESIDENTIAL CARE,2102715771,
04.09.2017,ADULT SOCIAL CARE,CHOICE SUPPORT,"5,615.70",LD LTS 18-64,RESIDENTIAL CARE,2102715354,
04.09.2017,ADULT SOCIAL CARE,CHOICE SUPPORT,"1,322.64",LD LTS 18-64,SUPPORTED LIVING,2102716531,
04.09.2017,ADULT SOCIAL CARE,CHOICE SUPPORT,"2,015.80",LD LTS 18-64,SUPPORTED LIVING,2102716484,
04.09.2017,ADULT SOCIAL CARE,CHOICE SUPPORT,"2,909.80",LD LTS 18-64,SUPPORTED LIVING,2102715415,
04.09.2017,ADULT SOCIAL CARE,CHOICE SUPPORT,"13,567.81",LD LTS 18-64,SUPPORTED LIVING,2102715821,
04.09.2017,ADULT SOCIAL CARE,CLACTON FAMILY TRUST LTD,-341.84,LD LTS 18-64,"MAND STATUTORY CHARGES, RESIDENTIAL",2102715688,
04.09.2017,ADULT SOCIAL CARE,CLACTON FAMILY TRUST LTD,"7,106.92",LD LTS 18-64,RESIDENTIAL CARE,2102715687,
04.09.2017,ADULT SOCIAL CARE,CLEARWATER CARE (HACKNEY) LTD,-375.00,LD LTS 18-64,"MAND STATUTORY CHARGES, RESIDENTIAL",2102716167,
04.09.2017,ADULT SOCIAL CARE,CLEARWATER CARE (HACKNEY) LTD,"6,800.00",LD LTS 18-64,RESIDENTIAL CARE,2102716166,
04.09.2017,ADULT SOCIAL CARE,CLEARWATER CARE (HACKNEY) LTD,"8,265.80",LD LTS 18-64,SUPPORTED LIVING,2102715640,
04.09.2017,ADULT SOCIAL CARE,CLEARWATER CARE (HACKNEY) LTD,"10,584.00",LD LTS 18-64,SUPPORTED LIVING,2102716218,
04.09.2017,ADULT SOCIAL CARE,COMMUNITY INTEGRATED CARE,-327.12,LD LTS 18-64,"MAND STATUTORY CHARGES, RESIDENTIAL",2102715357,
04.09.2017,ADULT SOCIAL CARE,COMMUNITY INTEGRATED CARE,"4,800.00",LD LTS 18-64,RESIDENTIAL CARE,2102715356,
04.09.2017,ADULT SOCIAL CARE,CRAEGMOOR (WINDSOR HOUSE),-400.60,LD LTS 18-64,"MAND STATUTORY CHARGES, RESIDENTIAL",2102715764,
04.09.2017,ADULT SOCIAL CARE,CRAEGMOOR (WINDSOR HOUSE),"3,227.60",LD LTS 18-64,RESIDENTIAL CARE,2102715763,
04.09.2017,ADULT SOCIAL CARE,CRAEGMOOR CHARNWOOD LODGE PRIORY,"15,693.92",LD LTS 18-64,RESIDENTIAL CARE,2102715669,
04.09.2017,ADULT SOCIAL CARE,CRAEGMOOR DEVONSHIRE ROAD PRIORY,-400.60,LD LTS 18-64,"MAND STATUTORY CHARGES, RESIDENTIAL",2102716000,
04.09.2017,ADULT SOCIAL CARE,CRAEGMOOR DEVONSHIRE ROAD PRIORY,"4,392.52",LD LTS 18-64,RESIDENTIAL CARE,2102715999,
04.09.2017,ADULT SOCIAL CARE,CRAEGMOOR HEALTHCARE,-372.60,LD LTS 18-64,"MAND STATUTORY CHARGES, RESIDENTIAL",2102716332,
04.09.2017,ADULT SOCIAL CARE,CRAEGMOOR HEALTHCARE,"7,305.44",LD LTS 18-64,RESIDENTIAL CARE,2102716331,
04.09.2017,ADULT SOCIAL CARE,CRAEGMOOR WHEELHOUSE PRIORY,-400.60,LD LTS 18-64,"MAND STATUTORY CHARGES, RESIDENTIAL",2102716208,
04.09.2017,ADULT SOCIAL CARE,CRAEGMOOR WHEELHOUSE PRIORY,870.00,LD LTS 18-64,OTHER PAYMENTS FOR CLIENTS,2102715397,
04.09.2017,ADULT SOCIAL CARE,CRAEGMOOR WHEELHOUSE PRIORY,"5,259.04",LD LTS 18-64,RESIDENTIAL CARE,2102716207,
04.09.2017,ADULT SOCIAL CARE,CRAEGMOOR WILLOWS HYTHE PRIORY,-402.60,LD LTS 18-64,"MAND STATUTORY CHARGES, RESIDENTIAL",2102716223,
04.09.2017,ADULT SOCIAL CARE,CRAEGMOOR WILLOWS HYTHE PRIORY,"3,240.00",LD LTS 18-64,RESIDENTIAL CARE,2102716222,
04.09.2017,ADULT SOCIAL CARE,DIAGRAMA HEALTH CARE,-793.64,LD LTS 18-64,"MAND STATUTORY CHARGES, RESIDENTIAL",2102715944,
04.09.2017,ADULT SOCIAL CARE,DIAGRAMA HEALTH CARE,-323.00,LD LTS 18-64,"MAND STATUTORY CHARGES, RESIDENTIAL",2102715590,
04.09.2017,ADULT SOCIAL CARE,DIAGRAMA HEALTH CARE,-323.00,LD LTS 18-64,"MAND STATUTORY CHARGES, RESIDENTIAL",2102716335,
04.09.2017,ADULT SOCIAL CARE,DIAGRAMA HEALTH CARE,"2,997.96",LD LTS 18-64,RESIDENTIAL CARE,2102715589,
04.09.2017,ADULT SOCIAL CARE,DIAGRAMA HEALTH CARE,"2,997.96",LD LTS 18-64,RESIDENTIAL CARE,2102716334,
04.09.2017,ADULT SOCIAL CARE,DIAGRAMA HEALTH CARE,"4,493.04",LD LTS 18-64,RESIDENTIAL CARE,2102715447,
04.09.2017,ADULT SOCIAL CARE,DIAGRAMA HEALTH CARE,"4,493.04",LD LTS 18-64,RESIDENTIAL CARE,2102715577,
04.09.2017,ADULT SOCIAL CARE,DIAGRAMA HEALTH CARE,"4,493.04",LD LTS 18-64,RESIDENTIAL CARE,2102715733,
04.09.2017,ADULT SOCIAL CARE,DIAGRAMA HEALTH CARE,"4,499.68",LD LTS 18-64,RESIDENTIAL CARE,2102715943,
04.09.2017,ADULT SOCIAL CARE,EMBRACE ALL LTD,-323.00,LD LTS 18-64,"MAND STATUTORY CHARGES, RESIDENTIAL",2102716397,
04.09.2017,ADULT SOCIAL CARE,EMBRACE ALL LTD,"4,069.76",LD LTS 18-64,RESIDENTIAL CARE,2102716396,
04.09.2017,ADULT SOCIAL CARE,FERRY CARE LTD,-323.00,LD LTS 18-64,"MAND STATUTORY CHARGES, RESIDENTIAL",2102715909,
04.09.2017,ADULT SOCIAL CARE,FERRY CARE LTD,"11,083.08",LD LTS 18-64,RESIDENTIAL CARE,2102715908,
04.09.2017,ADULT SOCIAL CARE,FIR TREE LODGE (SEE ABILITY),-348.60,LD LTS 18-64,"MAND STATUTORY CHARGES, RESIDENTIAL",2102716434,
04.09.2017,ADULT SOCIAL CARE,FIR TREE LODGE (SEE ABILITY),323.20,LD LTS 18-64,OTHER PAYMENTS FOR CLIENTS,2102715740,
04.09.2017,ADULT SOCIAL CARE,FIR TREE LODGE (SEE ABILITY),"7,993.04",LD LTS 18-64,RESIDENTIAL CARE,2102716433,
04.09.2017,ADULT SOCIAL CARE,FOUNTAIN CARE LTD,"14,329.76",LD LTS 18-64,RESIDENTIAL CARE,2102715891,
04.09.2017,ADULT SOCIAL CARE,GLEN CARE GROUP,-409.52,LD LTS 18-64,"MAND STATUTORY CHARGES, RESIDENTIAL",2102716370,
04.09.2017,ADULT SOCIAL CARE,GLEN CARE GROUP,"4,646.00",LD LTS 18-64,RESIDENTIAL CARE,2102715498,
04.09.2017,ADULT SOCIAL CARE,GLEN CARE GROUP,"5,191.40",LD LTS 18-64,RESIDENTIAL CARE,2102716369,
04.09.2017,ADULT SOCIAL CARE,GLEN CARE GROUP,"6,868.00",LD LTS 18-64,RESIDENTIAL CARE,2102715983,
04.09.2017,ADULT SOCIAL CARE,GLEN CARE GROUP,"8,888.00",LD LTS 18-64,RESIDENTIAL CARE,2102716511,
04.09.2017,ADULT SOCIAL CARE,GLENPAT HOMES,-323.00,LD LTS 18-64,"MAND STATUTORY CHARGES, RESIDENTIAL",2102715642,
04.09.2017,ADULT SOCIAL CARE,GLENPAT HOMES,"7,540.68",LD LTS 18-64,RESIDENTIAL CARE,2102715641,
04.09.2017,ADULT SOCIAL CARE,GROVE CARE PARTNERSHIP,-391.64,LD LTS 18-64,"MAND STATUTORY CHARGES, RESIDENTIAL",2102715651,
04.09.2017,ADULT SOCIAL CARE,GROVE CARE PARTNERSHIP,-355.32,LD LTS 18-64,"MAND STATUTORY CHARGES, RESIDENTIAL",2102716505,
04.09.2017,ADULT SOCIAL CARE,GROVE CARE PARTNERSHIP,-323.00,LD LTS 18-64,"MAND STATUTORY CHARGES, RESIDENTIAL",2102716493,
04.09.2017,ADULT SOCIAL CARE,GROVE CARE PARTNERSHIP,"7,393.20",LD LTS 18-64,RESIDENTIAL CARE,2102716492,
04.09.2017,ADULT SOCIAL CARE,GROVE CARE PARTNERSHIP,"8,059.20",LD LTS 18-64,RESIDENTIAL CARE,2102716504,
04.09.2017,ADULT SOCIAL CARE,GROVE CARE PARTNERSHIP,"8,324.00",LD LTS 18-64,RESIDENTIAL CARE,2102715650,
04.09.2017,ADULT SOCIAL CARE,HAZELDENE LTD,-621.50,LD LTS 18-64,"MAND STATUTORY CHARGES, RESIDENTIAL",2102716179,
04.09.2017,ADULT SOCIAL CARE,HAZELDENE LTD,-402.60,LD LTS 18-64,"MAND STATUTORY CHARGES, RESIDENTIAL",2102716367,
04.09.2017,ADULT SOCIAL CARE,HAZELDENE LTD,"5,656.00",LD LTS 18-64,RESIDENTIAL CARE,2102716366,
04.09.2017,ADULT SOCIAL CARE,HAZELDENE LTD,"5,704.52",LD LTS 18-64,RESIDENTIAL CARE,2102716178,
04.09.2017,ADULT SOCIAL CARE,HEALTH PERSONNEL LTD,"15,172.92",LD LTS 18-64,SUPPORTED LIVING,2102716483,
04.09.2017,ADULT SOCIAL CARE,HORNCASTLE CARE CENTRE,-325.20,LD LTS 18-64,"MAND STATUTORY CHARGES, NURSING",2102716371,
04.09.2017,ADULT SOCIAL CARE,INDEPENDENCE HOMES LTD,"7,245.40",LD LTS 18-64,RESIDENTIAL CARE,2102715690,
04.09.2017,ADULT SOCIAL CARE,INSIGHT,-395.80,LD LTS 18-64,"MAND STATUTORY CHARGES, RESIDENTIAL",2102715681,
04.09.2017,ADULT SOCIAL CARE,INSIGHT,-325.20,LD LTS 18-64,"MAND STATUTORY CHARGES, RESIDENTIAL",2102716330,
04.09.2017,ADULT SOCIAL CARE,INSIGHT,-323.00,LD LTS 18-64,"MAND STATUTORY CHARGES, RESIDENTIAL",2102716282,
04.09.2017,ADULT SOCIAL CARE,INSIGHT,"5,437.28",LD LTS 18-64,RESIDENTIAL CARE,2102715376,
04.09.2017,ADULT SOCIAL CARE,INSIGHT,"5,437.28",LD LTS 18-64,RESIDENTIAL CARE,2102715437,
04.09.2017,ADULT SOCIAL CARE,INSIGHT,"5,631.44",LD LTS 18-64,RESIDENTIAL CARE,2102716329,
04.09.2017,ADULT SOCIAL CARE,INSIGHT,"8,802.20",LD LTS 18-64,RESIDENTIAL CARE,2102716281,
04.09.2017,ADULT SOCIAL CARE,INSIGHT,"11,239.32",LD LTS 18-64,RESIDENTIAL CARE,2102715680,
04.09.2017,ADULT SOCIAL CARE,LA ROSA RESIDENTIAL CARE HOME,"2,585.16",LD LTS 18-64,RESIDENTIAL CARE,2102715898,
04.09.2017,ADULT SOCIAL CARE,LEONARD CHESHIRE (GARDEN HOUSE),-343.80,LD LTS 18-64,"MAND STATUTORY CHARGES, RESIDENTIAL",2102716265,
04.09.2017,ADULT SOCIAL CARE,LEONARD CHESHIRE (GARDEN HOUSE),-323.00,LD LTS 18-64,"MAND STATUTORY CHARGES, RESIDENTIAL",2102716093,
04.09.2017,ADULT SOCIAL CARE,LEONARD CHESHIRE (GARDEN HOUSE),-323.00,LD LTS 18-64,"MAND STATUTORY CHARGES, RESIDENTIAL",2102716173,
04.09.2017,ADULT SOCIAL CARE,LEONARD CHESHIRE (GARDEN HOUSE),-323.00,LD LTS 18-64,"MAND STATUTORY CHARGES, RESIDENTIAL",2102716183,
04.09.2017,ADULT SOCIAL CARE,LEONARD CHESHIRE (GARDEN HOUSE),"3,845.36",LD LTS 18-64,RESIDENTIAL CARE,2102716182,
04.09.2017,ADULT SOCIAL CARE,LEONARD CHESHIRE (GARDEN HOUSE),"3,933.80",LD LTS 18-64,RESIDENTIAL CARE,2102716172,
04.09.2017,ADULT SOCIAL CARE,LEONARD CHESHIRE (GARDEN HOUSE),"4,293.00",LD LTS 18-64,RESIDENTIAL CARE,2102716264,
04.09.2017,ADULT SOCIAL CARE,LEONARD CHESHIRE (GARDEN HOUSE),"4,403.60",LD LTS 18-64,RESIDENTIAL CARE,2102715991,
04.09.2017,ADULT SOCIAL CARE,LEONARD CHESHIRE (GARDEN HOUSE),"4,646.00",LD LTS 18-64,RESIDENTIAL CARE,2102716092,
04.09.2017,ADULT SOCIAL CARE,LEONARD CHESHIRE (THICKET ROAD),-323.00,LD LTS 18-64,"MAND STATUTORY CHARGES, RESIDENTIAL",2102715787,
04.09.2017,ADULT SOCIAL CARE,LEONARD CHESHIRE (THICKET ROAD),-321.56,LD LTS 18-64,"MAND STATUTORY CHARGES, RESIDENTIAL",2102715988,
04.09.2017,ADULT SOCIAL CARE,LEONARD CHESHIRE (THICKET ROAD),"6,906.96",LD LTS 18-64,RESIDENTIAL CARE,2102715786,
04.09.2017,ADULT SOCIAL CARE,LEONARD CHESHIRE (THICKET ROAD),"7,911.16",LD LTS 18-64,RESIDENTIAL CARE,2102715987,
04.09.2017,ADULT SOCIAL CARE,LIAISE LONDON LTD,-323.00,LD LTS 18-64,"MAND STATUTORY CHARGES, RESIDENTIAL",2102716414,
04.09.2017,ADULT SOCIAL CARE,LIAISE LONDON LTD,"12,415.68",LD LTS 18-64,RESIDENTIAL CARE,2102716413,
04.09.2017,ADULT SOCIAL CARE,LINKAGE COMMUNITY TRUST LTD,-400.60,LD LTS 18-64,"MAND STATUTORY CHARGES, RESIDENTIAL",2102715594,
04.09.2017,ADULT SOCIAL CARE,LINKAGE COMMUNITY TRUST LTD,"2,070.88",LD LTS 18-64,RESIDENTIAL CARE,2102715593,
04.09.2017,ADULT SOCIAL CARE,LOVE WALK HOSTEL FOR DISABLED,"3,280.00",LD LTS 18-64,RESIDENTIAL CARE,2102716470,
04.09.2017,ADULT SOCIAL CARE,MAYFIELD CHILDRENS HOME,"10,798.92",LD LTS 18-64,RESIDENTIAL CARE,2102715697,
04.09.2017,ADULT SOCIAL CARE,MCCH,-384.80,LD LTS 18-64,"MAND STATUTORY CHARGES, RESIDENTIAL",2102716041,
04.09.2017,ADULT SOCIAL CARE,MCCH,"5,073.60",LD LTS 18-64,RESIDENTIAL CARE,2102716040,
04.09.2017,ADULT SOCIAL CARE,MIHOMECARE LTD,408.48,LD LTS 18-64,HOMECARE - C&V,2102715061,
04.09.2017,ADULT SOCIAL CARE,NEXUS PROGRAMME LTD,672.76,LD LTS 18-64,"MAND STATUTORY CHARGES, RESIDENTIAL",2102716021,
04.09.2017,ADULT SOCIAL CARE,NEXUS PROGRAMME LTD,"7,100.08",LD LTS 18-64,RESIDENTIAL CARE,2102716020,
04.09.2017,ADULT SOCIAL CARE,OCEAN COMMUNITY SERVICES LTD,"11,198.48",LD LTS 18-64,RESIDENTIAL CARE,2102715674,
04.09.2017,ADULT SOCIAL CARE,OGILVIE COURT,-400.60,LD LTS 18-64,"MAND STATUTORY CHARGES, RESIDENTIAL",2102715605,
04.09.2017,ADULT SOCIAL CARE,OGILVIE COURT,"4,591.92",LD LTS 18-64,RESIDENTIAL CARE,2102715604,
04.09.2017,ADULT SOCIAL CARE,OPTIMA CARE (SHINE) LONDON LTD,"9,472.00",LD LTS 18-64,SUPPORTED LIVING,2102716309,
04.09.2017,ADULT SOCIAL CARE,OPTIMA CARE (SHINE) LONDON LTD,"11,276.00",LD LTS 18-64,SUPPORTED LIVING,2102716377,
04.09.2017,ADULT SOCIAL CARE,PECULIAR CARE HOMES LTD,"16,189.40",LD LTS 18-64,SUPPORTED LIVING,2102716508,
04.09.2017,ADULT SOCIAL CARE,PECULIAR CARE HOMES LTD,"19,098.80",LD LTS 18-64,SUPPORTED LIVING,2102716333,
04.09.2017,ADULT SOCIAL CARE,PLUS SERVICES,-530.40,LD LTS 18-64,"MAND STATUTORY CHARGES, RESIDENTIAL",2102716095,
04.09.2017,ADULT SOCIAL CARE,PLUS SERVICES,-321.56,LD LTS 18-64,"MAND STATUTORY CHARGES, RESIDENTIAL",2102715775,
04.09.2017,ADULT SOCIAL CARE,PLUS SERVICES,"4,405.76",LD LTS 18-64,RESIDENTIAL CARE,2102715774,
04.09.2017,ADULT SOCIAL CARE,PLUS SERVICES,"5,174.04",LD LTS 18-64,RESIDENTIAL CARE,2102715366,
04.09.2017,ADULT SOCIAL CARE,PLUS SERVICES,"4,534.00",LD LTS 18-64,SUPPORTED LIVING,2102715857,
04.09.2017,ADULT SOCIAL CARE,PLUS SERVICES,"4,970.16",LD LTS 18-64,SUPPORTED LIVING,2102715360,
04.09.2017,ADULT SOCIAL CARE,PLUS SERVICES,"5,097.56",LD LTS 18-64,SUPPORTED LIVING,2102716046,
04.09.2017,ADULT SOCIAL CARE,PLUS SERVICES,"8,474.14",LD LTS 18-64,SUPPORTED LIVING,2102716067,
04.09.2017,ADULT SOCIAL CARE,REDACTED PERSONAL DATA,-321.56,LD LTS 18-64,"MAND STATUTORY CHARGES, RESIDENTIAL",2102716350,
04.09.2017,ADULT SOCIAL CARE,REDACTED PERSONAL DATA,"2,470.64",LD LTS 18-64,RESIDENTIAL CARE,2102716349,
04.09.2017,ADULT SOCIAL CARE,REDACTED PERSONAL DATA,562.56,LD LTS 18-64,SUPPORTED LIVING,2102716557,
04.09.2017,ADULT SOCIAL CARE,REDACTED PERSONAL DATA,"3,245.32",LD LTS 18-64,SUPPORTED LIVING,2102715725,
04.09.2017,ADULT SOCIAL CARE,RNIB COMMUNITY LIVING SERVICE,"7,129.24",LD LTS 18-64,RESIDENTIAL CARE,2102716408,
04.09.2017,ADULT SOCIAL CARE,RYDE HOUSE,-323.00,LD LTS 18-64,"MAND STATUTORY CHARGES, RESIDENTIAL",2102715495,
04.09.2017,ADULT SOCIAL CARE,RYDE HOUSE,"3,944.00",LD LTS 18-64,RESIDENTIAL CARE,2102715494,
04.09.2017,ADULT SOCIAL CARE,SAFFRONLAND HOMES,"6,928.36",LD LTS 18-64,RESIDENTIAL CARE,2102715507,
04.09.2017,ADULT SOCIAL CARE,SAFFRONLAND HOMES,-537.80,LD LTS 18-64,"MAND STATUTORY CHARGES, RESIDENTIAL",2102716133,
04.09.2017,ADULT SOCIAL CARE,SAFFRONLAND HOMES,-323.00,LD LTS 18-64,"MAND STATUTORY CHARGES, RESIDENTIAL",2102715631,
04.09.2017,ADULT SOCIAL CARE,SAFFRONLAND HOMES,-323.00,LD LTS 18-64,"MAND STATUTORY CHARGES, RESIDENTIAL",2102716055,
04.09.2017,ADULT SOCIAL CARE,SAFFRONLAND HOMES,"6,868.00",LD LTS 18-64,RESIDENTIAL CARE,2102716132,
04.09.2017,ADULT SOCIAL CARE,SAFFRONLAND HOMES,"8,650.24",LD LTS 18-64,RESIDENTIAL CARE,2102715630,
04.09.2017,ADULT SOCIAL CARE,SAFFRONLAND HOMES,"9,620.92",LD LTS 18-64,RESIDENTIAL CARE,2102716054,
04.09.2017,ADULT SOCIAL CARE,SAFFRONLAND HOMES (HESTIA),462.36,LD LTS 18-64,DAYCARE,2102715696,
04.09.2017,ADULT SOCIAL CARE,SAFFRONLAND HOMES (HESTIA),750.76,LD LTS 18-64,DAYCARE,2102715845,
04.09.2017,ADULT SOCIAL CARE,SAFFRONLAND HOMES (HESTIA),918.76,LD LTS 18-64,DAYCARE,2102715979,
04.09.2017,ADULT SOCIAL CARE,SAFFRONLAND HOMES (HESTIA),-323.00,LD LTS 18-64,"MAND STATUTORY CHARGES, RESIDENTIAL",2102715792,
04.09.2017,ADULT SOCIAL CARE,SAFFRONLAND HOMES (HESTIA),-323.00,LD LTS 18-64,"MAND STATUTORY CHARGES, RESIDENTIAL",2102715824,
04.09.2017,ADULT SOCIAL CARE,SAFFRONLAND HOMES (HESTIA),-323.00,LD LTS 18-64,"MAND STATUTORY CHARGES, RESIDENTIAL",2102715844,
04.09.2017,ADULT SOCIAL CARE,SAFFRONLAND HOMES (HESTIA),-323.00,LD LTS 18-64,"MAND STATUTORY CHARGES, RESIDENTIAL",2102715978,
04.09.2017,ADULT SOCIAL CARE,SAFFRONLAND HOMES (HESTIA),-315.20,LD LTS 18-64,"MAND STATUTORY CHARGES, RESIDENTIAL",2102715695,
04.09.2017,ADULT SOCIAL CARE,SAFFRONLAND HOMES (HESTIA),"7,482.08",LD LTS 18-64,RESIDENTIAL CARE,2102715791,
04.09.2017,ADULT SOCIAL CARE,SAFFRONLAND HOMES (HESTIA),"7,806.44",LD LTS 18-64,RESIDENTIAL CARE,2102715694,
04.09.2017,ADULT SOCIAL CARE,SAFFRONLAND HOMES (HESTIA),"7,806.44",LD LTS 18-64,RESIDENTIAL CARE,2102715843,
04.09.2017,ADULT SOCIAL CARE,SAFFRONLAND HOMES (HESTIA),"7,806.44",LD LTS 18-64,RESIDENTIAL CARE,2102715977,
04.09.2017,ADULT SOCIAL CARE,SAFFRONLAND HOMES (HESTIA),"8,049.72",LD LTS 18-64,RESIDENTIAL CARE,2102715708,
04.09.2017,ADULT SOCIAL CARE,SAFFRONLAND HOMES (HESTIA),"8,228.44",LD LTS 18-64,RESIDENTIAL CARE,2102715823,
04.09.2017,ADULT SOCIAL CARE,SAHARA CARE HOMES LTD,"5,000.00",LD LTS 18-64,RESIDENTIAL CARE,2102715448,
04.09.2017,ADULT SOCIAL CARE,SEEABILITY,-323.00,LD LTS 18-64,"MAND STATUTORY CHARGES, RESIDENTIAL",2102715381,
04.09.2017,ADULT SOCIAL CARE,SEEABILITY,-323.00,LD LTS 18-64,"MAND STATUTORY CHARGES, RESIDENTIAL",2102716436,
04.09.2017,ADULT SOCIAL CARE,SEEABILITY,"10,495.60",LD LTS 18-64,RESIDENTIAL CARE,2102715380,
04.09.2017,ADULT SOCIAL CARE,SEEABILITY,"12,678.24",LD LTS 18-64,RESIDENTIAL CARE,2102716435,
04.09.2017,ADULT SOCIAL CARE,SENSE,-400.60,LD LTS 18-64,"MAND STATUTORY CHARGES, RESIDENTIAL",2102715677,
04.09.2017,ADULT SOCIAL CARE,SENSE,-344.24,LD LTS 18-64,"MAND STATUTORY CHARGES, RESIDENTIAL",2102715512,
04.09.2017,ADULT SOCIAL CARE,SENSE,"9,568.00",LD LTS 18-64,RESIDENTIAL CARE,2102715676,
04.09.2017,ADULT SOCIAL CARE,SENSE,"9,800.00",LD LTS 18-64,RESIDENTIAL CARE,2102715511,
04.09.2017,ADULT SOCIAL CARE,STEPPING STONES RESETTLEMENT UNIT,-323.00,LD LTS 18-64,"MAND STATUTORY CHARGES, RESIDENTIAL",2102715539,
04.09.2017,ADULT SOCIAL CARE,STEPPING STONES RESETTLEMENT UNIT,"6,605.40",LD LTS 18-64,RESIDENTIAL CARE,2102715538,
04.09.2017,ADULT SOCIAL CARE,THE AVENUES TRUST,-323.00,LD LTS 18-64,"MAND STATUTORY CHARGES, RESIDENTIAL",2102715936,
04.09.2017,ADULT SOCIAL CARE,THE AVENUES TRUST,"6,041.68",LD LTS 18-64,RESIDENTIAL CARE,2102715935,
04.09.2017,ADULT SOCIAL CARE,THE CHILTERNS - OPTIMA CARE,-323.00,LD LTS 18-64,"MAND STATUTORY CHARGES, RESIDENTIAL",2102716045,
04.09.2017,ADULT SOCIAL CARE,THE CHILTERNS - OPTIMA CARE,"10,411.08",LD LTS 18-64,RESIDENTIAL CARE,2102715678,
04.09.2017,ADULT SOCIAL CARE,THE CHILTERNS - OPTIMA CARE,"11,283.72",LD LTS 18-64,RESIDENTIAL CARE,2102716044,
04.09.2017,ADULT SOCIAL CARE,THE DISABILITIES TRUST,"9,552.00",LD LTS 18-64,RESIDENTIAL CARE,2102716209,
04.09.2017,ADULT SOCIAL CARE,THE DRIVE CARE HOMES LTD,-269.32,LD LTS 18-64,"MAND STATUTORY CHARGES, RESIDENTIAL",2102715941,
04.09.2017,ADULT SOCIAL CARE,THE DRIVE CARE HOMES LTD,-262.20,LD LTS 18-64,"MAND STATUTORY CHARGES, RESIDENTIAL",2102716549,
04.09.2017,ADULT SOCIAL CARE,THE DRIVE CARE HOMES LTD,"7,655.00",LD LTS 18-64,RESIDENTIAL CARE,2102715940,
04.09.2017,ADULT SOCIAL CARE,THE DRIVE CARE HOMES LTD,"8,760.00",LD LTS 18-64,RESIDENTIAL CARE,2102716548,
04.09.2017,ADULT SOCIAL CARE,THE DRIVE CARE HOMES LTD,"35,789.16",LD LTS 18-64,RESIDENTIAL CARE,2102716001,
04.09.2017,ADULT SOCIAL CARE,THE DRIVE CARE HOMES LTD (ADULTS),-323.00,LD LTS 18-64,"MAND STATUTORY CHARGES, RESIDENTIAL",2102715618,
04.09.2017,ADULT SOCIAL CARE,THE DRIVE CARE HOMES LTD (ADULTS),"3,791.48",LD LTS 18-64,RESIDENTIAL CARE,2102715617,
04.09.2017,ADULT SOCIAL CARE,THE DRIVE CARE HOMES LTD (ADULTS),"11,901.12",LD LTS 18-64,RESIDENTIAL CARE,2102716188,
04.09.2017,ADULT SOCIAL CARE,THE DRIVE CARE HOMES LTD (ADULTS),"15,183.80",LD LTS 18-64,RESIDENTIAL CARE,2102716380,
04.09.2017,ADULT SOCIAL CARE,THE FRANCES TAYLOR FOUNDATION,-402.60,LD LTS 18-64,"MAND STATUTORY CHARGES, RESIDENTIAL",2102716084,
04.09.2017,ADULT SOCIAL CARE,THE FRANCES TAYLOR FOUNDATION,"2,444.76",LD LTS 18-64,RESIDENTIAL CARE,2102716083,
04.09.2017,ADULT SOCIAL CARE,THE MEATH,-805.20,LD LTS 18-64,"MAND STATUTORY CHARGES, RESIDENTIAL",2102715535,
04.09.2017,ADULT SOCIAL CARE,THE MEATH,-400.64,LD LTS 18-64,"MAND STATUTORY CHARGES, RESIDENTIAL",2102716075,
04.09.2017,ADULT SOCIAL CARE,THE MEATH,"5,191.40",LD LTS 18-64,RESIDENTIAL CARE,2102716074,
04.09.2017,ADULT SOCIAL CARE,THE MEATH,"5,759.76",LD LTS 18-64,RESIDENTIAL CARE,2102715534,
04.09.2017,ADULT SOCIAL CARE,THE NATIONAL AUTISTIC SOCIETY,-402.60,LD LTS 18-64,"MAND STATUTORY CHARGES, RESIDENTIAL",2102715833,
04.09.2017,ADULT SOCIAL CARE,THE NATIONAL AUTISTIC SOCIETY,-323.00,LD LTS 18-64,"MAND STATUTORY CHARGES, RESIDENTIAL",2102715742,
04.09.2017,ADULT SOCIAL CARE,THE NATIONAL AUTISTIC SOCIETY,"2,568.96",LD LTS 18-64,OTHER PAYMENTS FOR CLIENTS,2102715560,
04.09.2017,ADULT SOCIAL CARE,THE NATIONAL AUTISTIC SOCIETY,"5,096.20",LD LTS 18-64,RESIDENTIAL CARE,2102715741,
04.09.2017,ADULT SOCIAL CARE,THE NATIONAL AUTISTIC SOCIETY,"9,708.92",LD LTS 18-64,RESIDENTIAL CARE,2102715832,
04.09.2017,ADULT SOCIAL CARE,THE PADDOCK (THE SWALLOW GROUP),-537.80,LD LTS 18-64,"MAND STATUTORY CHARGES, RESIDENTIAL",2102715735,
04.09.2017,ADULT SOCIAL CARE,THE PADDOCK (THE SWALLOW GROUP),-537.80,LD LTS 18-64,"MAND STATUTORY CHARGES, RESIDENTIAL",2102716422,
04.09.2017,ADULT SOCIAL CARE,THE PADDOCK (THE SWALLOW GROUP),"2,828.00",LD LTS 18-64,RESIDENTIAL CARE,2102715734,
04.09.2017,ADULT SOCIAL CARE,THE PADDOCK (THE SWALLOW GROUP),"2,870.40",LD LTS 18-64,RESIDENTIAL CARE,2102716421,
04.09.2017,ADULT SOCIAL CARE,THE RATHBONE CENTRE,374.40,LD LTS 18-64,SUPPORTED LIVING,2102715730,
04.09.2017,ADULT SOCIAL CARE,THE REGARD PARTNERSHIP,-401.12,LD LTS 18-64,"MAND STATUTORY CHARGES, RESIDENTIAL",2102715425,
04.09.2017,ADULT SOCIAL CARE,THE REGARD PARTNERSHIP,-400.60,LD LTS 18-64,"MAND STATUTORY CHARGES, RESIDENTIAL",2102716290,
04.09.2017,ADULT SOCIAL CARE,THE REGARD PARTNERSHIP,-383.00,LD LTS 18-64,"MAND STATUTORY CHARGES, RESIDENTIAL",2102715430,
04.09.2017,ADULT SOCIAL CARE,THE REGARD PARTNERSHIP,-323.00,LD LTS 18-64,"MAND STATUTORY CHARGES, RESIDENTIAL",2102716161,
04.09.2017,ADULT SOCIAL CARE,THE REGARD PARTNERSHIP,"4,852.84",LD LTS 18-64,RESIDENTIAL CARE,2102716160,
04.09.2017,ADULT SOCIAL CARE,THE REGARD PARTNERSHIP,"6,766.84",LD LTS 18-64,RESIDENTIAL CARE,2102715429,
04.09.2017,ADULT SOCIAL CARE,THE REGARD PARTNERSHIP,"7,272.00",LD LTS 18-64,RESIDENTIAL CARE,2102715424,
04.09.2017,ADULT SOCIAL CARE,THE REGARD PARTNERSHIP,"8,926.40",LD LTS 18-64,RESIDENTIAL CARE,2102716289,
04.09.2017,ADULT SOCIAL CARE,THE REGARD PARTNERSHIP,"17,517.48",LD LTS 18-64,RESIDENTIAL CARE,2102716486,
04.09.2017,ADULT SOCIAL CARE,THE REGARD PARTNERSHIP (INGLEWOOD HSE),-400.60,LD LTS 18-64,"MAND STATUTORY CHARGES, RESIDENTIAL",2102716276,
04.09.2017,ADULT SOCIAL CARE,THE REGARD PARTNERSHIP (INGLEWOOD HSE),"6,482.60",LD LTS 18-64,RESIDENTIAL CARE,2102716275,
04.09.2017,ADULT SOCIAL CARE,THE REGARD PARTNERSHIP (IVY LODGE),-570.04,LD LTS 18-64,"MAND STATUTORY CHARGES, RESIDENTIAL",2102716114,
04.09.2017,ADULT SOCIAL CARE,THE REGARD PARTNERSHIP (IVY LODGE),"3,525.72",LD LTS 18-64,RESIDENTIAL CARE,2102716113,
04.09.2017,ADULT SOCIAL CARE,TRUECARE HAVEN SUPPORT LTD,"5,298.00",LD LTS 18-64,RESIDENTIAL CARE,2102716164,
04.09.2017,ADULT SOCIAL CARE,VALUE IN CARE LTD,-348.60,LD LTS 18-64,"MAND STATUTORY CHARGES, RESIDENTIAL",2102715737,
04.09.2017,ADULT SOCIAL CARE,VALUE IN CARE LTD,"7,035.52",LD LTS 18-64,RESIDENTIAL CARE,2102715736,
04.09.2017,ADULT SOCIAL CARE,VALUE IN CARE LTD,"14,706.72",LD LTS 18-64,RESIDENTIAL CARE,2102715766,
04.09.2017,ADULT SOCIAL CARE,VOYAGE CARE (MOUNTEARL),-323.00,LD LTS 18-64,"MAND STATUTORY CHARGES, RESIDENTIAL",2102715588,
04.09.2017,ADULT SOCIAL CARE,VOYAGE CARE (MOUNTEARL),"5,841.12",LD LTS 18-64,RESIDENTIAL CARE,2102715341,
04.09.2017,ADULT SOCIAL CARE,VOYAGE CARE (MOUNTEARL),"6,897.96",LD LTS 18-64,RESIDENTIAL CARE,2102715587,
04.09.2017,ADULT SOCIAL CARE,VOYAGE LTD (EVESLEIGH KENT),-400.60,LD LTS 18-64,"MAND STATUTORY CHARGES, RESIDENTIAL",2102716149,
04.09.2017,ADULT SOCIAL CARE,VOYAGE LTD (EVESLEIGH KENT),-349.60,LD LTS 18-64,"MAND STATUTORY CHARGES, RESIDENTIAL",2102715780,
04.09.2017,ADULT SOCIAL CARE,VOYAGE LTD (EVESLEIGH KENT),-323.00,LD LTS 18-64,"MAND STATUTORY CHARGES, RESIDENTIAL",2102715582,
04.09.2017,ADULT SOCIAL CARE,VOYAGE LTD (EVESLEIGH KENT),"5,199.48",LD LTS 18-64,RESIDENTIAL CARE,2102715581,
04.09.2017,ADULT SOCIAL CARE,VOYAGE LTD (EVESLEIGH KENT),"6,091.32",LD LTS 18-64,RESIDENTIAL CARE,2102715779,
04.09.2017,ADULT SOCIAL CARE,VOYAGE LTD (EVESLEIGH KENT),"7,213.16",LD LTS 18-64,RESIDENTIAL CARE,2102716148,
04.09.2017,ADULT SOCIAL CARE,31 WOODBOURNE (FRANCES TAYLOR FOUNDATION),-537.80,LD LTS 65+,"MAND STATUTORY CHARGES, RESIDENTIAL",2102715545,
04.09.2017,ADULT SOCIAL CARE,31 WOODBOURNE (FRANCES TAYLOR FOUNDATION),"2,481.44",LD LTS 65+,RESIDENTIAL CARE,2102715544,
04.09.2017,ADULT SOCIAL CARE,ASHMEAD HEALTHCARE LTD,"2,469.00",LD LTS 65+,RESIDENTIAL CARE,2102716538,
04.09.2017,ADULT SOCIAL CARE,BRANDON TRUST,-537.80,LD LTS 65+,"MAND STATUTORY CHARGES, RESIDENTIAL",2102716198,
04.09.2017,ADULT SOCIAL CARE,BRANDON TRUST,"2,762.20",LD LTS 65+,RESIDENTIAL CARE,2102716197,
04.09.2017,ADULT SOCIAL CARE,CHOICE SUPPORT,"40,894.77",LD LTS 65+,RESIDENTIAL CARE,2102716468,
04.09.2017,ADULT SOCIAL CARE,COTTAGE & RURAL ENTERPRISES LTD,-537.80,LD LTS 65+,"MAND STATUTORY CHARGES, RESIDENTIAL",2102716323,
04.09.2017,ADULT SOCIAL CARE,COTTAGE & RURAL ENTERPRISES LTD,"2,214.04",LD LTS 65+,RESIDENTIAL CARE,2102716322,
04.09.2017,ADULT SOCIAL CARE,GROVE VILLA RESIDENTIAL CARE HOME,-537.80,LD LTS 65+,"MAND STATUTORY CHARGES, RESIDENTIAL",2102716358,
04.09.2017,ADULT SOCIAL CARE,GROVE VILLA RESIDENTIAL CARE HOME,"1,722.88",LD LTS 65+,RESIDENTIAL CARE,2102716357,
04.09.2017,ADULT SOCIAL CARE,ISLE OF WIGHT COUNCIL,"2,994.96",LD LTS 65+,RESIDENTIAL CARE,2102716189,
04.09.2017,ADULT SOCIAL CARE,LEONARD CHESHIRE (GARDEN HOUSE),-537.80,LD LTS 65+,"MAND STATUTORY CHARGES, RESIDENTIAL",2102716058,
04.09.2017,ADULT SOCIAL CARE,LEONARD CHESHIRE (GARDEN HOUSE),-537.80,LD LTS 65+,"MAND STATUTORY CHARGES, RESIDENTIAL",2102716496,
04.09.2017,ADULT SOCIAL CARE,LEONARD CHESHIRE (GARDEN HOUSE),"3,933.80",LD LTS 65+,RESIDENTIAL CARE,2102716057,
04.09.2017,ADULT SOCIAL CARE,LEONARD CHESHIRE (GARDEN HOUSE),"3,933.80",LD LTS 65+,RESIDENTIAL CARE,2102716495,
04.09.2017,ADULT SOCIAL CARE,MORTIMER SOCIETY,-537.80,LD LTS 65+,"MAND STATUTORY CHARGES, RESIDENTIAL",2102716169,
04.09.2017,ADULT SOCIAL CARE,MORTIMER SOCIETY,"3,007.64",LD LTS 65+,RESIDENTIAL CARE,2102716168,
04.09.2017,ADULT SOCIAL CARE,PARKGATE MANOR,-537.80,LD LTS 65+,"MAND STATUTORY CHARGES, RESIDENTIAL",2102715466,
04.09.2017,ADULT SOCIAL CARE,PARKGATE MANOR,"2,751.36",LD LTS 65+,RESIDENTIAL CARE,2102715465,
04.09.2017,ADULT SOCIAL CARE,PARKVIEW NURSING HOME,"-1,018.90",LD LTS 65+,COSTS RECOVERED,2102715839,
04.09.2017,ADULT SOCIAL CARE,PARKVIEW NURSING HOME,-883.53,LD LTS 65+,"MAND STATUTORY CHARGES, NURSING",2102715840,
04.09.2017,ADULT SOCIAL CARE,PARKVIEW NURSING HOME,"4,045.04",LD LTS 65+,NURSING PLACEMENTS FEES,2102715842,
04.09.2017,ADULT SOCIAL CARE,PARKVIEW NURSING HOME,"1,018.90",LD LTS 65+,RECOVERABLE COSTS INCL. HEALTH,2102715841,
04.09.2017,ADULT SOCIAL CARE,PLUS SERVICES,-565.32,LD LTS 65+,"MAND STATUTORY CHARGES, RESIDENTIAL",2102715455,
04.09.2017,ADULT SOCIAL CARE,PLUS SERVICES,"5,784.00",LD LTS 65+,RESIDENTIAL CARE,2102715454,
04.09.2017,ADULT SOCIAL CARE,PLUS SERVICES,"6,300.00",LD LTS 65+,RESIDENTIAL CARE,2102716499,
04.09.2017,ADULT SOCIAL CARE,RYDE HOUSE,-537.80,LD LTS 65+,"MAND STATUTORY CHARGES, RESIDENTIAL",2102715493,
04.09.2017,ADULT SOCIAL CARE,RYDE HOUSE,"2,891.96",LD LTS 65+,RESIDENTIAL CARE,2102715492,
04.09.2017,ADULT SOCIAL CARE,SIGNATURE HEALTH AND LIVING LTD,"4,000.00",LD LTS 65+,RESIDENTIAL CARE,2102715738,
04.09.2017,ADULT SOCIAL CARE,STREATFIELD HOUSE,-537.80,LD LTS 65+,"MAND STATUTORY CHARGES, RESIDENTIAL",2102716163,
04.09.2017,ADULT SOCIAL CARE,STREATFIELD HOUSE,462.00,LD LTS 65+,OTHER PAYMENTS FOR CLIENTS,2102716112,
04.09.2017,ADULT SOCIAL CARE,STREATFIELD HOUSE,"1,798.76",LD LTS 65+,RESIDENTIAL CARE,2102716162,
04.09.2017,ADULT SOCIAL CARE,THE DISABILITIES TRUST,"8,792.00",LD LTS 65+,RESIDENTIAL CARE,2102716560,
04.09.2017,ADULT SOCIAL CARE,THE OLD  SCHOOL HOUSE (MADELEY),-537.80,LD LTS 65+,"MAND STATUTORY CHARGES, RESIDENTIAL",2102715562,
04.09.2017,ADULT SOCIAL CARE,THE OLD  SCHOOL HOUSE (MADELEY),"5,758.16",LD LTS 65+,RESIDENTIAL CARE,2102715561,
04.09.2017,ADULT SOCIAL CARE,THE REGARD PARTNERSHIP,-537.80,LD LTS 65+,"MAND STATUTORY CHARGES, RESIDENTIAL",2102716267,
04.09.2017,ADULT SOCIAL CARE,THE REGARD PARTNERSHIP,-495.80,LD LTS 65+,"MAND STATUTORY CHARGES, RESIDENTIAL",2102715946,
04.09.2017,ADULT SOCIAL CARE,THE REGARD PARTNERSHIP,"6,567.84",LD LTS 65+,RESIDENTIAL CARE,2102715945,
04.09.2017,ADULT SOCIAL CARE,THE REGARD PARTNERSHIP,"7,070.00",LD LTS 65+,RESIDENTIAL CARE,2102716266,
04.09.2017,ADULT SOCIAL CARE,FAIRLIE HEALTHCARE LTD,-793.64,MEM LTS 18-64,"MAND STATUTORY CHARGES, NURSING",2102715744,
04.09.2017,ADULT SOCIAL CARE,FAIRLIE HEALTHCARE LTD,"3,753.52",MEM LTS 18-64,NURSING PLACEMENTS FEES,2102715743,
04.09.2017,ADULT SOCIAL CARE,HAVELOCK COURT (BUPA CARE),"1,676.00",MEM LTS 18-64,NURSING PLACEMENTS FEES,2102716270,
04.09.2017,ADULT SOCIAL CARE,HAVELOCK COURT (BUPA CARE),"4,000.00",MEM LTS 18-64,NURSING PLACEMENTS FEES,2102715458,
04.09.2017,ADULT SOCIAL CARE,HC-ONE LTD (TOWER BRIDGE CARE HOME),-620.20,MEM LTS 18-64,COSTS RECOVERED,2102716230,
04.09.2017,ADULT SOCIAL CARE,HC-ONE LTD (TOWER BRIDGE CARE HOME),"2,190.60",MEM LTS 18-64,NURSING PLACEMENTS FEES,2102716232,
04.09.2017,ADULT SOCIAL CARE,HC-ONE LTD (TOWER BRIDGE CARE HOME),620.20,MEM LTS 18-64,RECOVERABLE COSTS INCL. HEALTH,2102716231,
04.09.2017,ADULT SOCIAL CARE,HIGHVIEW CARE HOME RESIDENT,"7,000.44",MEM LTS 18-64,NURSING PLACEMENTS FEES,2102716526,
04.09.2017,ADULT SOCIAL CARE,HOTHFIELD MANOR CENTRE,"4,848.00",MEM LTS 18-64,RESIDENTIAL CARE,2102716406,
04.09.2017,ADULT SOCIAL CARE,LA ROSA 2,-321.80,MEM LTS 18-64,"MAND STATUTORY CHARGES, RESIDENTIAL",2102715410,
04.09.2017,ADULT SOCIAL CARE,LA ROSA 2,"3,800.00",MEM LTS 18-64,RESIDENTIAL CARE,2102715411,
04.09.2017,ADULT SOCIAL CARE,LOVE WALK HOSTEL FOR DISABLED,-400.60,MEM LTS 18-64,"MAND STATUTORY CHARGES, RESIDENTIAL",2102716320,
04.09.2017,ADULT SOCIAL CARE,LOVE WALK HOSTEL FOR DISABLED,"3,240.00",MEM LTS 18-64,RESIDENTIAL CARE,2102716321,
04.09.2017,ADULT SOCIAL CARE,MIHOMECARE LTD,714.84,MEM LTS 18-64,HOMECARE - C&V,2102714996,
04.09.2017,ADULT SOCIAL CARE,REDACTED PERSONAL DATA,"6,350.72",MEM LTS 18-64,NURSING PLACEMENTS FEES,2102715729,
04.09.2017,ADULT SOCIAL CARE,ROSENMANOR LTD,"4,117.00",MEM LTS 18-64,NURSING PLACEMENTS FEES,2102716469,
04.09.2017,ADULT SOCIAL CARE,ROSENMANOR LTD,"5,000.00",MEM LTS 18-64,RESIDENTIAL CARE,2102715599,
04.09.2017,ADULT SOCIAL CARE,STEPPING STONES RESETTLEMENT UNIT,-793.64,MEM LTS 18-64,"MAND STATUTORY CHARGES, RESIDENTIAL",2102715685,
04.09.2017,ADULT SOCIAL CARE,STEPPING STONES RESETTLEMENT UNIT,"5,086.04",MEM LTS 18-64,RESIDENTIAL CARE,2102715686,
04.09.2017,ADULT SOCIAL CARE,VOYAGE LTD (EVESLEIGH KENT),"-1,462.44",MEM LTS 18-64,"MAND STATUTORY CHARGES, RESIDENTIAL",2102716431,
04.09.2017,ADULT SOCIAL CARE,VOYAGE LTD (EVESLEIGH KENT),"4,595.52",MEM LTS 18-64,RESIDENTIAL CARE,2102716432,
04.09.2017,ADULT SOCIAL CARE,AKARI CARE LTD (BEECHCROFT),-620.20,MEM LTS 65+,COSTS RECOVERED,2102716542,
04.09.2017,ADULT SOCIAL CARE,AKARI CARE LTD (BEECHCROFT),"2,209.48",MEM LTS 65+,NURSING PLACEMENTS FEES,2102716543,
04.09.2017,ADULT SOCIAL CARE,AKARI CARE LTD (BEECHCROFT),620.20,MEM LTS 65+,RECOVERABLE COSTS INCL. HEALTH,2102716544,
04.09.2017,ADULT SOCIAL CARE,ANCHOR TRUST,-537.80,MEM LTS 65+,"MAND STATUTORY CHARGES, RESIDENTIAL",2102716344,
04.09.2017,ADULT SOCIAL CARE,ANCHOR TRUST,-522.80,MEM LTS 65+,"MAND STATUTORY CHARGES, RESIDENTIAL",2102715732,
04.09.2017,ADULT SOCIAL CARE,ANCHOR TRUST,-522.80,MEM LTS 65+,"MAND STATUTORY CHARGES, RESIDENTIAL",2102715955,
04.09.2017,ADULT SOCIAL CARE,ANCHOR TRUST,268.57,MEM LTS 65+,RESIDENTIAL CARE,2102716456,
04.09.2017,ADULT SOCIAL CARE,ANCHOR TRUST,"1,880.00",MEM LTS 65+,RESIDENTIAL CARE,2102716368,
04.09.2017,ADULT SOCIAL CARE,ANCHOR TRUST,"1,963.80",MEM LTS 65+,RESIDENTIAL CARE,2102715606,
04.09.2017,ADULT SOCIAL CARE,ANCHOR TRUST,"1,963.80",MEM LTS 65+,RESIDENTIAL CARE,2102715636,
04.09.2017,ADULT SOCIAL CARE,ANCHOR TRUST,"1,963.80",MEM LTS 65+,RESIDENTIAL CARE,2102715713,
04.09.2017,ADULT SOCIAL CARE,ANCHOR TRUST,"1,963.80",MEM LTS 65+,RESIDENTIAL CARE,2102715731,
04.09.2017,ADULT SOCIAL CARE,ANCHOR TRUST,"1,963.80",MEM LTS 65+,RESIDENTIAL CARE,2102715831,
04.09.2017,ADULT SOCIAL CARE,ANCHOR TRUST,"1,963.80",MEM LTS 65+,RESIDENTIAL CARE,2102715969,
04.09.2017,ADULT SOCIAL CARE,ANCHOR TRUST,"1,963.80",MEM LTS 65+,RESIDENTIAL CARE,2102716238,
04.09.2017,ADULT SOCIAL CARE,ANCHOR TRUST,"1,963.80",MEM LTS 65+,RESIDENTIAL CARE,2102716305,
04.09.2017,ADULT SOCIAL CARE,ANCHOR TRUST,"1,963.80",MEM LTS 65+,RESIDENTIAL CARE,2102716383,
04.09.2017,ADULT SOCIAL CARE,ANCHOR TRUST,"2,030.76",MEM LTS 65+,RESIDENTIAL CARE,2102715514,
04.09.2017,ADULT SOCIAL CARE,ANCHOR TRUST,"2,030.76",MEM LTS 65+,RESIDENTIAL CARE,2102715536,
04.09.2017,ADULT SOCIAL CARE,ANCHOR TRUST,"2,030.76",MEM LTS 65+,RESIDENTIAL CARE,2102715607,
04.09.2017,ADULT SOCIAL CARE,ANCHOR TRUST,"2,030.76",MEM LTS 65+,RESIDENTIAL CARE,2102715616,
04.09.2017,ADULT SOCIAL CARE,ANCHOR TRUST,"2,030.76",MEM LTS 65+,RESIDENTIAL CARE,2102715629,
04.09.2017,ADULT SOCIAL CARE,ANCHOR TRUST,"2,030.76",MEM LTS 65+,RESIDENTIAL CARE,2102715643,
04.09.2017,ADULT SOCIAL CARE,ANCHOR TRUST,"2,030.76",MEM LTS 65+,RESIDENTIAL CARE,2102715682,
04.09.2017,ADULT SOCIAL CARE,ANCHOR TRUST,"2,030.76",MEM LTS 65+,RESIDENTIAL CARE,2102715782,
04.09.2017,ADULT SOCIAL CARE,ANCHOR TRUST,"2,030.76",MEM LTS 65+,RESIDENTIAL CARE,2102715873,
04.09.2017,ADULT SOCIAL CARE,ANCHOR TRUST,"2,030.76",MEM LTS 65+,RESIDENTIAL CARE,2102715929,
04.09.2017,ADULT SOCIAL CARE,ANCHOR TRUST,"2,030.76",MEM LTS 65+,RESIDENTIAL CARE,2102715954,
04.09.2017,ADULT SOCIAL CARE,ANCHOR TRUST,"2,030.76",MEM LTS 65+,RESIDENTIAL CARE,2102715989,
04.09.2017,ADULT SOCIAL CARE,ANCHOR TRUST,"2,030.76",MEM LTS 65+,RESIDENTIAL CARE,2102716150,
04.09.2017,ADULT SOCIAL CARE,ANCHOR TRUST,"2,030.76",MEM LTS 65+,RESIDENTIAL CARE,2102716288,
04.09.2017,ADULT SOCIAL CARE,ANCHOR TRUST,"2,030.76",MEM LTS 65+,RESIDENTIAL CARE,2102716328,
04.09.2017,ADULT SOCIAL CARE,ANCHOR TRUST,"2,030.76",MEM LTS 65+,RESIDENTIAL CARE,2102716343,
04.09.2017,ADULT SOCIAL CARE,ANCHOR TRUST,"2,030.76",MEM LTS 65+,RESIDENTIAL CARE,2102716379,
04.09.2017,ADULT SOCIAL CARE,ANCHOR TRUST,"2,030.76",MEM LTS 65+,RESIDENTIAL CARE,2102716415,
04.09.2017,ADULT SOCIAL CARE,ANCHOR TRUST,"2,030.76",MEM LTS 65+,RESIDENTIAL CARE,2102716420,
04.09.2017,ADULT SOCIAL CARE,ANCHOR TRUST,"2,030.76",MEM LTS 65+,RESIDENTIAL CARE,2102716485,
04.09.2017,ADULT SOCIAL CARE,ANCHOR TRUST,"2,465.92",MEM LTS 65+,RESIDENTIAL CARE,2102715515,
04.09.2017,ADULT SOCIAL CARE,ANCHOR TRUST,"2,730.72",MEM LTS 65+,RESIDENTIAL CARE,2102715728,
04.09.2017,ADULT SOCIAL CARE,ANCHOR TRUST,"2,784.56",MEM LTS 65+,RESIDENTIAL CARE,2102715890,
04.09.2017,ADULT SOCIAL CARE,BELMONT SANDBANKS LTD (MADEIRA LODGE),-816.00,MEM LTS 65+,"MAND STATUTORY CHARGES, RESIDENTIAL",2102715611,
04.09.2017,ADULT SOCIAL CARE,BELMONT SANDBANKS LTD (MADEIRA LODGE),"2,324.52",MEM LTS 65+,RESIDENTIAL CARE,2102715610,
04.09.2017,ADULT SOCIAL CARE,C & P LTD (KIMBERLEY CARE),-522.80,MEM LTS 65+,"MAND STATUTORY CHARGES, RESIDENTIAL",2102716287,
04.09.2017,ADULT SOCIAL CARE,C & P LTD (KIMBERLEY CARE),"2,244.20",MEM LTS 65+,RESIDENTIAL CARE,2102716286,
04.09.2017,ADULT SOCIAL CARE,CASTLEBAR HEALTHCARE LTD,"2,534.04",MEM LTS 65+,NURSING PLACEMENTS FEES,2102715712,
04.09.2017,ADULT SOCIAL CARE,CASTLEBAR HEALTHCARE LTD,"2,534.04",MEM LTS 65+,NURSING PLACEMENTS FEES,2102715794,
04.09.2017,ADULT SOCIAL CARE,CHARLTON PARK (FOUR SEASONS),"-1,037.00",MEM LTS 65+,"MAND STATUTORY CHARGES, NURSING",2102715903,
04.09.2017,ADULT SOCIAL CARE,CHARLTON PARK (FOUR SEASONS),"2,297.48",MEM LTS 65+,NURSING PLACEMENTS FEES,2102715902,
04.09.2017,ADULT SOCIAL CARE,COLLINGWOOD COURT (BUPA CARE HOMES),-620.20,MEM LTS 65+,COSTS RECOVERED,2102716191,
04.09.2017,ADULT SOCIAL CARE,COLLINGWOOD COURT (BUPA CARE HOMES),"3,267.50",MEM LTS 65+,"MAND STATUTORY CHARGES, NURSING",2102716194,
04.09.2017,ADULT SOCIAL CARE,COLLINGWOOD COURT (BUPA CARE HOMES),"2,750.60",MEM LTS 65+,NURSING PLACEMENTS FEES,2102716192,
04.09.2017,ADULT SOCIAL CARE,COLLINGWOOD COURT (BUPA CARE HOMES),620.20,MEM LTS 65+,RECOVERABLE COSTS INCL. HEALTH,2102716193,
04.09.2017,ADULT SOCIAL CARE,ELMWOOD R C H (MISSION CARE),-620.20,MEM LTS 65+,COSTS RECOVERED,2102715926,
04.09.2017,ADULT SOCIAL CARE,ELMWOOD R C H (MISSION CARE),"2,570.40",MEM LTS 65+,NURSING PLACEMENTS FEES,2102715927,
04.09.2017,ADULT SOCIAL CARE,ELMWOOD R C H (MISSION CARE),620.20,MEM LTS 65+,RECOVERABLE COSTS INCL. HEALTH,2102715928,
04.09.2017,ADULT SOCIAL CARE,FIELDSIDE RESIDENTIAL CARE HOME,-541.47,MEM LTS 65+,"MAND STATUTORY CHARGES, RESIDENTIAL",2102715527,
04.09.2017,ADULT SOCIAL CARE,FIELDSIDE RESIDENTIAL CARE HOME,"2,393.87",MEM LTS 65+,RESIDENTIAL CARE,2102715526,
04.09.2017,ADULT SOCIAL CARE,FOUR SEASONS (UPLANDS CARE HOME),-745.60,MEM LTS 65+,"MAND STATUTORY CHARGES, NURSING",2102715525,
04.09.2017,ADULT SOCIAL CARE,FOUR SEASONS (UPLANDS CARE HOME),"2,137.60",MEM LTS 65+,NURSING PLACEMENTS FEES,2102715524,
04.09.2017,ADULT SOCIAL CARE,FOUR SEASONS (UPLANDS CARE HOME),"2,141.00",MEM LTS 65+,RESIDENTIAL CARE,2102715623,
04.09.2017,ADULT SOCIAL CARE,GOLD CARE HOMES (BAUGH HOUSE),"2,137.60",MEM LTS 65+,NURSING PLACEMENTS FEES,2102716398,
04.09.2017,ADULT SOCIAL CARE,HARBLEDOWN LODGE,-620.20,MEM LTS 65+,COSTS RECOVERED,2102715745,
04.09.2017,ADULT SOCIAL CARE,HARBLEDOWN LODGE,-522.80,MEM LTS 65+,"MAND STATUTORY CHARGES, NURSING",2102715747,
04.09.2017,ADULT SOCIAL CARE,HARBLEDOWN LODGE,"2,121.12",MEM LTS 65+,NURSING PLACEMENTS FEES,2102715746,
04.09.2017,ADULT SOCIAL CARE,HARBLEDOWN LODGE,620.20,MEM LTS 65+,RECOVERABLE COSTS INCL. HEALTH,2102716558,
04.09.2017,ADULT SOCIAL CARE,HC-ONE LTD (ALEXANDER CARE CENTRE),-550.08,MEM LTS 65+,"MAND STATUTORY CHARGES, NURSING",2102716111,
04.09.2017,ADULT SOCIAL CARE,HC-ONE LTD (ALEXANDER CARE CENTRE),"2,380.88",MEM LTS 65+,NURSING PLACEMENTS FEES,2102716110,
04.09.2017,ADULT SOCIAL CARE,HC-ONE LTD (TOWER BRIDGE CARE HOME),-620.20,MEM LTS 65+,COSTS RECOVERED,2102715802,
04.09.2017,ADULT SOCIAL CARE,HC-ONE LTD (TOWER BRIDGE CARE HOME),-620.20,MEM LTS 65+,COSTS RECOVERED,2102716479,
04.09.2017,ADULT SOCIAL CARE,HC-ONE LTD (TOWER BRIDGE CARE HOME),"-1,676.60",MEM LTS 65+,"MAND STATUTORY CHARGES, NURSING",2102716213,
04.09.2017,ADULT SOCIAL CARE,HC-ONE LTD (TOWER BRIDGE CARE HOME),-993.44,MEM LTS 65+,"MAND STATUTORY CHARGES, NURSING",2102716036,
04.09.2017,ADULT SOCIAL CARE,HC-ONE LTD (TOWER BRIDGE CARE HOME),-941.76,MEM LTS 65+,"MAND STATUTORY CHARGES, NURSING",2102715432,
04.09.2017,ADULT SOCIAL CARE,HC-ONE LTD (TOWER BRIDGE CARE HOME),-843.72,MEM LTS 65+,"MAND STATUTORY CHARGES, NURSING",2102715387,
04.09.2017,ADULT SOCIAL CARE,HC-ONE LTD (TOWER BRIDGE CARE HOME),-767.32,MEM LTS 65+,"MAND STATUTORY CHARGES, NURSING",2102716196,
04.09.2017,ADULT SOCIAL CARE,HC-ONE LTD (TOWER BRIDGE CARE HOME),-721.36,MEM LTS 65+,"MAND STATUTORY CHARGES, NURSING",2102715998,
04.09.2017,ADULT SOCIAL CARE,HC-ONE LTD (TOWER BRIDGE CARE HOME),-711.72,MEM LTS 65+,"MAND STATUTORY CHARGES, NURSING",2102715805,
04.09.2017,ADULT SOCIAL CARE,HC-ONE LTD (TOWER BRIDGE CARE HOME),-604.56,MEM LTS 65+,"MAND STATUTORY CHARGES, NURSING",2102715580,
04.09.2017,ADULT SOCIAL CARE,HC-ONE LTD (TOWER BRIDGE CARE HOME),-602.12,MEM LTS 65+,"MAND STATUTORY CHARGES, NURSING",2102715420,
04.09.2017,ADULT SOCIAL CARE,HC-ONE LTD (TOWER BRIDGE CARE HOME),-537.80,MEM LTS 65+,"MAND STATUTORY CHARGES, NURSING",2102716125,
04.09.2017,ADULT SOCIAL CARE,HC-ONE LTD (TOWER BRIDGE CARE HOME),-537.80,MEM LTS 65+,"MAND STATUTORY CHARGES, NURSING",2102716482,
04.09.2017,ADULT SOCIAL CARE,HC-ONE LTD (TOWER BRIDGE CARE HOME),-561.80,MEM LTS 65+,"MAND STATUTORY CHARGES, RESIDENTIAL",2102715418,
04.09.2017,ADULT SOCIAL CARE,HC-ONE LTD (TOWER BRIDGE CARE HOME),"1,096.41",MEM LTS 65+,NURSING PLACEMENTS FEES,2102715803,
04.09.2017,ADULT SOCIAL CARE,HC-ONE LTD (TOWER BRIDGE CARE HOME),"2,137.60",MEM LTS 65+,NURSING PLACEMENTS FEES,2102716449,
04.09.2017,ADULT SOCIAL CARE,HC-ONE LTD (TOWER BRIDGE CARE HOME),"2,187.68",MEM LTS 65+,NURSING PLACEMENTS FEES,2102716212,
04.09.2017,ADULT SOCIAL CARE,HC-ONE LTD (TOWER BRIDGE CARE HOME),"2,214.00",MEM LTS 65+,NURSING PLACEMENTS FEES,2102715996,
04.09.2017,ADULT SOCIAL CARE,HC-ONE LTD (TOWER BRIDGE CARE HOME),"2,378.96",MEM LTS 65+,NURSING PLACEMENTS FEES,2102716450,
04.09.2017,ADULT SOCIAL CARE,HC-ONE LTD (TOWER BRIDGE CARE HOME),"2,402.80",MEM LTS 65+,NURSING PLACEMENTS FEES,2102715419,
04.09.2017,ADULT SOCIAL CARE,HC-ONE LTD (TOWER BRIDGE CARE HOME),"2,402.80",MEM LTS 65+,NURSING PLACEMENTS FEES,2102715637,
04.09.2017,ADULT SOCIAL CARE,HC-ONE LTD (TOWER BRIDGE CARE HOME),"2,402.80",MEM LTS 65+,NURSING PLACEMENTS FEES,2102716195,
04.09.2017,ADULT SOCIAL CARE,HC-ONE LTD (TOWER BRIDGE CARE HOME),"2,402.80",MEM LTS 65+,NURSING PLACEMENTS FEES,2102716488,
04.09.2017,ADULT SOCIAL CARE,HC-ONE LTD (TOWER BRIDGE CARE HOME),"2,427.80",MEM LTS 65+,NURSING PLACEMENTS FEES,2102715579,
04.09.2017,ADULT SOCIAL CARE,HC-ONE LTD (TOWER BRIDGE CARE HOME),"2,427.80",MEM LTS 65+,NURSING PLACEMENTS FEES,2102715723,
04.09.2017,ADULT SOCIAL CARE,HC-ONE LTD (TOWER BRIDGE CARE HOME),"2,427.80",MEM LTS 65+,NURSING PLACEMENTS FEES,2102716458,
04.09.2017,ADULT SOCIAL CARE,HC-ONE LTD (TOWER BRIDGE CARE HOME),"2,432.44",MEM LTS 65+,NURSING PLACEMENTS FEES,2102715431,
04.09.2017,ADULT SOCIAL CARE,HC-ONE LTD (TOWER BRIDGE CARE HOME),"2,432.44",MEM LTS 65+,NURSING PLACEMENTS FEES,2102716035,
04.09.2017,ADULT SOCIAL CARE,HC-ONE LTD (TOWER BRIDGE CARE HOME),"2,432.44",MEM LTS 65+,NURSING PLACEMENTS FEES,2102716124,
04.09.2017,ADULT SOCIAL CARE,HC-ONE LTD (TOWER BRIDGE CARE HOME),"2,462.56",MEM LTS 65+,NURSING PLACEMENTS FEES,2102716480,
04.09.2017,ADULT SOCIAL CARE,HC-ONE LTD (TOWER BRIDGE CARE HOME),620.20,MEM LTS 65+,RECOVERABLE COSTS INCL. HEALTH,2102715804,
04.09.2017,ADULT SOCIAL CARE,HC-ONE LTD (TOWER BRIDGE CARE HOME),620.20,MEM LTS 65+,RECOVERABLE COSTS INCL. HEALTH,2102715997,
04.09.2017,ADULT SOCIAL CARE,HC-ONE LTD (TOWER BRIDGE CARE HOME),620.20,MEM LTS 65+,RECOVERABLE COSTS INCL. HEALTH,2102716481,
04.09.2017,ADULT SOCIAL CARE,HC-ONE LTD (TOWER BRIDGE CARE HOME),"2,141.00",MEM LTS 65+,RESIDENTIAL CARE,2102715343,
04.09.2017,ADULT SOCIAL CARE,HC-ONE LTD (TOWER BRIDGE CARE HOME),"2,145.12",MEM LTS 65+,RESIDENTIAL CARE,2102716378,
04.09.2017,ADULT SOCIAL CARE,HC-ONE LTD (TOWER BRIDGE CARE HOME),"2,319.96",MEM LTS 65+,RESIDENTIAL CARE,2102715417,
04.09.2017,ADULT SOCIAL CARE,LAURELS NURSING CARE CENTRE,-620.20,MEM LTS 65+,COSTS RECOVERED,2102716416,
04.09.2017,ADULT SOCIAL CARE,LAURELS NURSING CARE CENTRE,-981.48,MEM LTS 65+,"MAND STATUTORY CHARGES, NURSING",2102715497,
04.09.2017,ADULT SOCIAL CARE,LAURELS NURSING CARE CENTRE,-509.92,MEM LTS 65+,"MAND STATUTORY CHARGES, NURSING",2102716419,
04.09.2017,ADULT SOCIAL CARE,LAURELS NURSING CARE CENTRE,"1,546.60",MEM LTS 65+,NURSING PLACEMENTS FEES,2102716417,
04.09.2017,ADULT SOCIAL CARE,LAURELS NURSING CARE CENTRE,"2,265.56",MEM LTS 65+,NURSING PLACEMENTS FEES,2102715496,
04.09.2017,ADULT SOCIAL CARE,LAURELS NURSING CARE CENTRE,620.20,MEM LTS 65+,RECOVERABLE COSTS INCL. HEALTH,2102716418,
04.09.2017,ADULT SOCIAL CARE,LITTLE SISTERS OF THE POOR,"2,323.24",MEM LTS 65+,RESIDENTIAL CARE,2102715866,
04.09.2017,ADULT SOCIAL CARE,MANLEY COURT NURSING HOME (BUPA),"2,422.48",MEM LTS 65+,NURSING PLACEMENTS FEES,2102716007,
04.09.2017,ADULT SOCIAL CARE,MH HANTS LTD (MAPLE HOUSE),"2,137.60",MEM LTS 65+,NURSING PLACEMENTS FEES,2102716251,
04.09.2017,ADULT SOCIAL CARE,MIHOMECARE LTD,255.32,MEM LTS 65+,HOMECARE - C&V,2102715191,
04.09.2017,ADULT SOCIAL CARE,MIHOMECARE LTD,476.56,MEM LTS 65+,HOMECARE - C&V,2102715170,
04.09.2017,ADULT SOCIAL CARE,MIHOMECARE LTD,544.64,MEM LTS 65+,HOMECARE - C&V,2102715099,
04.09.2017,ADULT SOCIAL CARE,MIHOMECARE LTD,680.80,MEM LTS 65+,HOMECARE - C&V,2102714987,
04.09.2017,ADULT SOCIAL CARE,MIHOMECARE LTD,680.80,MEM LTS 65+,HOMECARE - C&V,2102715098,
04.09.2017,ADULT SOCIAL CARE,MIHOMECARE LTD,680.80,MEM LTS 65+,HOMECARE - C&V,2102715204,
04.09.2017,ADULT SOCIAL CARE,MIHOMECARE LTD,697.84,MEM LTS 65+,HOMECARE - C&V,2102714966,
04.09.2017,ADULT SOCIAL CARE,MIHOMECARE LTD,838.24,MEM LTS 65+,HOMECARE - C&V,2102715285,
04.09.2017,ADULT SOCIAL CARE,MIHOMECARE LTD,859.51,MEM LTS 65+,HOMECARE - C&V,2102715145,
04.09.2017,ADULT SOCIAL CARE,MIHOMECARE LTD,859.51,MEM LTS 65+,HOMECARE - C&V,2102715305,
04.09.2017,ADULT SOCIAL CARE,MIHOMECARE LTD,923.35,MEM LTS 65+,HOMECARE - C&V,2102715059,
04.09.2017,ADULT SOCIAL CARE,MIHOMECARE LTD,970.14,MEM LTS 65+,HOMECARE - C&V,2102715245,
04.09.2017,ADULT SOCIAL CARE,MIHOMECARE LTD,970.16,MEM LTS 65+,HOMECARE - C&V,2102715228,
04.09.2017,ADULT SOCIAL CARE,MIHOMECARE LTD,970.16,MEM LTS 65+,HOMECARE - C&V,2102715279,
04.09.2017,ADULT SOCIAL CARE,MIHOMECARE LTD,987.16,MEM LTS 65+,HOMECARE - C&V,2102715316,
04.09.2017,ADULT SOCIAL CARE,MIHOMECARE LTD,"1,072.28",MEM LTS 65+,HOMECARE - C&V,2102715063,
04.09.2017,ADULT SOCIAL CARE,MIHOMECARE LTD,"1,621.16",MEM LTS 65+,HOMECARE - C&V,2102714973,
04.09.2017,ADULT SOCIAL CARE,MIHOMECARE LTD,"2,663.63",MEM LTS 65+,HOMECARE - C&V,2102714967,
04.09.2017,ADULT SOCIAL CARE,MINSA CARE LTD,"2,087.36",MEM LTS 65+,RESIDENTIAL CARE,2102716190,
04.09.2017,ADULT SOCIAL CARE,NELLSAR LTD,-825.52,MEM LTS 65+,"MAND STATUTORY CHARGES, RESIDENTIAL",2102715897,
04.09.2017,ADULT SOCIAL CARE,NELLSAR LTD,"2,744.56",MEM LTS 65+,RESIDENTIAL CARE,2102715896,
04.09.2017,ADULT SOCIAL CARE,PARKVIEW NURSING HOME,-620.20,MEM LTS 65+,COSTS RECOVERED,2102715664,
04.09.2017,ADULT SOCIAL CARE,PARKVIEW NURSING HOME,"2,402.80",MEM LTS 65+,NURSING PLACEMENTS FEES,2102715570,
04.09.2017,ADULT SOCIAL CARE,PARKVIEW NURSING HOME,"3,000.00",MEM LTS 65+,NURSING PLACEMENTS FEES,2102715665,
04.09.2017,ADULT SOCIAL CARE,PARKVIEW NURSING HOME,620.20,MEM LTS 65+,RECOVERABLE COSTS INCL. HEALTH,2102715666,
04.09.2017,ADULT SOCIAL CARE,PEARTREE CARE CENTRE (EXCELCARE),"-1,085.35",MEM LTS 65+,COSTS RECOVERED,2102715405,
04.09.2017,ADULT SOCIAL CARE,PEARTREE CARE CENTRE (EXCELCARE),"4,900.00",MEM LTS 65+,NURSING PLACEMENTS FEES,2102715406,
04.09.2017,ADULT SOCIAL CARE,PEARTREE CARE CENTRE (EXCELCARE),"1,085.35",MEM LTS 65+,RECOVERABLE COSTS INCL. HEALTH,2102715407,
04.09.2017,ADULT SOCIAL CARE,PEARTREE CARE CENTRE (EXCELCARE),"2,560.00",MEM LTS 65+,RESIDENTIAL CARE,2102716375,
04.09.2017,ADULT SOCIAL CARE,PRIORY GROUP NORTHERN OFFICE,"3,120.56",MEM LTS 65+,NURSING PLACEMENTS FEES,2102715716,
04.09.2017,ADULT SOCIAL CARE,PROFAD CARE AGENCY,593.04,MEM LTS 65+,HOMECARE - SPOT,2102714932,
04.09.2017,ADULT SOCIAL CARE,RIVERLEE CARE HOME,-620.20,MEM LTS 65+,COSTS RECOVERED,2102715698,
04.09.2017,ADULT SOCIAL CARE,RIVERLEE CARE HOME,-647.64,MEM LTS 65+,"MAND STATUTORY CHARGES, NURSING",2102715701,
04.09.2017,ADULT SOCIAL CARE,RIVERLEE CARE HOME,"2,137.60",MEM LTS 65+,NURSING PLACEMENTS FEES,2102715895,
04.09.2017,ADULT SOCIAL CARE,RIVERLEE CARE HOME,"2,600.00",MEM LTS 65+,NURSING PLACEMENTS FEES,2102715699,
04.09.2017,ADULT SOCIAL CARE,RIVERLEE CARE HOME,620.20,MEM LTS 65+,RECOVERABLE COSTS INCL. HEALTH,2102715700,
04.09.2017,ADULT SOCIAL CARE,SOUTH EAST LONDON BAPTIST HOME,"-1,424.88",MEM LTS 65+,"MAND STATUTORY CHARGES, RESIDENTIAL",2102716360,
04.09.2017,ADULT SOCIAL CARE,SOUTH EAST LONDON BAPTIST HOME,-631.36,MEM LTS 65+,"MAND STATUTORY CHARGES, RESIDENTIAL",2102716039,
04.09.2017,ADULT SOCIAL CARE,SOUTH EAST LONDON BAPTIST HOME,-537.80,MEM LTS 65+,"MAND STATUTORY CHARGES, RESIDENTIAL",2102716303,
04.09.2017,ADULT SOCIAL CARE,SOUTH EAST LONDON BAPTIST HOME,"2,217.60",MEM LTS 65+,RESIDENTIAL CARE,2102716359,
04.09.2017,ADULT SOCIAL CARE,SOUTH EAST LONDON BAPTIST HOME,"2,323.24",MEM LTS 65+,RESIDENTIAL CARE,2102716038,
04.09.2017,ADULT SOCIAL CARE,SOUTH EAST LONDON BAPTIST HOME,"2,533.44",MEM LTS 65+,RESIDENTIAL CARE,2102716302,
04.09.2017,ADULT SOCIAL CARE,ST MARY'S CARE HOMES,"-1,461.90",MEM LTS 65+,COSTS RECOVERED,2102715947,
04.09.2017,ADULT SOCIAL CARE,ST MARY'S CARE HOMES,"-1,322.17",MEM LTS 65+,"MAND STATUTORY CHARGES, NURSING",2102715950,
04.09.2017,ADULT SOCIAL CARE,ST MARY'S CARE HOMES,"5,769.25",MEM LTS 65+,NURSING PLACEMENTS FEES,2102715948,
04.09.2017,ADULT SOCIAL CARE,ST MARY'S CARE HOMES,"1,461.90",MEM LTS 65+,RECOVERABLE COSTS INCL. HEALTH,2102715949,
04.09.2017,ADULT SOCIAL CARE,VOYAGE LTD (EVESLEIGH KENT),"4,550.80",MEM LTS 65+,RESIDENTIAL CARE,2102716404,
04.09.2017,ADULT SOCIAL CARE,WATERFIELD SUPPORTED HOMES LTD,"3,251.24",MEM LTS 65+,RESIDENTIAL CARE,2102716297,
04.09.2017,ADULT SOCIAL CARE,WESTMINSTER HEALTH CARE LTD,-596.16,MEM LTS 65+,"MAND STATUTORY CHARGES, RESIDENTIAL",2102716204,
04.09.2017,ADULT SOCIAL CARE,WESTMINSTER HEALTH CARE LTD,"2,449.00",MEM LTS 65+,RESIDENTIAL CARE,2102716203,
04.09.2017,ADULT SOCIAL CARE,YARA ENTERPRISES LTD,-778.48,MEM LTS 65+,"MAND STATUTORY CHARGES, RESIDENTIAL",2102716234,
04.09.2017,ADULT SOCIAL CARE,YARA ENTERPRISES LTD,"2,280.08",MEM LTS 65+,RESIDENTIAL CARE,2102716233,
04.09.2017,ADULT SOCIAL CARE,YOUTH GRACES (UK) LTD,675.64,MEM LTS 65+,HOMECARE - C&V,2102714880,
04.09.2017,ADULT SOCIAL CARE,COLLINGWOOD COURT (BUPA CARE HOMES),-620.20,MH LTS 18-64,COSTS RECOVERED,2102716536,
04.09.2017,ADULT SOCIAL CARE,COLLINGWOOD COURT (BUPA CARE HOMES),-323.00,MH LTS 18-64,"MAND STATUTORY CHARGES, NURSING",2102715600,
04.09.2017,ADULT SOCIAL CARE,COLLINGWOOD COURT (BUPA CARE HOMES),"2,715.52",MH LTS 18-64,NURSING PLACEMENTS FEES,2102715601,
04.09.2017,ADULT SOCIAL CARE,COLLINGWOOD COURT (BUPA CARE HOMES),"3,067.76",MH LTS 18-64,NURSING PLACEMENTS FEES,2102716537,
04.09.2017,ADULT SOCIAL CARE,COLLINGWOOD COURT (BUPA CARE HOMES),620.20,MH LTS 18-64,RECOVERABLE COSTS INCL. HEALTH,2102716535,
04.09.2017,ADULT SOCIAL CARE,EQUINOX,"1,700.00",MH LTS 18-64,RESIDENTIAL CARE,2102716326,
04.09.2017,ADULT SOCIAL CARE,HAVELOCK COURT (BUPA CARE),"1,776.00",MH LTS 18-64,NURSING PLACEMENTS FEES,2102715762,
04.09.2017,ADULT SOCIAL CARE,HC-ONE LTD (TOWER BRIDGE CARE HOME),-620.20,MH LTS 18-64,COSTS RECOVERED,2102715368,
04.09.2017,ADULT SOCIAL CARE,HC-ONE LTD (TOWER BRIDGE CARE HOME),-522.80,MH LTS 18-64,"MAND STATUTORY CHARGES, NURSING",2102715369,
04.09.2017,ADULT SOCIAL CARE,HC-ONE LTD (TOWER BRIDGE CARE HOME),"2,457.40",MH LTS 18-64,NURSING PLACEMENTS FEES,2102715370,
04.09.2017,ADULT SOCIAL CARE,HC-ONE LTD (TOWER BRIDGE CARE HOME),620.20,MH LTS 18-64,RECOVERABLE COSTS INCL. HEALTH,2102715367,
04.09.2017,ADULT SOCIAL CARE,HIGH VIEW CARE SERVICES LTD,"6,771.52",MH LTS 18-64,RESIDENTIAL CARE,2102715353,
04.09.2017,ADULT SOCIAL CARE,KINGS LODGE,"4,452.92",MH LTS 18-64,NURSING PLACEMENTS FEES,2102715706,
04.09.2017,ADULT SOCIAL CARE,MIHOMECARE LTD,323.40,MH LTS 18-64,HOMECARE - C&V,2102715262,
04.09.2017,ADULT SOCIAL CARE,PROFAD CARE AGENCY,386.28,MH LTS 18-64,HOMECARE - SPOT,2102714916,
04.09.2017,ADULT SOCIAL CARE,PROFAD CARE AGENCY,662.13,MH LTS 18-64,HOMECARE - SPOT,2102714909,
04.09.2017,ADULT SOCIAL CARE,SAFFRONLAND HOMES,293.44,MH LTS 18-64,OTHER PAYMENTS FOR CLIENTS,2102715822,
04.09.2017,ADULT SOCIAL CARE,THE CHILTERNS - OPTIMA CARE,"10,095.96",MH LTS 18-64,RESIDENTIAL CARE,2102716407,
04.09.2017,ADULT SOCIAL CARE,1ST CHOICE CARE HOMES,-588.36,MH LTS 65+,"MAND STATUTORY CHARGES, NURSING",2102715816,
04.09.2017,ADULT SOCIAL CARE,1ST CHOICE CARE HOMES,"2,080.60",MH LTS 65+,NURSING PLACEMENTS FEES,2102715817,
04.09.2017,ADULT SOCIAL CARE,ABBOTSLEIGH MEWS (BUPA),"2,273.60",MH LTS 65+,RESIDENTIAL CARE,2102716042,
04.09.2017,ADULT SOCIAL CARE,ANCHOR TRUST,"1,818.00",MH LTS 65+,RESIDENTIAL CARE,2102715385,
04.09.2017,ADULT SOCIAL CARE,ANCHOR TRUST,"1,880.00",MH LTS 65+,RESIDENTIAL CARE,2102716089,
04.09.2017,ADULT SOCIAL CARE,ANCHOR TRUST,"1,963.80",MH LTS 65+,RESIDENTIAL CARE,2102715388,
04.09.2017,ADULT SOCIAL CARE,ANCHOR TRUST,"1,963.80",MH LTS 65+,RESIDENTIAL CARE,2102715531,
04.09.2017,ADULT SOCIAL CARE,ANCHOR TRUST,"1,963.80",MH LTS 65+,RESIDENTIAL CARE,2102715739,
04.09.2017,ADULT SOCIAL CARE,ANCHOR TRUST,"1,963.80",MH LTS 65+,RESIDENTIAL CARE,2102715778,
04.09.2017,ADULT SOCIAL CARE,ANCHOR TRUST,"1,963.80",MH LTS 65+,RESIDENTIAL CARE,2102715818,
04.09.2017,ADULT SOCIAL CARE,ANCHOR TRUST,"1,963.80",MH LTS 65+,RESIDENTIAL CARE,2102716296,
04.09.2017,ADULT SOCIAL CARE,ANCHOR TRUST,"2,030.76",MH LTS 65+,RESIDENTIAL CARE,2102715504,
04.09.2017,ADULT SOCIAL CARE,ANCHOR TRUST,"2,030.76",MH LTS 65+,RESIDENTIAL CARE,2102715846,
04.09.2017,ADULT SOCIAL CARE,ANCHOR TRUST,"2,030.76",MH LTS 65+,RESIDENTIAL CARE,2102715854,
04.09.2017,ADULT SOCIAL CARE,ANCHOR TRUST,"2,030.76",MH LTS 65+,RESIDENTIAL CARE,2102715858,
04.09.2017,ADULT SOCIAL CARE,ANCHOR TRUST,"2,030.76",MH LTS 65+,RESIDENTIAL CARE,2102715899,
04.09.2017,ADULT SOCIAL CARE,ANCHOR TRUST,"2,030.76",MH LTS 65+,RESIDENTIAL CARE,2102716006,
04.09.2017,ADULT SOCIAL CARE,ANCHOR TRUST,"2,030.76",MH LTS 65+,RESIDENTIAL CARE,2102716077,
04.09.2017,ADULT SOCIAL CARE,ANCHOR TRUST,"2,030.76",MH LTS 65+,RESIDENTIAL CARE,2102716509,
04.09.2017,ADULT SOCIAL CARE,BENNETTS CASTLE CARE HOME,"2,424.80",MH LTS 65+,NURSING PLACEMENTS FEES,2102716489,
04.09.2017,ADULT SOCIAL CARE,BUPA CARE SERVICES (EGLANTINE VILLA),-537.80,MH LTS 65+,"MAND STATUTORY CHARGES, RESIDENTIAL",2102715853,
04.09.2017,ADULT SOCIAL CARE,BUPA CARE SERVICES (EGLANTINE VILLA),"2,087.36",MH LTS 65+,RESIDENTIAL CARE,2102715852,
04.09.2017,ADULT SOCIAL CARE,CARE UK,-537.80,MH LTS 65+,"MAND STATUTORY CHARGES, RESIDENTIAL",2102715379,
04.09.2017,ADULT SOCIAL CARE,CARE UK,"2,558.76",MH LTS 65+,RESIDENTIAL CARE,2102715378,
04.09.2017,ADULT SOCIAL CARE,COPPERMILL CARE LTD,-614.24,MH LTS 65+,"MAND STATUTORY CHARGES, RESIDENTIAL",2102716389,
04.09.2017,ADULT SOCIAL CARE,COPPERMILL CARE LTD,"2,221.00",MH LTS 65+,RESIDENTIAL CARE,2102716388,
04.09.2017,ADULT SOCIAL CARE,DEEPDENE CARE LTD,-634.32,MH LTS 65+,"MAND STATUTORY CHARGES, RESIDENTIAL",2102716285,
04.09.2017,ADULT SOCIAL CARE,DEEPDENE CARE LTD,"3,248.00",MH LTS 65+,RESIDENTIAL CARE,2102716284,
04.09.2017,ADULT SOCIAL CARE,ELIZABETH PETERS CARE HOME,"2,278.84",MH LTS 65+,RESIDENTIAL CARE,2102715693,
04.09.2017,ADULT SOCIAL CARE,EQUINOX,"1,015.00",MH LTS 65+,RESIDENTIAL CARE,2102715591,
04.09.2017,ADULT SOCIAL CARE,FIELDSIDE RESIDENTIAL CARE HOME,-590.32,MH LTS 65+,"MAND STATUTORY CHARGES, RESIDENTIAL",2102715826,
04.09.2017,ADULT SOCIAL CARE,FIELDSIDE RESIDENTIAL CARE HOME,"2,277.88",MH LTS 65+,RESIDENTIAL CARE,2102715825,
04.09.2017,ADULT SOCIAL CARE,GREENHILL CARE HOME,-620.20,MH LTS 65+,COSTS RECOVERED,2102715575,
04.09.2017,ADULT SOCIAL CARE,GREENHILL CARE HOME,-772.12,MH LTS 65+,"MAND STATUTORY CHARGES, NURSING",2102715573,
04.09.2017,ADULT SOCIAL CARE,GREENHILL CARE HOME,"2,480.64",MH LTS 65+,NURSING PLACEMENTS FEES,2102715576,
04.09.2017,ADULT SOCIAL CARE,GREENHILL CARE HOME,620.20,MH LTS 65+,RECOVERABLE COSTS INCL. HEALTH,2102715574,
04.09.2017,ADULT SOCIAL CARE,HC-ONE LTD (ALEXANDER CARE CENTRE),"2,436.00",MH LTS 65+,RESIDENTIAL CARE,2102715722,
04.09.2017,ADULT SOCIAL CARE,HC-ONE LTD (TOWER BRIDGE CARE HOME),-620.20,MH LTS 65+,COSTS RECOVERED,2102715463,
04.09.2017,ADULT SOCIAL CARE,HC-ONE LTD (TOWER BRIDGE CARE HOME),-620.20,MH LTS 65+,COSTS RECOVERED,2102716362,
04.09.2017,ADULT SOCIAL CARE,HC-ONE LTD (TOWER BRIDGE CARE HOME),-537.80,MH LTS 65+,"MAND STATUTORY CHARGES, NURSING",2102716464,
04.09.2017,ADULT SOCIAL CARE,HC-ONE LTD (TOWER BRIDGE CARE HOME),-522.80,MH LTS 65+,"MAND STATUTORY CHARGES, NURSING",2102715408,
04.09.2017,ADULT SOCIAL CARE,HC-ONE LTD (TOWER BRIDGE CARE HOME),-321.80,MH LTS 65+,"MAND STATUTORY CHARGES, NURSING",2102715461,
04.09.2017,ADULT SOCIAL CARE,HC-ONE LTD (TOWER BRIDGE CARE HOME),"2,183.00",MH LTS 65+,NURSING PLACEMENTS FEES,2102716145,
04.09.2017,ADULT SOCIAL CARE,HC-ONE LTD (TOWER BRIDGE CARE HOME),"2,397.20",MH LTS 65+,NURSING PLACEMENTS FEES,2102715464,
04.09.2017,ADULT SOCIAL CARE,HC-ONE LTD (TOWER BRIDGE CARE HOME),"2,402.80",MH LTS 65+,NURSING PLACEMENTS FEES,2102715975,
04.09.2017,ADULT SOCIAL CARE,HC-ONE LTD (TOWER BRIDGE CARE HOME),"2,427.80",MH LTS 65+,NURSING PLACEMENTS FEES,2102715409,
04.09.2017,ADULT SOCIAL CARE,HC-ONE LTD (TOWER BRIDGE CARE HOME),"2,427.80",MH LTS 65+,NURSING PLACEMENTS FEES,2102716465,
04.09.2017,ADULT SOCIAL CARE,HC-ONE LTD (TOWER BRIDGE CARE HOME),"2,432.44",MH LTS 65+,NURSING PLACEMENTS FEES,2102715386,
04.09.2017,ADULT SOCIAL CARE,HC-ONE LTD (TOWER BRIDGE CARE HOME),"2,432.44",MH LTS 65+,NURSING PLACEMENTS FEES,2102715439,
04.09.2017,ADULT SOCIAL CARE,HC-ONE LTD (TOWER BRIDGE CARE HOME),"2,432.44",MH LTS 65+,NURSING PLACEMENTS FEES,2102715452,
04.09.2017,ADULT SOCIAL CARE,HC-ONE LTD (TOWER BRIDGE CARE HOME),"2,432.44",MH LTS 65+,NURSING PLACEMENTS FEES,2102716076,
04.09.2017,ADULT SOCIAL CARE,HC-ONE LTD (TOWER BRIDGE CARE HOME),"2,432.44",MH LTS 65+,NURSING PLACEMENTS FEES,2102716510,
04.09.2017,ADULT SOCIAL CARE,HC-ONE LTD (TOWER BRIDGE CARE HOME),"2,518.51",MH LTS 65+,NURSING PLACEMENTS FEES,2102716363,
04.09.2017,ADULT SOCIAL CARE,HC-ONE LTD (TOWER BRIDGE CARE HOME),620.20,MH LTS 65+,RECOVERABLE COSTS INCL. HEALTH,2102715462,
04.09.2017,ADULT SOCIAL CARE,HC-ONE LTD (TOWER BRIDGE CARE HOME),620.20,MH LTS 65+,RECOVERABLE COSTS INCL. HEALTH,2102716361,
04.09.2017,ADULT SOCIAL CARE,HC-ONE LTD (TOWER BRIDGE CARE HOME),"2,145.12",MH LTS 65+,RESIDENTIAL CARE,2102716053,
04.09.2017,ADULT SOCIAL CARE,HC-ONE LTD (TOWER BRIDGE CARE HOME),"2,341.60",MH LTS 65+,RESIDENTIAL CARE,2102715942,
04.09.2017,ADULT SOCIAL CARE,LAURELS NURSING CARE CENTRE,-611.24,MH LTS 65+,"MAND STATUTORY CHARGES, NURSING",2102715789,
04.09.2017,ADULT SOCIAL CARE,LAURELS NURSING CARE CENTRE,-537.80,MH LTS 65+,"MAND STATUTORY CHARGES, NURSING",2102716427,
04.09.2017,ADULT SOCIAL CARE,LAURELS NURSING CARE CENTRE,"2,555.04",MH LTS 65+,NURSING PLACEMENTS FEES,2102715790,
04.09.2017,ADULT SOCIAL CARE,LAURELS NURSING CARE CENTRE,"2,555.04",MH LTS 65+,NURSING PLACEMENTS FEES,2102716428,
04.09.2017,ADULT SOCIAL CARE,MIHOMECARE LTD,340.40,MH LTS 65+,HOMECARE - C&V,2102714984,
04.09.2017,ADULT SOCIAL CARE,MIHOMECARE LTD,476.56,MH LTS 65+,HOMECARE - C&V,2102715186,
04.09.2017,ADULT SOCIAL CARE,MIHOMECARE LTD,953.12,MH LTS 65+,HOMECARE - C&V,2102715314,
04.09.2017,ADULT SOCIAL CARE,PARKVIEW NURSING HOME,-537.80,MH LTS 65+,"MAND STATUTORY CHARGES, NURSING",2102715981,
04.09.2017,ADULT SOCIAL CARE,PARKVIEW NURSING HOME,"2,432.44",MH LTS 65+,NURSING PLACEMENTS FEES,2102715982,
04.09.2017,ADULT SOCIAL CARE,PARKVIEW NURSING HOME,"2,439.40",MH LTS 65+,NURSING PLACEMENTS FEES,2102716242,
04.09.2017,ADULT SOCIAL CARE,PORTELET CARE LTD,-537.80,MH LTS 65+,"MAND STATUTORY CHARGES, RESIDENTIAL",2102715477,
04.09.2017,ADULT SOCIAL CARE,PORTELET CARE LTD,"2,277.88",MH LTS 65+,RESIDENTIAL CARE,2102715476,
04.09.2017,ADULT SOCIAL CARE,REDACTED PERSONAL DATA,"1,184.12",MH LTS 65+,NURSING PLACEMENTS FEES,2102716457,
04.09.2017,ADULT SOCIAL CARE,REDACTED PERSONAL DATA,"2,307.60",MH LTS 65+,NURSING PLACEMENTS FEES,2102716451,
04.09.2017,ADULT SOCIAL CARE,ROSENMANOR LTD,"2,087.36",MH LTS 65+,RESIDENTIAL CARE,2102716540,
04.09.2017,ADULT SOCIAL CARE,ROSENMANOR LTD,"3,103.48",MH LTS 65+,RESIDENTIAL CARE,2102715850,
04.09.2017,ADULT SOCIAL CARE,SCARSDALE GRANGE NURSING HOME,"2,137.60",MH LTS 65+,NURSING PLACEMENTS FEES,2102715893,
04.09.2017,ADULT SOCIAL CARE,SOUTH EAST LONDON BAPTIST HOME,-574.28,MH LTS 65+,"MAND STATUTORY CHARGES, RESIDENTIAL",2102716123,
04.09.2017,ADULT SOCIAL CARE,SOUTH EAST LONDON BAPTIST HOME,"2,660.12",MH LTS 65+,RESIDENTIAL CARE,2102716122,
04.09.2017,ADULT SOCIAL CARE,THE ROYAL STAR AND GARTER HOMES,-755.96,MH LTS 65+,"MAND STATUTORY CHARGES, NURSING",2102716031,
04.09.2017,ADULT SOCIAL CARE,THE ROYAL STAR AND GARTER HOMES,"2,361.64",MH LTS 65+,NURSING PLACEMENTS FEES,2102716032,
04.09.2017,ADULT SOCIAL CARE,WOODHAM ENTERPRISES LTD,"2,952.44",MH LTS 65+,RESIDENTIAL CARE,2102715753,
04.09.2017,ADULT SOCIAL CARE,YOUTH GRACES (UK) LTD,263.16,MH LTS 65+,HOMECARE - SPOT,2102714862,
04.09.2017,ADULT SOCIAL CARE,ANCHOR TRUST,771.49,PHY LTS 18-64,RESIDENTIAL CARE,2102716528,
04.09.2017,ADULT SOCIAL CARE,AVERY HOMES (NELSON) LTD - MERLIN COURT,-323.00,PHY LTS 18-64,"MAND STATUTORY CHARGES, RESIDENTIAL",2102716294,
04.09.2017,ADULT SOCIAL CARE,AVERY HOMES (NELSON) LTD - MERLIN COURT,"2,828.00",PHY LTS 18-64,RESIDENTIAL CARE,2102716295,
04.09.2017,ADULT SOCIAL CARE,BLACK SWAN CARE GROUP,-323.00,PHY LTS 18-64,"MAND STATUTORY CHARGES, RESIDENTIAL",2102715769,
04.09.2017,ADULT SOCIAL CARE,BLACK SWAN CARE GROUP,"4,697.80",PHY LTS 18-64,RESIDENTIAL CARE,2102715770,
04.09.2017,ADULT SOCIAL CARE,BRITISH HOME & HOSPITAL FOR INCURABLES,-764.56,PHY LTS 18-64,"MAND STATUTORY CHARGES, NURSING",2102716155,
04.09.2017,ADULT SOCIAL CARE,BRITISH HOME & HOSPITAL FOR INCURABLES,-537.80,PHY LTS 18-64,"MAND STATUTORY CHARGES, NURSING",2102716217,
04.09.2017,ADULT SOCIAL CARE,BRITISH HOME & HOSPITAL FOR INCURABLES,"2,925.72",PHY LTS 18-64,NURSING PLACEMENTS FEES,2102716216,
04.09.2017,ADULT SOCIAL CARE,BRITISH HOME & HOSPITAL FOR INCURABLES,"2,951.60",PHY LTS 18-64,NURSING PLACEMENTS FEES,2102716154,
04.09.2017,ADULT SOCIAL CARE,BROOK HOUSE CARE HOME,-620.20,PHY LTS 18-64,COSTS RECOVERED,2102715915,
04.09.2017,ADULT SOCIAL CARE,BROOK HOUSE CARE HOME,"3,000.00",PHY LTS 18-64,NURSING PLACEMENTS FEES,2102715917,
04.09.2017,ADULT SOCIAL CARE,BROOK HOUSE CARE HOME,620.20,PHY LTS 18-64,RECOVERABLE COSTS INCL. HEALTH,2102715916,
04.09.2017,ADULT SOCIAL CARE,COLLINGWOOD COURT (BUPA CARE HOMES),-620.20,PHY LTS 18-64,COSTS RECOVERED,2102715813,
04.09.2017,ADULT SOCIAL CARE,COLLINGWOOD COURT (BUPA CARE HOMES),"2,203.76",PHY LTS 18-64,NURSING PLACEMENTS FEES,2102715323,
04.09.2017,ADULT SOCIAL CARE,COLLINGWOOD COURT (BUPA CARE HOMES),"2,775.00",PHY LTS 18-64,NURSING PLACEMENTS FEES,2102715815,
04.09.2017,ADULT SOCIAL CARE,COLLINGWOOD COURT (BUPA CARE HOMES),620.20,PHY LTS 18-64,RECOVERABLE COSTS INCL. HEALTH,2102715814,
04.09.2017,ADULT SOCIAL CARE,DISABILITIES TRUST,-830.36,PHY LTS 18-64,"MAND STATUTORY CHARGES, NURSING",2102715810,
04.09.2017,ADULT SOCIAL CARE,DISABILITIES TRUST,"6,707.44",PHY LTS 18-64,NURSING PLACEMENTS FEES,2102715809,
04.09.2017,ADULT SOCIAL CARE,DOLPHIN HOMES LTD,"1,064.28",PHY LTS 18-64,OTHER PAYMENTS FOR CLIENTS,2102715901,
04.09.2017,ADULT SOCIAL CARE,DOLPHIN HOMES LTD,"9,064.93",PHY LTS 18-64,RESIDENTIAL CARE,2102715900,
04.09.2017,ADULT SOCIAL CARE,DUNDEE CITY COUNCIL,-323.00,PHY LTS 18-64,"MAND STATUTORY CHARGES, NURSING",2102715703,
04.09.2017,ADULT SOCIAL CARE,DUNDEE CITY COUNCIL,"2,029.48",PHY LTS 18-64,NURSING PLACEMENTS FEES,2102715702,
04.09.2017,ADULT SOCIAL CARE,ELIZABETH HOUSE & ROBERTA HOUSE,"-4,276.82",PHY LTS 18-64,"MAND STATUTORY CHARGES, RESIDENTIAL",2102716277,
04.09.2017,ADULT SOCIAL CARE,ELIZABETH HOUSE & ROBERTA HOUSE,"4,400.00",PHY LTS 18-64,RESIDENTIAL CARE,2102715440,
04.09.2017,ADULT SOCIAL CARE,ELIZABETH HOUSE & ROBERTA HOUSE,"7,656.00",PHY LTS 18-64,RESIDENTIAL CARE,2102716278,
04.09.2017,ADULT SOCIAL CARE,ELMS NURSING HOME,"2,318.60",PHY LTS 18-64,NURSING PLACEMENTS FEES,2102716115,
04.09.2017,ADULT SOCIAL CARE,FOUR SEASONS (2000) LTD,-620.20,PHY LTS 18-64,COSTS RECOVERED,2102715478,
04.09.2017,ADULT SOCIAL CARE,FOUR SEASONS (2000) LTD,-522.80,PHY LTS 18-64,"MAND STATUTORY CHARGES, NURSING",2102715481,
04.09.2017,ADULT SOCIAL CARE,FOUR SEASONS (2000) LTD,-328.24,PHY LTS 18-64,"MAND STATUTORY CHARGES, NURSING",2102715639,
04.09.2017,ADULT SOCIAL CARE,FOUR SEASONS (2000) LTD,"1,928.04",PHY LTS 18-64,NURSING PLACEMENTS FEES,2102716004,
04.09.2017,ADULT SOCIAL CARE,FOUR SEASONS (2000) LTD,"1,970.64",PHY LTS 18-64,NURSING PLACEMENTS FEES,2102715480,
04.09.2017,ADULT SOCIAL CARE,FOUR SEASONS (2000) LTD,"2,147.64",PHY LTS 18-64,NURSING PLACEMENTS FEES,2102715638,
04.09.2017,ADULT SOCIAL CARE,FOUR SEASONS (2000) LTD,620.20,PHY LTS 18-64,RECOVERABLE COSTS INCL. HEALTH,2102715479,
04.09.2017,ADULT SOCIAL CARE,FOUR SEASONS (2000) LTD,"2,367.44",PHY LTS 18-64,RESIDENTIAL CARE,2102716227,
04.09.2017,ADULT SOCIAL CARE,HAVELOCK COURT (BUPA CARE),"2,992.28",PHY LTS 18-64,NURSING PLACEMENTS FEES,2102715449,
04.09.2017,ADULT SOCIAL CARE,HAVELOCK COURT (BUPA CARE),"3,111.24",PHY LTS 18-64,NURSING PLACEMENTS FEES,2102715339,
04.09.2017,ADULT SOCIAL CARE,HAVELOCK COURT (BUPA CARE),"3,356.44",PHY LTS 18-64,NURSING PLACEMENTS FEES,2102716342,
04.09.2017,ADULT SOCIAL CARE,HAVELOCK COURT (BUPA CARE),"3,658.56",PHY LTS 18-64,NURSING PLACEMENTS FEES,2102716448,
04.09.2017,ADULT SOCIAL CARE,HIGH VIEW CARE SERVICES LTD,"4,848.00",PHY LTS 18-64,RESIDENTIAL CARE,2102716325,
04.09.2017,ADULT SOCIAL CARE,HORNCASTLE CARE CENTRE,"7,625.16",PHY LTS 18-64,NURSING PLACEMENTS FEES,2102716372,
04.09.2017,ADULT SOCIAL CARE,KINGS LODGE,-793.64,PHY LTS 18-64,"MAND STATUTORY CHARGES, NURSING",2102715628,
04.09.2017,ADULT SOCIAL CARE,KINGS LODGE,"4,447.68",PHY LTS 18-64,NURSING PLACEMENTS FEES,2102715627,
04.09.2017,ADULT SOCIAL CARE,LEONARD CHESHIRE DISABILITY,"4,194.96",PHY LTS 18-64,RESIDENTIAL CARE,2102715968,
04.09.2017,ADULT SOCIAL CARE,LOVE WALK HOSTEL FOR DISABLED,-400.60,PHY LTS 18-64,"MAND STATUTORY CHARGES, RESIDENTIAL",2102715505,
04.09.2017,ADULT SOCIAL CARE,LOVE WALK HOSTEL FOR DISABLED,-323.00,PHY LTS 18-64,"MAND STATUTORY CHARGES, RESIDENTIAL",2102715784,
04.09.2017,ADULT SOCIAL CARE,LOVE WALK HOSTEL FOR DISABLED,"3,131.00",PHY LTS 18-64,RESIDENTIAL CARE,2102715785,
04.09.2017,ADULT SOCIAL CARE,LOVE WALK HOSTEL FOR DISABLED,"3,131.00",PHY LTS 18-64,RESIDENTIAL CARE,2102715847,
04.09.2017,ADULT SOCIAL CARE,LOVE WALK HOSTEL FOR DISABLED,"3,131.00",PHY LTS 18-64,RESIDENTIAL CARE,2102716365,
04.09.2017,ADULT SOCIAL CARE,LOVE WALK HOSTEL FOR DISABLED,"3,240.00",PHY LTS 18-64,RESIDENTIAL CARE,2102715506,
04.09.2017,ADULT SOCIAL CARE,LOVE WALK HOSTEL FOR DISABLED,"3,240.00",PHY LTS 18-64,RESIDENTIAL CARE,2102715668,
04.09.2017,ADULT SOCIAL CARE,MANLEY COURT NURSING HOME (BUPA),"3,284.72",PHY LTS 18-64,NURSING PLACEMENTS FEES,2102716226,
04.09.2017,ADULT SOCIAL CARE,MIHOMECARE LTD,297.85,PHY LTS 18-64,HOMECARE - C&V,2102715321,
04.09.2017,ADULT SOCIAL CARE,MIHOMECARE LTD,323.40,PHY LTS 18-64,HOMECARE - C&V,2102715291,
04.09.2017,ADULT SOCIAL CARE,MIHOMECARE LTD,340.40,PHY LTS 18-64,HOMECARE - C&V,2102715175,
04.09.2017,ADULT SOCIAL CARE,MIHOMECARE LTD,357.42,PHY LTS 18-64,HOMECARE - C&V,2102715026,
04.09.2017,ADULT SOCIAL CARE,MIHOMECARE LTD,357.44,PHY LTS 18-64,HOMECARE - C&V,2102715057,
04.09.2017,ADULT SOCIAL CARE,MIHOMECARE LTD,378.70,PHY LTS 18-64,HOMECARE - C&V,2102714965,
04.09.2017,ADULT SOCIAL CARE,MIHOMECARE LTD,425.50,PHY LTS 18-64,HOMECARE - C&V,2102715161,
04.09.2017,ADULT SOCIAL CARE,MIHOMECARE LTD,425.52,PHY LTS 18-64,HOMECARE - C&V,2102715150,
04.09.2017,ADULT SOCIAL CARE,MIHOMECARE LTD,442.52,PHY LTS 18-64,HOMECARE - C&V,2102715004,
04.09.2017,ADULT SOCIAL CARE,MIHOMECARE LTD,468.06,PHY LTS 18-64,HOMECARE - C&V,2102715011,
04.09.2017,ADULT SOCIAL CARE,MIHOMECARE LTD,476.56,PHY LTS 18-64,HOMECARE - C&V,2102714997,
04.09.2017,ADULT SOCIAL CARE,MIHOMECARE LTD,510.60,PHY LTS 18-64,HOMECARE - C&V,2102715227,
04.09.2017,ADULT SOCIAL CARE,MIHOMECARE LTD,527.64,PHY LTS 18-64,HOMECARE - C&V,2102715283,
04.09.2017,ADULT SOCIAL CARE,MIHOMECARE LTD,548.91,PHY LTS 18-64,HOMECARE - C&V,2102714992,
04.09.2017,ADULT SOCIAL CARE,MIHOMECARE LTD,561.68,PHY LTS 18-64,HOMECARE - C&V,2102715139,
04.09.2017,ADULT SOCIAL CARE,MIHOMECARE LTD,595.72,PHY LTS 18-64,HOMECARE - C&V,2102714937,
04.09.2017,ADULT SOCIAL CARE,MIHOMECARE LTD,595.72,PHY LTS 18-64,HOMECARE - C&V,2102715092,
04.09.2017,ADULT SOCIAL CARE,MIHOMECARE LTD,612.72,PHY LTS 18-64,HOMECARE - C&V,2102715196,
04.09.2017,ADULT SOCIAL CARE,MIHOMECARE LTD,663.80,PHY LTS 18-64,HOMECARE - C&V,2102715110,
04.09.2017,ADULT SOCIAL CARE,MIHOMECARE LTD,697.84,PHY LTS 18-64,HOMECARE - C&V,2102714961,
04.09.2017,ADULT SOCIAL CARE,MIHOMECARE LTD,765.92,PHY LTS 18-64,HOMECARE - C&V,2102714941,
04.09.2017,ADULT SOCIAL CARE,MIHOMECARE LTD,765.92,PHY LTS 18-64,HOMECARE - C&V,2102715268,
04.09.2017,ADULT SOCIAL CARE,MIHOMECARE LTD,799.96,PHY LTS 18-64,HOMECARE - C&V,2102715042,
04.09.2017,ADULT SOCIAL CARE,MIHOMECARE LTD,799.96,PHY LTS 18-64,HOMECARE - C&V,2102715234,
04.09.2017,ADULT SOCIAL CARE,MIHOMECARE LTD,816.96,PHY LTS 18-64,HOMECARE - C&V,2102715160,
04.09.2017,ADULT SOCIAL CARE,MIHOMECARE LTD,851.00,PHY LTS 18-64,HOMECARE - C&V,2102715174,
04.09.2017,ADULT SOCIAL CARE,MIHOMECARE LTD,970.14,PHY LTS 18-64,HOMECARE - C&V,2102715008,
04.09.2017,ADULT SOCIAL CARE,MIHOMECARE LTD,"1,012.71",PHY LTS 18-64,HOMECARE - C&V,2102715082,
04.09.2017,ADULT SOCIAL CARE,MIHOMECARE LTD,"1,072.28",PHY LTS 18-64,HOMECARE - C&V,2102715264,
04.09.2017,ADULT SOCIAL CARE,MIHOMECARE LTD,"1,076.53",PHY LTS 18-64,HOMECARE - C&V,2102715149,
04.09.2017,ADULT SOCIAL CARE,MIHOMECARE LTD,"1,123.32",PHY LTS 18-64,HOMECARE - C&V,2102715055,
04.09.2017,ADULT SOCIAL CARE,MIHOMECARE LTD,"1,285.02",PHY LTS 18-64,HOMECARE - C&V,2102715052,
04.09.2017,ADULT SOCIAL CARE,MIHOMECARE LTD,"1,398.07",PHY LTS 18-64,HOMECARE - C&V,2102714981,
04.09.2017,ADULT SOCIAL CARE,MIHOMECARE LTD,"1,463.74",PHY LTS 18-64,HOMECARE - C&V,2102715079,
04.09.2017,ADULT SOCIAL CARE,MIHOMECARE LTD,"1,480.76",PHY LTS 18-64,HOMECARE - C&V,2102715003,
04.09.2017,ADULT SOCIAL CARE,MIHOMECARE LTD,544.64,PHY LTS 18-64,HOMECARE - SPOT,2102715127,
04.09.2017,ADULT SOCIAL CARE,MORTIMER SOCIETY,"5,000.00",PHY LTS 18-64,NURSING PLACEMENTS FEES,2102715655,
04.09.2017,ADULT SOCIAL CARE,PAKS RESIDENTIAL,"3,400.00",PHY LTS 18-64,RESIDENTIAL CARE,2102715620,
04.09.2017,ADULT SOCIAL CARE,PARKVIEW NURSING HOME,-620.20,PHY LTS 18-64,COSTS RECOVERED,2102716127,
04.09.2017,ADULT SOCIAL CARE,PARKVIEW NURSING HOME,"1,927.52",PHY LTS 18-64,NURSING PLACEMENTS FEES,2102716412,
04.09.2017,ADULT SOCIAL CARE,PARKVIEW NURSING HOME,"2,422.48",PHY LTS 18-64,NURSING PLACEMENTS FEES,2102716129,
04.09.2017,ADULT SOCIAL CARE,PARKVIEW NURSING HOME,"3,000.00",PHY LTS 18-64,NURSING PLACEMENTS FEES,2102715488,
04.09.2017,ADULT SOCIAL CARE,PARKVIEW NURSING HOME,620.20,PHY LTS 18-64,RECOVERABLE COSTS INCL. HEALTH,2102716128,
04.09.2017,ADULT SOCIAL CARE,PARKVIEW RESIDENTIAL CARE HOME,"1,696.80",PHY LTS 18-64,RESIDENTIAL CARE,2102716550,
04.09.2017,ADULT SOCIAL CARE,PRIORY,-516.16,PHY LTS 18-64,"MAND STATUTORY CHARGES, NURSING",2102715473,
04.09.2017,ADULT SOCIAL CARE,PRIORY,"5,720.56",PHY LTS 18-64,NURSING PLACEMENTS FEES,2102715472,
04.09.2017,ADULT SOCIAL CARE,PROFAD CARE AGENCY,351.56,PHY LTS 18-64,HOMECARE - SPOT,2102714919,
04.09.2017,ADULT SOCIAL CARE,PROFAD CARE AGENCY,386.40,PHY LTS 18-64,HOMECARE - SPOT,2102714931,
04.09.2017,ADULT SOCIAL CARE,PROFAD CARE AGENCY,786.24,PHY LTS 18-64,HOMECARE - SPOT,2102714934,
04.09.2017,ADULT SOCIAL CARE,PROFAD CARE AGENCY,"1,820.50",PHY LTS 18-64,HOMECARE - SPOT,2102714911,
04.09.2017,ADULT SOCIAL CARE,PROFAD CARE AGENCY,"3,102.75",PHY LTS 18-64,HOMECARE - SPOT,2102714928,
04.09.2017,ADULT SOCIAL CARE,REDACTED PERSONAL DATA,-323.00,PHY LTS 18-64,"MAND STATUTORY CHARGES, NURSING",2102715533,
04.09.2017,ADULT SOCIAL CARE,REDACTED PERSONAL DATA,"9,000.00",PHY LTS 18-64,NURSING PLACEMENTS FEES,2102715532,
04.09.2017,ADULT SOCIAL CARE,REDACTED PERSONAL DATA,"9,933.36",PHY LTS 18-64,RESIDENTIAL CARE,2102716037,
04.09.2017,ADULT SOCIAL CARE,REDACTED PERSONAL DATA,"1,335.71",PHY LTS 18-64,RESIDENTIAL CARE,2102715436,
04.09.2017,ADULT SOCIAL CARE,ROYAL HOSPITAL FOR NEURODISABILITY,-323.00,PHY LTS 18-64,"MAND STATUTORY CHARGES, NURSING",2102715597,
04.09.2017,ADULT SOCIAL CARE,ROYAL HOSPITAL FOR NEURODISABILITY,"9,600.00",PHY LTS 18-64,NURSING PLACEMENTS FEES,2102715596,
04.09.2017,ADULT SOCIAL CARE,SAINT JOHN OF GOD HOSPITALLER SERVICES,"-1,478.95",PHY LTS 18-64,"MAND STATUTORY CHARGES, RESIDENTIAL",2102715864,
04.09.2017,ADULT SOCIAL CARE,SAINT JOHN OF GOD HOSPITALLER SERVICES,"8,520.82",PHY LTS 18-64,RESIDENTIAL CARE,2102715865,
04.09.2017,ADULT SOCIAL CARE,SANCTUARY CARE (ASHLEY COOPER HSE),-408.04,PHY LTS 18-64,"MAND STATUTORY CHARGES, RESIDENTIAL",2102716235,
04.09.2017,ADULT SOCIAL CARE,SANCTUARY CARE (ASHLEY COOPER HSE),-323.00,PHY LTS 18-64,"MAND STATUTORY CHARGES, RESIDENTIAL",2102716316,
04.09.2017,ADULT SOCIAL CARE,SANCTUARY CARE (ASHLEY COOPER HSE),"2,424.00",PHY LTS 18-64,RESIDENTIAL CARE,2102716236,
04.09.2017,ADULT SOCIAL CARE,SANCTUARY CARE (ASHLEY COOPER HSE),"3,710.28",PHY LTS 18-64,RESIDENTIAL CARE,2102716317,
04.09.2017,ADULT SOCIAL CARE,ST VALERY & YORK HOUSE SPECIALIST CARE HOME,-854.40,PHY LTS 18-64,"MAND STATUTORY CHARGES, RESIDENTIAL",2102715522,
04.09.2017,ADULT SOCIAL CARE,ST VALERY & YORK HOUSE SPECIALIST CARE HOME,"2,100.00",PHY LTS 18-64,RESIDENTIAL CARE,2102715523,
04.09.2017,ADULT SOCIAL CARE,SUSSEX HEALTHCARE (RAPKYNS) GROUP,-408.04,PHY LTS 18-64,"MAND STATUTORY CHARGES, RESIDENTIAL",2102716461,
04.09.2017,ADULT SOCIAL CARE,SUSSEX HEALTHCARE (RAPKYNS) GROUP,"6,200.00",PHY LTS 18-64,NURSING PLACEMENTS FEES,2102715394,
04.09.2017,ADULT SOCIAL CARE,SUSSEX HEALTHCARE (RAPKYNS) GROUP,"6,600.00",PHY LTS 18-64,RESIDENTIAL CARE,2102716462,
04.09.2017,ADULT SOCIAL CARE,THE WHITE HOUSE CARE HOME,-339.00,PHY LTS 18-64,"MAND STATUTORY CHARGES, RESIDENTIAL",2102715760,
04.09.2017,ADULT SOCIAL CARE,THE WHITE HOUSE CARE HOME,"3,120.00",PHY LTS 18-64,RESIDENTIAL CARE,2102715761,
04.09.2017,ADULT SOCIAL CARE,YOUTH GRACES (UK) LTD,344.74,PHY LTS 18-64,HOMECARE - C&V,2102714843,
04.09.2017,ADULT SOCIAL CARE,YOUTH GRACES (UK) LTD,413.68,PHY LTS 18-64,HOMECARE - C&V,2102714888,
04.09.2017,ADULT SOCIAL CARE,YOUTH GRACES (UK) LTD,255.15,PHY LTS 18-64,HOMECARE - SPOT,2102714866,
04.09.2017,ADULT SOCIAL CARE,YOUTH GRACES (UK) LTD,261.98,PHY LTS 18-64,HOMECARE - SPOT,2102714854,
04.09.2017,ADULT SOCIAL CARE,YOUTH GRACES (UK) LTD,969.57,PHY LTS 18-64,HOMECARE - SPOT,2102714890,
04.09.2017,ADULT SOCIAL CARE,ABBEY HEALTHCARE GROUP,-551.52,PHY LTS 65+,"MAND STATUTORY CHARGES, NURSING",2102716402,
04.09.2017,ADULT SOCIAL CARE,ABBEY HEALTHCARE GROUP,"2,272.96",PHY LTS 65+,NURSING PLACEMENTS FEES,2102716403,
04.09.2017,ADULT SOCIAL CARE,ABBOTSLEIGH MEWS (BUPA),-620.20,PHY LTS 65+,COSTS RECOVERED,2102715445,
04.09.2017,ADULT SOCIAL CARE,ABBOTSLEIGH MEWS (BUPA),-572.28,PHY LTS 65+,"MAND STATUTORY CHARGES, NURSING",2102715443,
04.09.2017,ADULT SOCIAL CARE,ABBOTSLEIGH MEWS (BUPA),"2,325.60",PHY LTS 65+,NURSING PLACEMENTS FEES,2102715444,
04.09.2017,ADULT SOCIAL CARE,ABBOTSLEIGH MEWS (BUPA),620.20,PHY LTS 65+,RECOVERABLE COSTS INCL. HEALTH,2102715446,
04.09.2017,ADULT SOCIAL CARE,ALBANY CARE HOME,-894.68,PHY LTS 65+,"MAND STATUTORY CHARGES, NURSING",2102715644,
04.09.2017,ADULT SOCIAL CARE,ALBANY CARE HOME,"2,365.12",PHY LTS 65+,NURSING PLACEMENTS FEES,2102715645,
04.09.2017,ADULT SOCIAL CARE,ANCHOR TRUST,"-1,037.19",PHY LTS 65+,"MAND STATUTORY CHARGES, RESIDENTIAL",2102715646,
04.09.2017,ADULT SOCIAL CARE,ANCHOR TRUST,-522.80,PHY LTS 65+,"MAND STATUTORY CHARGES, RESIDENTIAL",2102715345,
04.09.2017,ADULT SOCIAL CARE,ANCHOR TRUST,-522.80,PHY LTS 65+,"MAND STATUTORY CHARGES, RESIDENTIAL",2102715862,
04.09.2017,ADULT SOCIAL CARE,ANCHOR TRUST,-522.80,PHY LTS 65+,"MAND STATUTORY CHARGES, RESIDENTIAL",2102715869,
04.09.2017,ADULT SOCIAL CARE,ANCHOR TRUST,"1,996.78",PHY LTS 65+,"MAND STATUTORY CHARGES, RESIDENTIAL",2102716253,
04.09.2017,ADULT SOCIAL CARE,ANCHOR TRUST,"3,302.41",PHY LTS 65+,"MAND STATUTORY CHARGES, RESIDENTIAL",2102715689,
04.09.2017,ADULT SOCIAL CARE,ANCHOR TRUST,279.98,PHY LTS 65+,RESIDENTIAL CARE,2102716391,
04.09.2017,ADULT SOCIAL CARE,ANCHOR TRUST,"1,421.67",PHY LTS 65+,RESIDENTIAL CARE,2102715513,
04.09.2017,ADULT SOCIAL CARE,ANCHOR TRUST,"1,818.00",PHY LTS 65+,RESIDENTIAL CARE,2102715692,
04.09.2017,ADULT SOCIAL CARE,ANCHOR TRUST,"1,818.00",PHY LTS 65+,RESIDENTIAL CARE,2102716094,
04.09.2017,ADULT SOCIAL CARE,ANCHOR TRUST,"1,880.00",PHY LTS 65+,RESIDENTIAL CARE,2102715398,
04.09.2017,ADULT SOCIAL CARE,ANCHOR TRUST,"1,880.00",PHY LTS 65+,RESIDENTIAL CARE,2102716024,
04.09.2017,ADULT SOCIAL CARE,ANCHOR TRUST,"1,963.80",PHY LTS 65+,RESIDENTIAL CARE,2102715340,
04.09.2017,ADULT SOCIAL CARE,ANCHOR TRUST,"1,963.80",PHY LTS 65+,RESIDENTIAL CARE,2102715346,
04.09.2017,ADULT SOCIAL CARE,ANCHOR TRUST,"1,963.80",PHY LTS 65+,RESIDENTIAL CARE,2102715358,
04.09.2017,ADULT SOCIAL CARE,ANCHOR TRUST,"1,963.80",PHY LTS 65+,RESIDENTIAL CARE,2102715382,
04.09.2017,ADULT SOCIAL CARE,ANCHOR TRUST,"1,963.80",PHY LTS 65+,RESIDENTIAL CARE,2102715435,
04.09.2017,ADULT SOCIAL CARE,ANCHOR TRUST,"1,963.80",PHY LTS 65+,RESIDENTIAL CARE,2102715442,
04.09.2017,ADULT SOCIAL CARE,ANCHOR TRUST,"1,963.80",PHY LTS 65+,RESIDENTIAL CARE,2102715474,
04.09.2017,ADULT SOCIAL CARE,ANCHOR TRUST,"1,963.80",PHY LTS 65+,RESIDENTIAL CARE,2102715592,
04.09.2017,ADULT SOCIAL CARE,ANCHOR TRUST,"1,963.80",PHY LTS 65+,RESIDENTIAL CARE,2102715602,
04.09.2017,ADULT SOCIAL CARE,ANCHOR TRUST,"1,963.80",PHY LTS 65+,RESIDENTIAL CARE,2102715603,
04.09.2017,ADULT SOCIAL CARE,ANCHOR TRUST,"1,963.80",PHY LTS 65+,RESIDENTIAL CARE,2102715673,
04.09.2017,ADULT SOCIAL CARE,ANCHOR TRUST,"1,963.80",PHY LTS 65+,RESIDENTIAL CARE,2102715675,
04.09.2017,ADULT SOCIAL CARE,ANCHOR TRUST,"1,963.80",PHY LTS 65+,RESIDENTIAL CARE,2102715707,
04.09.2017,ADULT SOCIAL CARE,ANCHOR TRUST,"1,963.80",PHY LTS 65+,RESIDENTIAL CARE,2102715720,
04.09.2017,ADULT SOCIAL CARE,ANCHOR TRUST,"1,963.80",PHY LTS 65+,RESIDENTIAL CARE,2102715765,
04.09.2017,ADULT SOCIAL CARE,ANCHOR TRUST,"1,963.80",PHY LTS 65+,RESIDENTIAL CARE,2102715870,
04.09.2017,ADULT SOCIAL CARE,ANCHOR TRUST,"1,963.80",PHY LTS 65+,RESIDENTIAL CARE,2102715876,
04.09.2017,ADULT SOCIAL CARE,ANCHOR TRUST,"1,963.80",PHY LTS 65+,RESIDENTIAL CARE,2102715914,
04.09.2017,ADULT SOCIAL CARE,ANCHOR TRUST,"1,963.80",PHY LTS 65+,RESIDENTIAL CARE,2102716005,
04.09.2017,ADULT SOCIAL CARE,ANCHOR TRUST,"1,963.80",PHY LTS 65+,RESIDENTIAL CARE,2102716008,
04.09.2017,ADULT SOCIAL CARE,ANCHOR TRUST,"1,963.80",PHY LTS 65+,RESIDENTIAL CARE,2102716061,
04.09.2017,ADULT SOCIAL CARE,ANCHOR TRUST,"1,963.80",PHY LTS 65+,RESIDENTIAL CARE,2102716126,
04.09.2017,ADULT SOCIAL CARE,ANCHOR TRUST,"1,963.80",PHY LTS 65+,RESIDENTIAL CARE,2102716147,
04.09.2017,ADULT SOCIAL CARE,ANCHOR TRUST,"1,963.80",PHY LTS 65+,RESIDENTIAL CARE,2102716152,
04.09.2017,ADULT SOCIAL CARE,ANCHOR TRUST,"1,963.80",PHY LTS 65+,RESIDENTIAL CARE,2102716409,
04.09.2017,ADULT SOCIAL CARE,ANCHOR TRUST,"1,963.80",PHY LTS 65+,RESIDENTIAL CARE,2102716476,
04.09.2017,ADULT SOCIAL CARE,ANCHOR TRUST,"1,963.80",PHY LTS 65+,RESIDENTIAL CARE,2102716494,
04.09.2017,ADULT SOCIAL CARE,ANCHOR TRUST,"1,963.80",PHY LTS 65+,RESIDENTIAL CARE,2102716541,
04.09.2017,ADULT SOCIAL CARE,ANCHOR TRUST,"2,030.76",PHY LTS 65+,RESIDENTIAL CARE,2102715377,
04.09.2017,ADULT SOCIAL CARE,ANCHOR TRUST,"2,030.76",PHY LTS 65+,RESIDENTIAL CARE,2102715441,
04.09.2017,ADULT SOCIAL CARE,ANCHOR TRUST,"2,030.76",PHY LTS 65+,RESIDENTIAL CARE,2102715453,
04.09.2017,ADULT SOCIAL CARE,ANCHOR TRUST,"2,030.76",PHY LTS 65+,RESIDENTIAL CARE,2102715469,
04.09.2017,ADULT SOCIAL CARE,ANCHOR TRUST,"2,030.76",PHY LTS 65+,RESIDENTIAL CARE,2102715612,
04.09.2017,ADULT SOCIAL CARE,ANCHOR TRUST,"2,030.76",PHY LTS 65+,RESIDENTIAL CARE,2102715622,
04.09.2017,ADULT SOCIAL CARE,ANCHOR TRUST,"2,030.76",PHY LTS 65+,RESIDENTIAL CARE,2102715756,
04.09.2017,ADULT SOCIAL CARE,ANCHOR TRUST,"2,030.76",PHY LTS 65+,RESIDENTIAL CARE,2102715888,
04.09.2017,ADULT SOCIAL CARE,ANCHOR TRUST,"2,030.76",PHY LTS 65+,RESIDENTIAL CARE,2102715930,
04.09.2017,ADULT SOCIAL CARE,ANCHOR TRUST,"2,030.76",PHY LTS 65+,RESIDENTIAL CARE,2102715980,
04.09.2017,ADULT SOCIAL CARE,ANCHOR TRUST,"2,030.76",PHY LTS 65+,RESIDENTIAL CARE,2102716009,
04.09.2017,ADULT SOCIAL CARE,ANCHOR TRUST,"2,030.76",PHY LTS 65+,RESIDENTIAL CARE,2102716022,
04.09.2017,ADULT SOCIAL CARE,ANCHOR TRUST,"2,030.76",PHY LTS 65+,RESIDENTIAL CARE,2102716080,
04.09.2017,ADULT SOCIAL CARE,ANCHOR TRUST,"2,030.76",PHY LTS 65+,RESIDENTIAL CARE,2102716165,
04.09.2017,ADULT SOCIAL CARE,ANCHOR TRUST,"2,030.76",PHY LTS 65+,RESIDENTIAL CARE,2102716211,
04.09.2017,ADULT SOCIAL CARE,ANCHOR TRUST,"2,030.76",PHY LTS 65+,RESIDENTIAL CARE,2102716215,
04.09.2017,ADULT SOCIAL CARE,ANCHOR TRUST,"2,030.76",PHY LTS 65+,RESIDENTIAL CARE,2102716237,
04.09.2017,ADULT SOCIAL CARE,ANCHOR TRUST,"2,030.76",PHY LTS 65+,RESIDENTIAL CARE,2102716327,
04.09.2017,ADULT SOCIAL CARE,ANCHOR TRUST,"2,030.76",PHY LTS 65+,RESIDENTIAL CARE,2102716405,
04.09.2017,ADULT SOCIAL CARE,ANCHOR TRUST,"2,030.76",PHY LTS 65+,RESIDENTIAL CARE,2102716463,
04.09.2017,ADULT SOCIAL CARE,ANCHOR TRUST,"2,030.76",PHY LTS 65+,RESIDENTIAL CARE,2102716547,
04.09.2017,ADULT SOCIAL CARE,ANCHOR TRUST,"2,784.56",PHY LTS 65+,RESIDENTIAL CARE,2102715350,
04.09.2017,ADULT SOCIAL CARE,ANCHOR TRUST,"2,784.56",PHY LTS 65+,RESIDENTIAL CARE,2102715584,
04.09.2017,ADULT SOCIAL CARE,ANCHOR TRUST,"2,784.56",PHY LTS 65+,RESIDENTIAL CARE,2102715851,
04.09.2017,ADULT SOCIAL CARE,ANCHOR TRUST,"2,784.56",PHY LTS 65+,RESIDENTIAL CARE,2102715863,
04.09.2017,ADULT SOCIAL CARE,ANCHOR TRUST,"2,784.56",PHY LTS 65+,RESIDENTIAL CARE,2102716107,
04.09.2017,ADULT SOCIAL CARE,ANCHOR TRUST,"2,784.56",PHY LTS 65+,RESIDENTIAL CARE,2102716273,
04.09.2017,ADULT SOCIAL CARE,ANCHOR TRUST,"2,784.56",PHY LTS 65+,RESIDENTIAL CARE,2102716392,
04.09.2017,ADULT SOCIAL CARE,ANCHOR TRUST,"3,427.66",PHY LTS 65+,RESIDENTIAL CARE,2102716452,
04.09.2017,ADULT SOCIAL CARE,ANCHOR TRUST,"3,916.47",PHY LTS 65+,RESIDENTIAL CARE,2102715647,
04.09.2017,ADULT SOCIAL CARE,ANCHOR TRUST,"21,489.94",PHY LTS 65+,RESIDENTIAL CARE,2102715571,
04.09.2017,ADULT SOCIAL CARE,ASHFIELD RESIDENTIAL CARE HOME,-537.80,PHY LTS 65+,"MAND STATUTORY CHARGES, RESIDENTIAL",2102716298,
04.09.2017,ADULT SOCIAL CARE,ASHFIELD RESIDENTIAL CARE HOME,"2,320.00",PHY LTS 65+,RESIDENTIAL CARE,2102716299,
04.09.2017,ADULT SOCIAL CARE,ATHOL HOUSE LONDON CHESHIRE HOMES,-537.80,PHY LTS 65+,"MAND STATUTORY CHARGES, RESIDENTIAL",2102715874,
04.09.2017,ADULT SOCIAL CARE,ATHOL HOUSE LONDON CHESHIRE HOMES,"4,961.40",PHY LTS 65+,RESIDENTIAL CARE,2102715875,
04.09.2017,ADULT SOCIAL CARE,AVERY HOMES (NELSON) LTD - ADELAIDE CARE CENTRE,"2,303.08",PHY LTS 65+,NURSING PLACEMENTS FEES,2102716214,
04.09.2017,ADULT SOCIAL CARE,AVERY HOMES (NELSON) LTD - BIRCHWOOD GRANGE,-589.00,PHY LTS 65+,"MAND STATUTORY CHARGES, NURSING",2102716429,
04.09.2017,ADULT SOCIAL CARE,AVERY HOMES (NELSON) LTD - BIRCHWOOD GRANGE,"2,251.48",PHY LTS 65+,NURSING PLACEMENTS FEES,2102716430,
04.09.2017,ADULT SOCIAL CARE,BARCHESTER HEALTHCARE LTD,-937.60,PHY LTS 65+,"MAND STATUTORY CHARGES, NURSING",2102716087,
04.09.2017,ADULT SOCIAL CARE,BARCHESTER HEALTHCARE LTD,"2,132.96",PHY LTS 65+,NURSING PLACEMENTS FEES,2102716088,
04.09.2017,ADULT SOCIAL CARE,BEACON HOUSE (LANSGLADE HOMES LTD),-620.20,PHY LTS 65+,COSTS RECOVERED,2102715326,
04.09.2017,ADULT SOCIAL CARE,BEACON HOUSE (LANSGLADE HOMES LTD),-579.05,PHY LTS 65+,"MAND STATUTORY CHARGES, NURSING",2102715324,
04.09.2017,ADULT SOCIAL CARE,BEACON HOUSE (LANSGLADE HOMES LTD),"2,316.80",PHY LTS 65+,NURSING PLACEMENTS FEES,2102715325,
04.09.2017,ADULT SOCIAL CARE,BEACON HOUSE (LANSGLADE HOMES LTD),620.20,PHY LTS 65+,RECOVERABLE COSTS INCL. HEALTH,2102715327,
04.09.2017,ADULT SOCIAL CARE,BLACK SWAN CARE GROUP,-537.80,PHY LTS 65+,"MAND STATUTORY CHARGES, RESIDENTIAL",2102715886,
04.09.2017,ADULT SOCIAL CARE,BLACK SWAN CARE GROUP,"4,256.20",PHY LTS 65+,RESIDENTIAL CARE,2102715887,
04.09.2017,ADULT SOCIAL CARE,BUPA CARE HOMES (CHURCH FARM),-544.20,PHY LTS 65+,"MAND STATUTORY CHARGES, RESIDENTIAL",2102716240,
04.09.2017,ADULT SOCIAL CARE,BUPA CARE HOMES (CHURCH FARM),"2,141.00",PHY LTS 65+,RESIDENTIAL CARE,2102716241,
04.09.2017,ADULT SOCIAL CARE,BUPA CARE HOMES (HAYDALE CARE HOME),-850.24,PHY LTS 65+,"MAND STATUTORY CHARGES, RESIDENTIAL",2102716186,
04.09.2017,ADULT SOCIAL CARE,BUPA CARE HOMES (HAYDALE CARE HOME),"2,147.80",PHY LTS 65+,RESIDENTIAL CARE,2102716187,
04.09.2017,ADULT SOCIAL CARE,C & P LTD (KIMBERLEY CARE),-537.80,PHY LTS 65+,"MAND STATUTORY CHARGES, RESIDENTIAL",2102715776,
04.09.2017,ADULT SOCIAL CARE,C & P LTD (KIMBERLEY CARE),"2,277.88",PHY LTS 65+,RESIDENTIAL CARE,2102715777,
04.09.2017,ADULT SOCIAL CARE,CADOGAN CARE LTD,"2,388.00",PHY LTS 65+,NURSING PLACEMENTS FEES,2102715583,
04.09.2017,ADULT SOCIAL CARE,CARE UK,-537.80,PHY LTS 65+,"MAND STATUTORY CHARGES, NURSING",2102715484,
04.09.2017,ADULT SOCIAL CARE,CARE UK,"2,187.68",PHY LTS 65+,NURSING PLACEMENTS FEES,2102715485,
04.09.2017,ADULT SOCIAL CARE,CARE UK,"2,087.36",PHY LTS 65+,RESIDENTIAL CARE,2102715361,
04.09.2017,ADULT SOCIAL CARE,CARE UNLIMITED GROUP LTD,"1,356.36",PHY LTS 65+,NURSING PLACEMENTS FEES,2102715967,
04.09.2017,ADULT SOCIAL CARE,CASTLEBAR HEALTHCARE LTD,"2,374.92",PHY LTS 65+,NURSING PLACEMENTS FEES,2102716376,
04.09.2017,ADULT SOCIAL CARE,CASTLEBAR HEALTHCARE LTD,"2,534.04",PHY LTS 65+,NURSING PLACEMENTS FEES,2102716306,
04.09.2017,ADULT SOCIAL CARE,CHARING LODGE LTD,-873.20,PHY LTS 65+,"MAND STATUTORY CHARGES, NURSING",2102716466,
04.09.2017,ADULT SOCIAL CARE,CHARING LODGE LTD,"1,781.48",PHY LTS 65+,NURSING PLACEMENTS FEES,2102716467,
04.09.2017,ADULT SOCIAL CARE,CHARLTON PARK (FOUR SEASONS),-883.80,PHY LTS 65+,"MAND STATUTORY CHARGES, NURSING",2102715767,
04.09.2017,ADULT SOCIAL CARE,CHARLTON PARK (FOUR SEASONS),"2,137.60",PHY LTS 65+,NURSING PLACEMENTS FEES,2102715768,
04.09.2017,ADULT SOCIAL CARE,CLOISTERS CARE HOME,-620.20,PHY LTS 65+,COSTS RECOVERED,2102716016,
04.09.2017,ADULT SOCIAL CARE,CLOISTERS CARE HOME,-522.80,PHY LTS 65+,"MAND STATUTORY CHARGES, NURSING",2102716014,
04.09.2017,ADULT SOCIAL CARE,CLOISTERS CARE HOME,"2,800.00",PHY LTS 65+,NURSING PLACEMENTS FEES,2102716015,
04.09.2017,ADULT SOCIAL CARE,CLOISTERS CARE HOME,620.20,PHY LTS 65+,RECOVERABLE COSTS INCL. HEALTH,2102716017,
04.09.2017,ADULT SOCIAL CARE,COLLINGWOOD COURT (BUPA CARE HOMES),-620.20,PHY LTS 65+,COSTS RECOVERED,2102716400,
04.09.2017,ADULT SOCIAL CARE,COLLINGWOOD COURT (BUPA CARE HOMES),-609.96,PHY LTS 65+,"MAND STATUTORY CHARGES, NURSING",2102715683,
04.09.2017,ADULT SOCIAL CARE,COLLINGWOOD COURT (BUPA CARE HOMES),"2,655.00",PHY LTS 65+,NURSING PLACEMENTS FEES,2102716399,
04.09.2017,ADULT SOCIAL CARE,COLLINGWOOD COURT (BUPA CARE HOMES),"3,164.32",PHY LTS 65+,NURSING PLACEMENTS FEES,2102715684,
04.09.2017,ADULT SOCIAL CARE,COLLINGWOOD COURT (BUPA CARE HOMES),620.20,PHY LTS 65+,RECOVERABLE COSTS INCL. HEALTH,2102716401,
04.09.2017,ADULT SOCIAL CARE,CONEWOOD MANOR CARE LTD,-537.80,PHY LTS 65+,"MAND STATUTORY CHARGES, NURSING",2102715518,
04.09.2017,ADULT SOCIAL CARE,CONEWOOD MANOR CARE LTD,"2,369.84",PHY LTS 65+,NURSING PLACEMENTS FEES,2102715519,
04.09.2017,ADULT SOCIAL CARE,CORNERWAYS RESIDENTIAL HOME,-578.16,PHY LTS 65+,"MAND STATUTORY CHARGES, RESIDENTIAL",2102715912,
04.09.2017,ADULT SOCIAL CARE,CORNERWAYS RESIDENTIAL HOME,"2,087.36",PHY LTS 65+,RESIDENTIAL CARE,2102715913,
04.09.2017,ADULT SOCIAL CARE,CORNWALLIS COURT,-780.24,PHY LTS 65+,"MAND STATUTORY CHARGES, RESIDENTIAL",2102715848,
04.09.2017,ADULT SOCIAL CARE,CORNWALLIS COURT,"2,087.36",PHY LTS 65+,RESIDENTIAL CARE,2102715849,
04.09.2017,ADULT SOCIAL CARE,CYGNET CARE LTD (CRESTA LODGE),-836.76,PHY LTS 65+,"MAND STATUTORY CHARGES, RESIDENTIAL",2102715520,
04.09.2017,ADULT SOCIAL CARE,CYGNET CARE LTD (CRESTA LODGE),"2,323.24",PHY LTS 65+,RESIDENTIAL CARE,2102715521,
04.09.2017,ADULT SOCIAL CARE,ELEANOR PALMER TRUST,"2,211.80",PHY LTS 65+,RESIDENTIAL CARE,2102715691,
04.09.2017,ADULT SOCIAL CARE,ELMWOOD R C H (MISSION CARE),"-1,240.40",PHY LTS 65+,COSTS RECOVERED,2102716446,
04.09.2017,ADULT SOCIAL CARE,ELMWOOD R C H (MISSION CARE),-708.80,PHY LTS 65+,COSTS RECOVERED,2102715542,
04.09.2017,ADULT SOCIAL CARE,ELMWOOD R C H (MISSION CARE),-620.20,PHY LTS 65+,COSTS RECOVERED,2102715922,
04.09.2017,ADULT SOCIAL CARE,ELMWOOD R C H (MISSION CARE),"-4,432.26",PHY LTS 65+,"MAND STATUTORY CHARGES, NURSING",2102716444,
04.09.2017,ADULT SOCIAL CARE,ELMWOOD R C H (MISSION CARE),-537.80,PHY LTS 65+,"MAND STATUTORY CHARGES, NURSING",2102715920,
04.09.2017,ADULT SOCIAL CARE,ELMWOOD R C H (MISSION CARE),"2,194.06",PHY LTS 65+,NURSING PLACEMENTS FEES,2102715541,
04.09.2017,ADULT SOCIAL CARE,ELMWOOD R C H (MISSION CARE),"2,570.40",PHY LTS 65+,NURSING PLACEMENTS FEES,2102716425,
04.09.2017,ADULT SOCIAL CARE,ELMWOOD R C H (MISSION CARE),"2,590.80",PHY LTS 65+,NURSING PLACEMENTS FEES,2102715921,
04.09.2017,ADULT SOCIAL CARE,ELMWOOD R C H (MISSION CARE),"5,342.40",PHY LTS 65+,NURSING PLACEMENTS FEES,2102716445,
04.09.2017,ADULT SOCIAL CARE,ELMWOOD R C H (MISSION CARE),620.20,PHY LTS 65+,RECOVERABLE COSTS INCL. HEALTH,2102715923,
04.09.2017,ADULT SOCIAL CARE,ELMWOOD R C H (MISSION CARE),620.20,PHY LTS 65+,RECOVERABLE COSTS INCL. HEALTH,2102716426,
04.09.2017,ADULT SOCIAL CARE,ELMWOOD R C H (MISSION CARE),708.80,PHY LTS 65+,RECOVERABLE COSTS INCL. HEALTH,2102715543,
04.09.2017,ADULT SOCIAL CARE,ELMWOOD R C H (MISSION CARE),"1,240.40",PHY LTS 65+,RECOVERABLE COSTS INCL. HEALTH,2102716447,
04.09.2017,ADULT SOCIAL CARE,ELSWICK HALL CARE HOME,-537.80,PHY LTS 65+,"MAND STATUTORY CHARGES, NURSING",2102716027,
04.09.2017,ADULT SOCIAL CARE,ELSWICK HALL CARE HOME,"3,133.12",PHY LTS 65+,NURSING PLACEMENTS FEES,2102716028,
04.09.2017,ADULT SOCIAL CARE,EQUINOX,-552.12,PHY LTS 65+,"MAND STATUTORY CHARGES, RESIDENTIAL",2102715614,
04.09.2017,ADULT SOCIAL CARE,EQUINOX,"2,942.60",PHY LTS 65+,RESIDENTIAL CARE,2102715615,
04.09.2017,ADULT SOCIAL CARE,EUROPEAN HEALTHCARE GROUP,-618.16,PHY LTS 65+,"MAND STATUTORY CHARGES, NURSING",2102715347,
04.09.2017,ADULT SOCIAL CARE,EUROPEAN HEALTHCARE GROUP,"2,603.04",PHY LTS 65+,NURSING PLACEMENTS FEES,2102715348,
04.09.2017,ADULT SOCIAL CARE,EVERSLEIGH CARE HOME,"-1,503.75",PHY LTS 65+,"MAND STATUTORY CHARGES, RESIDENTIAL",2102715509,
04.09.2017,ADULT SOCIAL CARE,EVERSLEIGH CARE HOME,"4,932.48",PHY LTS 65+,RESIDENTIAL CARE,2102715510,
04.09.2017,ADULT SOCIAL CARE,FABEE NURSING HOME,"2,183.00",PHY LTS 65+,NURSING PLACEMENTS FEES,2102716202,
04.09.2017,ADULT SOCIAL CARE,FARRINGTON CARE HOMES LTD,-537.80,PHY LTS 65+,"MAND STATUTORY CHARGES, RESIDENTIAL",2102716170,
04.09.2017,ADULT SOCIAL CARE,FARRINGTON CARE HOMES LTD,"2,141.00",PHY LTS 65+,RESIDENTIAL CARE,2102716171,
04.09.2017,ADULT SOCIAL CARE,FOUR SEASONS (2000) LTD,"-2,640.00",PHY LTS 65+,"MAND STATUTORY CHARGES, NURSING",2102715714,
04.09.2017,ADULT SOCIAL CARE,FOUR SEASONS (2000) LTD,"-1,192.08",PHY LTS 65+,"MAND STATUTORY CHARGES, NURSING",2102715470,
04.09.2017,ADULT SOCIAL CARE,FOUR SEASONS (2000) LTD,-847.16,PHY LTS 65+,"MAND STATUTORY CHARGES, NURSING",2102715860,
04.09.2017,ADULT SOCIAL CARE,FOUR SEASONS (2000) LTD,-638.40,PHY LTS 65+,"MAND STATUTORY CHARGES, NURSING",2102716138,
04.09.2017,ADULT SOCIAL CARE,FOUR SEASONS (2000) LTD,-607.36,PHY LTS 65+,"MAND STATUTORY CHARGES, NURSING",2102715399,
04.09.2017,ADULT SOCIAL CARE,FOUR SEASONS (2000) LTD,-597.04,PHY LTS 65+,"MAND STATUTORY CHARGES, NURSING",2102715811,
04.09.2017,ADULT SOCIAL CARE,FOUR SEASONS (2000) LTD,-593.52,PHY LTS 65+,"MAND STATUTORY CHARGES, NURSING",2102715351,
04.09.2017,ADULT SOCIAL CARE,FOUR SEASONS (2000) LTD,-567.84,PHY LTS 65+,"MAND STATUTORY CHARGES, NURSING",2102716200,
04.09.2017,ADULT SOCIAL CARE,FOUR SEASONS (2000) LTD,-537.80,PHY LTS 65+,"MAND STATUTORY CHARGES, NURSING",2102715556,
04.09.2017,ADULT SOCIAL CARE,FOUR SEASONS (2000) LTD,-537.80,PHY LTS 65+,"MAND STATUTORY CHARGES, NURSING",2102716477,
04.09.2017,ADULT SOCIAL CARE,FOUR SEASONS (2000) LTD,-500.80,PHY LTS 65+,"MAND STATUTORY CHARGES, NURSING",2102715970,
04.09.2017,ADULT SOCIAL CARE,FOUR SEASONS (2000) LTD,863.19,PHY LTS 65+,NURSING PLACEMENTS FEES,2102715799,
04.09.2017,ADULT SOCIAL CARE,FOUR SEASONS (2000) LTD,"2,077.88",PHY LTS 65+,NURSING PLACEMENTS FEES,2102715471,
04.09.2017,ADULT SOCIAL CARE,FOUR SEASONS (2000) LTD,"2,082.32",PHY LTS 65+,NURSING PLACEMENTS FEES,2102715557,
04.09.2017,ADULT SOCIAL CARE,FOUR SEASONS (2000) LTD,"2,095.68",PHY LTS 65+,NURSING PLACEMENTS FEES,2102715352,
04.09.2017,ADULT SOCIAL CARE,FOUR SEASONS (2000) LTD,"2,095.68",PHY LTS 65+,NURSING PLACEMENTS FEES,2102715812,
04.09.2017,ADULT SOCIAL CARE,FOUR SEASONS (2000) LTD,"2,095.68",PHY LTS 65+,NURSING PLACEMENTS FEES,2102715861,
04.09.2017,ADULT SOCIAL CARE,FOUR SEASONS (2000) LTD,"2,140.20",PHY LTS 65+,NURSING PLACEMENTS FEES,2102715400,
04.09.2017,ADULT SOCIAL CARE,FOUR SEASONS (2000) LTD,"2,140.20",PHY LTS 65+,NURSING PLACEMENTS FEES,2102716478,
04.09.2017,ADULT SOCIAL CARE,FOUR SEASONS (2000) LTD,"2,144.80",PHY LTS 65+,NURSING PLACEMENTS FEES,2102715971,
04.09.2017,ADULT SOCIAL CARE,FOUR SEASONS (2000) LTD,"2,192.00",PHY LTS 65+,NURSING PLACEMENTS FEES,2102716201,
04.09.2017,ADULT SOCIAL CARE,FOUR SEASONS (2000) LTD,"2,246.84",PHY LTS 65+,NURSING PLACEMENTS FEES,2102715672,
04.09.2017,ADULT SOCIAL CARE,FOUR SEASONS (2000) LTD,"2,363.32",PHY LTS 65+,NURSING PLACEMENTS FEES,2102716139,
04.09.2017,ADULT SOCIAL CARE,FOUR SEASONS (2000) LTD,"2,640.00",PHY LTS 65+,NURSING PLACEMENTS FEES,2102715715,
04.09.2017,ADULT SOCIAL CARE,FOUR SEASONS (UPLANDS CARE HOME),-620.20,PHY LTS 65+,COSTS RECOVERED,2102716438,
04.09.2017,ADULT SOCIAL CARE,FOUR SEASONS (UPLANDS CARE HOME),"2,137.60",PHY LTS 65+,NURSING PLACEMENTS FEES,2102716304,
04.09.2017,ADULT SOCIAL CARE,FOUR SEASONS (UPLANDS CARE HOME),"3,000.00",PHY LTS 65+,NURSING PLACEMENTS FEES,2102716437,
04.09.2017,ADULT SOCIAL CARE,FOUR SEASONS (UPLANDS CARE HOME),620.20,PHY LTS 65+,RECOVERABLE COSTS INCL. HEALTH,2102716439,
04.09.2017,ADULT SOCIAL CARE,FOUR SEASONS 2000 LTD,-595.88,PHY LTS 65+,"MAND STATUTORY CHARGES, NURSING",2102715670,
04.09.2017,ADULT SOCIAL CARE,FOUR SEASONS 2000 LTD,"2,360.44",PHY LTS 65+,NURSING PLACEMENTS FEES,2102715671,
04.09.2017,ADULT SOCIAL CARE,FOUR SEASONS 2000 LTD-MARBOROUGH COURT,-570.40,PHY LTS 65+,"MAND STATUTORY CHARGES, RESIDENTIAL",2102715551,
04.09.2017,ADULT SOCIAL CARE,FOUR SEASONS 2000 LTD-MARBOROUGH COURT,"2,087.36",PHY LTS 65+,RESIDENTIAL CARE,2102715552,
04.09.2017,ADULT SOCIAL CARE,GCH (MARTINS HOUSE) LTD,-837.88,PHY LTS 65+,"MAND STATUTORY CHARGES, RESIDENTIAL",2102715585,
04.09.2017,ADULT SOCIAL CARE,GCH (MARTINS HOUSE) LTD,"2,087.36",PHY LTS 65+,RESIDENTIAL CARE,2102715586,
04.09.2017,ADULT SOCIAL CARE,GEORGE POTTER CARE HOME LTD,-620.20,PHY LTS 65+,COSTS RECOVERED,2102716516,
04.09.2017,ADULT SOCIAL CARE,GEORGE POTTER CARE HOME LTD,-522.80,PHY LTS 65+,"MAND STATUTORY CHARGES, NURSING",2102716514,
04.09.2017,ADULT SOCIAL CARE,GEORGE POTTER CARE HOME LTD,"2,422.48",PHY LTS 65+,NURSING PLACEMENTS FEES,2102716515,
04.09.2017,ADULT SOCIAL CARE,GEORGE POTTER CARE HOME LTD,620.20,PHY LTS 65+,RECOVERABLE COSTS INCL. HEALTH,2102716517,
04.09.2017,ADULT SOCIAL CARE,GOLD CARE HOMES (BURROWS HOUSE) LTD,"2,146.96",PHY LTS 65+,RESIDENTIAL CARE,2102716019,
04.09.2017,ADULT SOCIAL CARE,GREENHILL CARE HOME,-620.20,PHY LTS 65+,COSTS RECOVERED,2102715374,
04.09.2017,ADULT SOCIAL CARE,GREENHILL CARE HOME,"2,570.40",PHY LTS 65+,NURSING PLACEMENTS FEES,2102715373,
04.09.2017,ADULT SOCIAL CARE,GREENHILL CARE HOME,620.20,PHY LTS 65+,RECOVERABLE COSTS INCL. HEALTH,2102715375,
04.09.2017,ADULT SOCIAL CARE,HAVELOCK COURT (BUPA CARE),-597.80,PHY LTS 65+,"MAND STATUTORY CHARGES, NURSING",2102715456,
04.09.2017,ADULT SOCIAL CARE,HAVELOCK COURT (BUPA CARE),"3,288.20",PHY LTS 65+,NURSING PLACEMENTS FEES,2102715457,
04.09.2017,ADULT SOCIAL CARE,HC-ONE LTD (ALEXANDER CARE CENTRE),-620.20,PHY LTS 65+,COSTS RECOVERED,2102716065,
04.09.2017,ADULT SOCIAL CARE,HC-ONE LTD (ALEXANDER CARE CENTRE),-537.80,PHY LTS 65+,"MAND STATUTORY CHARGES, NURSING",2102716063,
04.09.2017,ADULT SOCIAL CARE,HC-ONE LTD (ALEXANDER CARE CENTRE),-522.80,PHY LTS 65+,"MAND STATUTORY CHARGES, NURSING",2102715433,
04.09.2017,ADULT SOCIAL CARE,HC-ONE LTD (ALEXANDER CARE CENTRE),"2,331.60",PHY LTS 65+,NURSING PLACEMENTS FEES,2102715434,
04.09.2017,ADULT SOCIAL CARE,HC-ONE LTD (ALEXANDER CARE CENTRE),"2,603.04",PHY LTS 65+,NURSING PLACEMENTS FEES,2102716064,
04.09.2017,ADULT SOCIAL CARE,HC-ONE LTD (ALEXANDER CARE CENTRE),620.20,PHY LTS 65+,RECOVERABLE COSTS INCL. HEALTH,2102716066,
04.09.2017,ADULT SOCIAL CARE,HC-ONE LTD (ALEXANDER CARE CENTRE),"2,310.16",PHY LTS 65+,RESIDENTIAL CARE,2102716283,
04.09.2017,ADULT SOCIAL CARE,HC-ONE LTD (HEBBURN COURT),"2,137.60",PHY LTS 65+,NURSING PLACEMENTS FEES,2102715781,
04.09.2017,ADULT SOCIAL CARE,HC-ONE LTD (TOWER BRIDGE CARE HOME),-620.20,PHY LTS 65+,COSTS RECOVERED,2102715364,
04.09.2017,ADULT SOCIAL CARE,HC-ONE LTD (TOWER BRIDGE CARE HOME),-620.20,PHY LTS 65+,COSTS RECOVERED,2102715422,
04.09.2017,ADULT SOCIAL CARE,HC-ONE LTD (TOWER BRIDGE CARE HOME),-620.20,PHY LTS 65+,COSTS RECOVERED,2102715549,
04.09.2017,ADULT SOCIAL CARE,HC-ONE LTD (TOWER BRIDGE CARE HOME),-620.20,PHY LTS 65+,COSTS RECOVERED,2102715554,
04.09.2017,ADULT SOCIAL CARE,HC-ONE LTD (TOWER BRIDGE CARE HOME),-620.20,PHY LTS 65+,COSTS RECOVERED,2102715566,
04.09.2017,ADULT SOCIAL CARE,HC-ONE LTD (TOWER BRIDGE CARE HOME),-620.20,PHY LTS 65+,COSTS RECOVERED,2102715634,
04.09.2017,ADULT SOCIAL CARE,HC-ONE LTD (TOWER BRIDGE CARE HOME),-620.20,PHY LTS 65+,COSTS RECOVERED,2102715750,
04.09.2017,ADULT SOCIAL CARE,HC-ONE LTD (TOWER BRIDGE CARE HOME),-620.20,PHY LTS 65+,COSTS RECOVERED,2102715879,
04.09.2017,ADULT SOCIAL CARE,HC-ONE LTD (TOWER BRIDGE CARE HOME),-620.20,PHY LTS 65+,COSTS RECOVERED,2102715884,
04.09.2017,ADULT SOCIAL CARE,HC-ONE LTD (TOWER BRIDGE CARE HOME),-620.20,PHY LTS 65+,COSTS RECOVERED,2102715918,
04.09.2017,ADULT SOCIAL CARE,HC-ONE LTD (TOWER BRIDGE CARE HOME),-620.20,PHY LTS 65+,COSTS RECOVERED,2102715994,
04.09.2017,ADULT SOCIAL CARE,HC-ONE LTD (TOWER BRIDGE CARE HOME),-620.20,PHY LTS 65+,COSTS RECOVERED,2102716012,
04.09.2017,ADULT SOCIAL CARE,HC-ONE LTD (TOWER BRIDGE CARE HOME),-620.20,PHY LTS 65+,COSTS RECOVERED,2102716101,
04.09.2017,ADULT SOCIAL CARE,HC-ONE LTD (TOWER BRIDGE CARE HOME),-620.20,PHY LTS 65+,COSTS RECOVERED,2102716158,
04.09.2017,ADULT SOCIAL CARE,HC-ONE LTD (TOWER BRIDGE CARE HOME),-620.20,PHY LTS 65+,COSTS RECOVERED,2102716176,
04.09.2017,ADULT SOCIAL CARE,HC-ONE LTD (TOWER BRIDGE CARE HOME),-620.20,PHY LTS 65+,COSTS RECOVERED,2102716340,
04.09.2017,ADULT SOCIAL CARE,HC-ONE LTD (TOWER BRIDGE CARE HOME),-620.20,PHY LTS 65+,COSTS RECOVERED,2102716520,
04.09.2017,ADULT SOCIAL CARE,HC-ONE LTD (TOWER BRIDGE CARE HOME),-620.20,PHY LTS 65+,COSTS RECOVERED,2102716555,
04.09.2017,ADULT SOCIAL CARE,HC-ONE LTD (TOWER BRIDGE CARE HOME),"-2,386.48",PHY LTS 65+,"MAND STATUTORY CHARGES, NURSING",2102716174,
04.09.2017,ADULT SOCIAL CARE,HC-ONE LTD (TOWER BRIDGE CARE HOME),"-2,119.44",PHY LTS 65+,"MAND STATUTORY CHARGES, NURSING",2102715558,
04.09.2017,ADULT SOCIAL CARE,HC-ONE LTD (TOWER BRIDGE CARE HOME),"-1,295.88",PHY LTS 65+,"MAND STATUTORY CHARGES, NURSING",2102716552,
04.09.2017,ADULT SOCIAL CARE,HC-ONE LTD (TOWER BRIDGE CARE HOME),-996.00,PHY LTS 65+,"MAND STATUTORY CHARGES, NURSING",2102716271,
04.09.2017,ADULT SOCIAL CARE,HC-ONE LTD (TOWER BRIDGE CARE HOME),-925.00,PHY LTS 65+,"MAND STATUTORY CHARGES, NURSING",2102715906,
04.09.2017,ADULT SOCIAL CARE,HC-ONE LTD (TOWER BRIDGE CARE HOME),-890.96,PHY LTS 65+,"MAND STATUTORY CHARGES, NURSING",2102715877,
04.09.2017,ADULT SOCIAL CARE,HC-ONE LTD (TOWER BRIDGE CARE HOME),-712.80,PHY LTS 65+,"MAND STATUTORY CHARGES, NURSING",2102716502,
04.09.2017,ADULT SOCIAL CARE,HC-ONE LTD (TOWER BRIDGE CARE HOME),-629.80,PHY LTS 65+,"MAND STATUTORY CHARGES, NURSING",2102716228,
04.09.2017,ADULT SOCIAL CARE,HC-ONE LTD (TOWER BRIDGE CARE HOME),-571.60,PHY LTS 65+,"MAND STATUTORY CHARGES, NURSING",2102716220,
04.09.2017,ADULT SOCIAL CARE,HC-ONE LTD (TOWER BRIDGE CARE HOME),-554.44,PHY LTS 65+,"MAND STATUTORY CHARGES, NURSING",2102716156,
04.09.2017,ADULT SOCIAL CARE,HC-ONE LTD (TOWER BRIDGE CARE HOME),-537.80,PHY LTS 65+,"MAND STATUTORY CHARGES, NURSING",2102715502,
04.09.2017,ADULT SOCIAL CARE,HC-ONE LTD (TOWER BRIDGE CARE HOME),-537.80,PHY LTS 65+,"MAND STATUTORY CHARGES, NURSING",2102715564,
04.09.2017,ADULT SOCIAL CARE,HC-ONE LTD (TOWER BRIDGE CARE HOME),-537.80,PHY LTS 65+,"MAND STATUTORY CHARGES, NURSING",2102715726,
04.09.2017,ADULT SOCIAL CARE,HC-ONE LTD (TOWER BRIDGE CARE HOME),-537.80,PHY LTS 65+,"MAND STATUTORY CHARGES, NURSING",2102715992,
04.09.2017,ADULT SOCIAL CARE,HC-ONE LTD (TOWER BRIDGE CARE HOME),-537.80,PHY LTS 65+,"MAND STATUTORY CHARGES, NURSING",2102716002,
04.09.2017,ADULT SOCIAL CARE,HC-ONE LTD (TOWER BRIDGE CARE HOME),-537.80,PHY LTS 65+,"MAND STATUTORY CHARGES, NURSING",2102716010,
04.09.2017,ADULT SOCIAL CARE,HC-ONE LTD (TOWER BRIDGE CARE HOME),-537.80,PHY LTS 65+,"MAND STATUTORY CHARGES, NURSING",2102716338,
04.09.2017,ADULT SOCIAL CARE,HC-ONE LTD (TOWER BRIDGE CARE HOME),-537.80,PHY LTS 65+,"MAND STATUTORY CHARGES, NURSING",2102716347,
04.09.2017,ADULT SOCIAL CARE,HC-ONE LTD (TOWER BRIDGE CARE HOME),-537.80,PHY LTS 65+,"MAND STATUTORY CHARGES, NURSING",2102716384,
04.09.2017,ADULT SOCIAL CARE,HC-ONE LTD (TOWER BRIDGE CARE HOME),-537.80,PHY LTS 65+,"MAND STATUTORY CHARGES, NURSING",2102716440,
04.09.2017,ADULT SOCIAL CARE,HC-ONE LTD (TOWER BRIDGE CARE HOME),-537.80,PHY LTS 65+,"MAND STATUTORY CHARGES, NURSING",2102716529,
04.09.2017,ADULT SOCIAL CARE,HC-ONE LTD (TOWER BRIDGE CARE HOME),-522.80,PHY LTS 65+,"MAND STATUTORY CHARGES, NURSING",2102715632,
04.09.2017,ADULT SOCIAL CARE,HC-ONE LTD (TOWER BRIDGE CARE HOME),-464.64,PHY LTS 65+,"MAND STATUTORY CHARGES, NURSING",2102716518,
04.09.2017,ADULT SOCIAL CARE,HC-ONE LTD (TOWER BRIDGE CARE HOME),"8,142.73",PHY LTS 65+,"MAND STATUTORY CHARGES, NURSING",2102715362,
04.09.2017,ADULT SOCIAL CARE,HC-ONE LTD (TOWER BRIDGE CARE HOME),-574.08,PHY LTS 65+,"MAND STATUTORY CHARGES, RESIDENTIAL",2102716072,
04.09.2017,ADULT SOCIAL CARE,HC-ONE LTD (TOWER BRIDGE CARE HOME),"2,119.44",PHY LTS 65+,NURSING PLACEMENTS FEES,2102715559,
04.09.2017,ADULT SOCIAL CARE,HC-ONE LTD (TOWER BRIDGE CARE HOME),"2,137.60",PHY LTS 65+,NURSING PLACEMENTS FEES,2102715907,
04.09.2017,ADULT SOCIAL CARE,HC-ONE LTD (TOWER BRIDGE CARE HOME),"2,137.60",PHY LTS 65+,NURSING PLACEMENTS FEES,2102716003,
04.09.2017,ADULT SOCIAL CARE,HC-ONE LTD (TOWER BRIDGE CARE HOME),"2,137.60",PHY LTS 65+,NURSING PLACEMENTS FEES,2102716221,
04.09.2017,ADULT SOCIAL CARE,HC-ONE LTD (TOWER BRIDGE CARE HOME),"2,183.00",PHY LTS 65+,NURSING PLACEMENTS FEES,2102716153,
04.09.2017,ADULT SOCIAL CARE,HC-ONE LTD (TOWER BRIDGE CARE HOME),"2,187.64",PHY LTS 65+,NURSING PLACEMENTS FEES,2102716157,
04.09.2017,ADULT SOCIAL CARE,HC-ONE LTD (TOWER BRIDGE CARE HOME),"2,187.68",PHY LTS 65+,NURSING PLACEMENTS FEES,2102715724,
04.09.2017,ADULT SOCIAL CARE,HC-ONE LTD (TOWER BRIDGE CARE HOME),"2,190.60",PHY LTS 65+,NURSING PLACEMENTS FEES,2102716229,
04.09.2017,ADULT SOCIAL CARE,HC-ONE LTD (TOWER BRIDGE CARE HOME),"2,190.60",PHY LTS 65+,NURSING PLACEMENTS FEES,2102716385,
04.09.2017,ADULT SOCIAL CARE,HC-ONE LTD (TOWER BRIDGE CARE HOME),"2,212.00",PHY LTS 65+,NURSING PLACEMENTS FEES,2102715749,
04.09.2017,ADULT SOCIAL CARE,HC-ONE LTD (TOWER BRIDGE CARE HOME),"2,214.04",PHY LTS 65+,NURSING PLACEMENTS FEES,2102715882,
04.09.2017,ADULT SOCIAL CARE,HC-ONE LTD (TOWER BRIDGE CARE HOME),"2,214.04",PHY LTS 65+,NURSING PLACEMENTS FEES,2102716553,
04.09.2017,ADULT SOCIAL CARE,HC-ONE LTD (TOWER BRIDGE CARE HOME),"2,241.16",PHY LTS 65+,NURSING PLACEMENTS FEES,2102716011,
04.09.2017,ADULT SOCIAL CARE,HC-ONE LTD (TOWER BRIDGE CARE HOME),"2,253.68",PHY LTS 65+,NURSING PLACEMENTS FEES,2102715553,
04.09.2017,ADULT SOCIAL CARE,HC-ONE LTD (TOWER BRIDGE CARE HOME),"2,253.68",PHY LTS 65+,NURSING PLACEMENTS FEES,2102716339,
04.09.2017,ADULT SOCIAL CARE,HC-ONE LTD (TOWER BRIDGE CARE HOME),"2,314.83",PHY LTS 65+,NURSING PLACEMENTS FEES,2102716519,
04.09.2017,ADULT SOCIAL CARE,HC-ONE LTD (TOWER BRIDGE CARE HOME),"2,402.80",PHY LTS 65+,NURSING PLACEMENTS FEES,2102715503,
04.09.2017,ADULT SOCIAL CARE,HC-ONE LTD (TOWER BRIDGE CARE HOME),"2,402.80",PHY LTS 65+,NURSING PLACEMENTS FEES,2102715783,
04.09.2017,ADULT SOCIAL CARE,HC-ONE LTD (TOWER BRIDGE CARE HOME),"2,402.80",PHY LTS 65+,NURSING PLACEMENTS FEES,2102716348,
04.09.2017,ADULT SOCIAL CARE,HC-ONE LTD (TOWER BRIDGE CARE HOME),"2,409.48",PHY LTS 65+,NURSING PLACEMENTS FEES,2102715421,
04.09.2017,ADULT SOCIAL CARE,HC-ONE LTD (TOWER BRIDGE CARE HOME),"2,415.24",PHY LTS 65+,NURSING PLACEMENTS FEES,2102715537,
04.09.2017,ADULT SOCIAL CARE,HC-ONE LTD (TOWER BRIDGE CARE HOME),"2,419.84",PHY LTS 65+,NURSING PLACEMENTS FEES,2102716210,
04.09.2017,ADULT SOCIAL CARE,HC-ONE LTD (TOWER BRIDGE CARE HOME),"2,419.84",PHY LTS 65+,NURSING PLACEMENTS FEES,2102716272,
04.09.2017,ADULT SOCIAL CARE,HC-ONE LTD (TOWER BRIDGE CARE HOME),"2,427.80",PHY LTS 65+,NURSING PLACEMENTS FEES,2102715727,
04.09.2017,ADULT SOCIAL CARE,HC-ONE LTD (TOWER BRIDGE CARE HOME),"2,427.80",PHY LTS 65+,NURSING PLACEMENTS FEES,2102716487,
04.09.2017,ADULT SOCIAL CARE,HC-ONE LTD (TOWER BRIDGE CARE HOME),"2,427.80",PHY LTS 65+,NURSING PLACEMENTS FEES,2102716530,
04.09.2017,ADULT SOCIAL CARE,HC-ONE LTD (TOWER BRIDGE CARE HOME),"2,432.44",PHY LTS 65+,NURSING PLACEMENTS FEES,2102715528,
04.09.2017,ADULT SOCIAL CARE,HC-ONE LTD (TOWER BRIDGE CARE HOME),"2,432.44",PHY LTS 65+,NURSING PLACEMENTS FEES,2102715748,
04.09.2017,ADULT SOCIAL CARE,HC-ONE LTD (TOWER BRIDGE CARE HOME),"2,432.44",PHY LTS 65+,NURSING PLACEMENTS FEES,2102716441,
04.09.2017,ADULT SOCIAL CARE,HC-ONE LTD (TOWER BRIDGE CARE HOME),"2,432.44",PHY LTS 65+,NURSING PLACEMENTS FEES,2102716503,
04.09.2017,ADULT SOCIAL CARE,HC-ONE LTD (TOWER BRIDGE CARE HOME),"2,434.20",PHY LTS 65+,NURSING PLACEMENTS FEES,2102716175,
04.09.2017,ADULT SOCIAL CARE,HC-ONE LTD (TOWER BRIDGE CARE HOME),"2,445.16",PHY LTS 65+,NURSING PLACEMENTS FEES,2102715993,
04.09.2017,ADULT SOCIAL CARE,HC-ONE LTD (TOWER BRIDGE CARE HOME),"2,447.56",PHY LTS 65+,NURSING PLACEMENTS FEES,2102715633,
04.09.2017,ADULT SOCIAL CARE,HC-ONE LTD (TOWER BRIDGE CARE HOME),"2,457.60",PHY LTS 65+,NURSING PLACEMENTS FEES,2102716099,
04.09.2017,ADULT SOCIAL CARE,HC-ONE LTD (TOWER BRIDGE CARE HOME),"2,457.68",PHY LTS 65+,NURSING PLACEMENTS FEES,2102715565,
04.09.2017,ADULT SOCIAL CARE,HC-ONE LTD (TOWER BRIDGE CARE HOME),"2,457.68",PHY LTS 65+,NURSING PLACEMENTS FEES,2102716056,
04.09.2017,ADULT SOCIAL CARE,HC-ONE LTD (TOWER BRIDGE CARE HOME),"3,597.56",PHY LTS 65+,NURSING PLACEMENTS FEES,2102715878,
04.09.2017,ADULT SOCIAL CARE,HC-ONE LTD (TOWER BRIDGE CARE HOME),"3,831.95",PHY LTS 65+,NURSING PLACEMENTS FEES,2102715363,
04.09.2017,ADULT SOCIAL CARE,HC-ONE LTD (TOWER BRIDGE CARE HOME),"4,524.64",PHY LTS 65+,NURSING PLACEMENTS FEES,2102715548,
04.09.2017,ADULT SOCIAL CARE,HC-ONE LTD (TOWER BRIDGE CARE HOME),620.20,PHY LTS 65+,RECOVERABLE COSTS INCL. HEALTH,2102715365,
04.09.2017,ADULT SOCIAL CARE,HC-ONE LTD (TOWER BRIDGE CARE HOME),620.20,PHY LTS 65+,RECOVERABLE COSTS INCL. HEALTH,2102715423,
04.09.2017,ADULT SOCIAL CARE,HC-ONE LTD (TOWER BRIDGE CARE HOME),620.20,PHY LTS 65+,RECOVERABLE COSTS INCL. HEALTH,2102715550,
04.09.2017,ADULT SOCIAL CARE,HC-ONE LTD (TOWER BRIDGE CARE HOME),620.20,PHY LTS 65+,RECOVERABLE COSTS INCL. HEALTH,2102715555,
04.09.2017,ADULT SOCIAL CARE,HC-ONE LTD (TOWER BRIDGE CARE HOME),620.20,PHY LTS 65+,RECOVERABLE COSTS INCL. HEALTH,2102715567,
04.09.2017,ADULT SOCIAL CARE,HC-ONE LTD (TOWER BRIDGE CARE HOME),620.20,PHY LTS 65+,RECOVERABLE COSTS INCL. HEALTH,2102715635,
04.09.2017,ADULT SOCIAL CARE,HC-ONE LTD (TOWER BRIDGE CARE HOME),620.20,PHY LTS 65+,RECOVERABLE COSTS INCL. HEALTH,2102715717,
04.09.2017,ADULT SOCIAL CARE,HC-ONE LTD (TOWER BRIDGE CARE HOME),620.20,PHY LTS 65+,RECOVERABLE COSTS INCL. HEALTH,2102715751,
04.09.2017,ADULT SOCIAL CARE,HC-ONE LTD (TOWER BRIDGE CARE HOME),620.20,PHY LTS 65+,RECOVERABLE COSTS INCL. HEALTH,2102715880,
04.09.2017,ADULT SOCIAL CARE,HC-ONE LTD (TOWER BRIDGE CARE HOME),620.20,PHY LTS 65+,RECOVERABLE COSTS INCL. HEALTH,2102715885,
04.09.2017,ADULT SOCIAL CARE,HC-ONE LTD (TOWER BRIDGE CARE HOME),620.20,PHY LTS 65+,RECOVERABLE COSTS INCL. HEALTH,2102715919,
04.09.2017,ADULT SOCIAL CARE,HC-ONE LTD (TOWER BRIDGE CARE HOME),620.20,PHY LTS 65+,RECOVERABLE COSTS INCL. HEALTH,2102715995,
04.09.2017,ADULT SOCIAL CARE,HC-ONE LTD (TOWER BRIDGE CARE HOME),620.20,PHY LTS 65+,RECOVERABLE COSTS INCL. HEALTH,2102716013,
04.09.2017,ADULT SOCIAL CARE,HC-ONE LTD (TOWER BRIDGE CARE HOME),620.20,PHY LTS 65+,RECOVERABLE COSTS INCL. HEALTH,2102716102,
04.09.2017,ADULT SOCIAL CARE,HC-ONE LTD (TOWER BRIDGE CARE HOME),620.20,PHY LTS 65+,RECOVERABLE COSTS INCL. HEALTH,2102716159,
04.09.2017,ADULT SOCIAL CARE,HC-ONE LTD (TOWER BRIDGE CARE HOME),620.20,PHY LTS 65+,RECOVERABLE COSTS INCL. HEALTH,2102716177,
04.09.2017,ADULT SOCIAL CARE,HC-ONE LTD (TOWER BRIDGE CARE HOME),620.20,PHY LTS 65+,RECOVERABLE COSTS INCL. HEALTH,2102716341,
04.09.2017,ADULT SOCIAL CARE,HC-ONE LTD (TOWER BRIDGE CARE HOME),620.20,PHY LTS 65+,RECOVERABLE COSTS INCL. HEALTH,2102716521,
04.09.2017,ADULT SOCIAL CARE,HC-ONE LTD (TOWER BRIDGE CARE HOME),620.20,PHY LTS 65+,RECOVERABLE COSTS INCL. HEALTH,2102716556,
04.09.2017,ADULT SOCIAL CARE,HC-ONE LTD (TOWER BRIDGE CARE HOME),632.99,PHY LTS 65+,RESIDENTIAL CARE,2102715652,
04.09.2017,ADULT SOCIAL CARE,HC-ONE LTD (TOWER BRIDGE CARE HOME),"2,233.88",PHY LTS 65+,RESIDENTIAL CARE,2102716073,
04.09.2017,ADULT SOCIAL CARE,HC-ONE LTD (TOWER BRIDGE CARE HOME),"2,422.28",PHY LTS 65+,RESIDENTIAL CARE,2102715595,
04.09.2017,ADULT SOCIAL CARE,HEATHERDENE NURSING HOME,-509.84,PHY LTS 65+,"MAND STATUTORY CHARGES, NURSING",2102716490,
04.09.2017,ADULT SOCIAL CARE,HEATHERDENE NURSING HOME,"2,183.00",PHY LTS 65+,NURSING PLACEMENTS FEES,2102716491,
04.09.2017,ADULT SOCIAL CARE,HIGH VIEW CARE SERVICES,"5,041.92",PHY LTS 65+,RESIDENTIAL CARE,2102715990,
04.09.2017,ADULT SOCIAL CARE,HILL ASH HOUSE CARE HOME,"2,141.00",PHY LTS 65+,RESIDENTIAL CARE,2102715349,
04.09.2017,ADULT SOCIAL CARE,HOLLYMAN CARE HOMES LTD,-537.80,PHY LTS 65+,"MAND STATUTORY CHARGES, RESIDENTIAL",2102715960,
04.09.2017,ADULT SOCIAL CARE,HOLLYMAN CARE HOMES LTD,"2,030.00",PHY LTS 65+,RESIDENTIAL CARE,2102715961,
04.09.2017,ADULT SOCIAL CARE,INDIGO CARE SERVICES LTD,-572.00,PHY LTS 65+,"MAND STATUTORY CHARGES, RESIDENTIAL",2102716078,
04.09.2017,ADULT SOCIAL CARE,INDIGO CARE SERVICES LTD,"2,087.36",PHY LTS 65+,RESIDENTIAL CARE,2102716079,
04.09.2017,ADULT SOCIAL CARE,KEARSNEY MANOR NURSING HOME,-620.20,PHY LTS 65+,COSTS RECOVERED,2102715658,
04.09.2017,ADULT SOCIAL CARE,KEARSNEY MANOR NURSING HOME,-522.80,PHY LTS 65+,"MAND STATUTORY CHARGES, NURSING",2102715656,
04.09.2017,ADULT SOCIAL CARE,KEARSNEY MANOR NURSING HOME,"3,425.00",PHY LTS 65+,NURSING PLACEMENTS FEES,2102715657,
04.09.2017,ADULT SOCIAL CARE,KEARSNEY MANOR NURSING HOME,620.20,PHY LTS 65+,RECOVERABLE COSTS INCL. HEALTH,2102715659,
04.09.2017,ADULT SOCIAL CARE,KENTBRIM LTD,"-1,240.40",PHY LTS 65+,COSTS RECOVERED,2102715330,
04.09.2017,ADULT SOCIAL CARE,KENTBRIM LTD,"-5,380.60",PHY LTS 65+,"MAND STATUTORY CHARGES, NURSING",2102715328,
04.09.2017,ADULT SOCIAL CARE,KENTBRIM LTD,"6,450.00",PHY LTS 65+,NURSING PLACEMENTS FEES,2102715329,
04.09.2017,ADULT SOCIAL CARE,KENTBRIM LTD,"1,240.40",PHY LTS 65+,RECOVERABLE COSTS INCL. HEALTH,2102715331,
04.09.2017,ADULT SOCIAL CARE,LAURELS NURSING CARE CENTRE,-537.80,PHY LTS 65+,"MAND STATUTORY CHARGES, NURSING",2102715516,
04.09.2017,ADULT SOCIAL CARE,LAURELS NURSING CARE CENTRE,-505.64,PHY LTS 65+,"MAND STATUTORY CHARGES, NURSING",2102716130,
04.09.2017,ADULT SOCIAL CARE,LAURELS NURSING CARE CENTRE,"2,292.88",PHY LTS 65+,NURSING PLACEMENTS FEES,2102715835,
04.09.2017,ADULT SOCIAL CARE,LAURELS NURSING CARE CENTRE,"2,471.00",PHY LTS 65+,NURSING PLACEMENTS FEES,2102715517,
04.09.2017,ADULT SOCIAL CARE,LAURELS NURSING CARE CENTRE,"2,471.00",PHY LTS 65+,NURSING PLACEMENTS FEES,2102715859,
04.09.2017,ADULT SOCIAL CARE,LAURELS NURSING CARE CENTRE,"2,471.00",PHY LTS 65+,NURSING PLACEMENTS FEES,2102716390,
04.09.2017,ADULT SOCIAL CARE,LAURELS NURSING CARE CENTRE,"2,555.04",PHY LTS 65+,NURSING PLACEMENTS FEES,2102716131,
04.09.2017,ADULT SOCIAL CARE,LIFESTYLE CARE (2011) PLC,-537.80,PHY LTS 65+,"MAND STATUTORY CHARGES, NURSING",2102716373,
04.09.2017,ADULT SOCIAL CARE,LIFESTYLE CARE (2011) PLC,"2,137.60",PHY LTS 65+,NURSING PLACEMENTS FEES,2102716374,
04.09.2017,ADULT SOCIAL CARE,LITTLE SISTERS OF THE POOR,"2,204.56",PHY LTS 65+,RESIDENTIAL CARE,2102715344,
04.09.2017,ADULT SOCIAL CARE,LONDON RESIDENTIAL HEALTHCARE LTD,-537.80,PHY LTS 65+,"MAND STATUTORY CHARGES, NURSING",2102715459,
04.09.2017,ADULT SOCIAL CARE,LONDON RESIDENTIAL HEALTHCARE LTD,"2,137.60",PHY LTS 65+,NURSING PLACEMENTS FEES,2102715460,
04.09.2017,ADULT SOCIAL CARE,LONGHURST & HAVELOK HOMES LTD,-560.32,PHY LTS 65+,"MAND STATUTORY CHARGES, RESIDENTIAL",2102716336,
04.09.2017,ADULT SOCIAL CARE,LONGHURST & HAVELOK HOMES LTD,"2,087.36",PHY LTS 65+,RESIDENTIAL CARE,2102716337,
04.09.2017,ADULT SOCIAL CARE,LORVEN HOUSING LTD,-537.80,PHY LTS 65+,"MAND STATUTORY CHARGES, RESIDENTIAL",2102716307,
04.09.2017,ADULT SOCIAL CARE,LORVEN HOUSING LTD,"2,263.44",PHY LTS 65+,RESIDENTIAL CARE,2102716351,
04.09.2017,ADULT SOCIAL CARE,LORVEN HOUSING LTD,"2,322.32",PHY LTS 65+,RESIDENTIAL CARE,2102716308,
04.09.2017,ADULT SOCIAL CARE,LOVE WALK HOSTEL FOR DISABLED,-948.00,PHY LTS 65+,"MAND STATUTORY CHARGES, RESIDENTIAL",2102716533,
04.09.2017,ADULT SOCIAL CARE,LOVE WALK HOSTEL FOR DISABLED,"3,150.40",PHY LTS 65+,RESIDENTIAL CARE,2102715679,
04.09.2017,ADULT SOCIAL CARE,LOVE WALK HOSTEL FOR DISABLED,"3,256.24",PHY LTS 65+,RESIDENTIAL CARE,2102716534,
04.09.2017,ADULT SOCIAL CARE,LYNDHURST NURSING HOME,-620.20,PHY LTS 65+,COSTS RECOVERED,2102716394,
04.09.2017,ADULT SOCIAL CARE,LYNDHURST NURSING HOME,"2,084.00",PHY LTS 65+,NURSING PLACEMENTS FEES,2102716393,
04.09.2017,ADULT SOCIAL CARE,LYNDHURST NURSING HOME,620.20,PHY LTS 65+,RECOVERABLE COSTS INCL. HEALTH,2102716395,
04.09.2017,ADULT SOCIAL CARE,MAGNOLIA HOUSE RESIDENTIAL CARE HOME,"2,168.04",PHY LTS 65+,RESIDENTIAL CARE,2102715721,
04.09.2017,ADULT SOCIAL CARE,MANLEY COURT NURSING HOME (BUPA),287.26,PHY LTS 65+,NURSING PLACEMENTS FEES,2102715704,
04.09.2017,ADULT SOCIAL CARE,MANLEY COURT NURSING HOME (BUPA),"2,576.08",PHY LTS 65+,NURSING PLACEMENTS FEES,2102715508,
04.09.2017,ADULT SOCIAL CARE,MANLEY COURT NURSING HOME (BUPA),"2,681.12",PHY LTS 65+,NURSING PLACEMENTS FEES,2102715389,
04.09.2017,ADULT SOCIAL CARE,MANLEY COURT NURSING HOME (BUPA),"2,681.12",PHY LTS 65+,NURSING PLACEMENTS FEES,2102715963,
04.09.2017,ADULT SOCIAL CARE,MIHOMECARE LTD,255.32,PHY LTS 65+,HOMECARE - C&V,2102715070,
04.09.2017,ADULT SOCIAL CARE,MIHOMECARE LTD,272.32,PHY LTS 65+,HOMECARE - C&V,2102715051,
04.09.2017,ADULT SOCIAL CARE,MIHOMECARE LTD,272.32,PHY LTS 65+,HOMECARE - C&V,2102715142,
04.09.2017,ADULT SOCIAL CARE,MIHOMECARE LTD,280.83,PHY LTS 65+,HOMECARE - C&V,2102715069,
04.09.2017,ADULT SOCIAL CARE,MIHOMECARE LTD,289.36,PHY LTS 65+,HOMECARE - C&V,2102715040,
04.09.2017,ADULT SOCIAL CARE,MIHOMECARE LTD,289.36,PHY LTS 65+,HOMECARE - C&V,2102715109,
04.09.2017,ADULT SOCIAL CARE,MIHOMECARE LTD,289.36,PHY LTS 65+,HOMECARE - C&V,2102715242,
04.09.2017,ADULT SOCIAL CARE,MIHOMECARE LTD,297.86,PHY LTS 65+,HOMECARE - C&V,2102715303,
04.09.2017,ADULT SOCIAL CARE,MIHOMECARE LTD,306.36,PHY LTS 65+,HOMECARE - C&V,2102714956,
04.09.2017,ADULT SOCIAL CARE,MIHOMECARE LTD,306.36,PHY LTS 65+,HOMECARE - C&V,2102715148,
04.09.2017,ADULT SOCIAL CARE,MIHOMECARE LTD,306.36,PHY LTS 65+,HOMECARE - C&V,2102715200,
04.09.2017,ADULT SOCIAL CARE,MIHOMECARE LTD,319.13,PHY LTS 65+,HOMECARE - C&V,2102714983,
04.09.2017,ADULT SOCIAL CARE,MIHOMECARE LTD,323.38,PHY LTS 65+,HOMECARE - C&V,2102715032,
04.09.2017,ADULT SOCIAL CARE,MIHOMECARE LTD,340.40,PHY LTS 65+,HOMECARE - C&V,2102714962,
04.09.2017,ADULT SOCIAL CARE,MIHOMECARE LTD,340.40,PHY LTS 65+,HOMECARE - C&V,2102715094,
04.09.2017,ADULT SOCIAL CARE,MIHOMECARE LTD,340.40,PHY LTS 65+,HOMECARE - C&V,2102715286,
04.09.2017,ADULT SOCIAL CARE,MIHOMECARE LTD,344.66,PHY LTS 65+,HOMECARE - C&V,2102714948,
04.09.2017,ADULT SOCIAL CARE,MIHOMECARE LTD,344.67,PHY LTS 65+,HOMECARE - C&V,2102715276,
04.09.2017,ADULT SOCIAL CARE,MIHOMECARE LTD,357.42,PHY LTS 65+,HOMECARE - C&V,2102715031,
04.09.2017,ADULT SOCIAL CARE,MIHOMECARE LTD,357.42,PHY LTS 65+,HOMECARE - C&V,2102715090,
04.09.2017,ADULT SOCIAL CARE,MIHOMECARE LTD,357.42,PHY LTS 65+,HOMECARE - C&V,2102715118,
04.09.2017,ADULT SOCIAL CARE,MIHOMECARE LTD,357.44,PHY LTS 65+,HOMECARE - C&V,2102714940,
04.09.2017,ADULT SOCIAL CARE,MIHOMECARE LTD,357.44,PHY LTS 65+,HOMECARE - C&V,2102714986,
04.09.2017,ADULT SOCIAL CARE,MIHOMECARE LTD,357.44,PHY LTS 65+,HOMECARE - C&V,2102715000,
04.09.2017,ADULT SOCIAL CARE,MIHOMECARE LTD,357.44,PHY LTS 65+,HOMECARE - C&V,2102715024,
04.09.2017,ADULT SOCIAL CARE,MIHOMECARE LTD,357.44,PHY LTS 65+,HOMECARE - C&V,2102715045,
04.09.2017,ADULT SOCIAL CARE,MIHOMECARE LTD,357.44,PHY LTS 65+,HOMECARE - C&V,2102715074,
04.09.2017,ADULT SOCIAL CARE,MIHOMECARE LTD,357.44,PHY LTS 65+,HOMECARE - C&V,2102715100,
04.09.2017,ADULT SOCIAL CARE,MIHOMECARE LTD,357.44,PHY LTS 65+,HOMECARE - C&V,2102715119,
04.09.2017,ADULT SOCIAL CARE,MIHOMECARE LTD,357.44,PHY LTS 65+,HOMECARE - C&V,2102715131,
04.09.2017,ADULT SOCIAL CARE,MIHOMECARE LTD,357.44,PHY LTS 65+,HOMECARE - C&V,2102715233,
04.09.2017,ADULT SOCIAL CARE,MIHOMECARE LTD,357.44,PHY LTS 65+,HOMECARE - C&V,2102715304,
04.09.2017,ADULT SOCIAL CARE,MIHOMECARE LTD,357.44,PHY LTS 65+,HOMECARE - C&V,2102715307,
04.09.2017,ADULT SOCIAL CARE,MIHOMECARE LTD,365.93,PHY LTS 65+,HOMECARE - C&V,2102715122,
04.09.2017,ADULT SOCIAL CARE,MIHOMECARE LTD,365.94,PHY LTS 65+,HOMECARE - C&V,2102715133,
04.09.2017,ADULT SOCIAL CARE,MIHOMECARE LTD,374.44,PHY LTS 65+,HOMECARE - C&V,2102715096,
04.09.2017,ADULT SOCIAL CARE,MIHOMECARE LTD,374.44,PHY LTS 65+,HOMECARE - C&V,2102715221,
04.09.2017,ADULT SOCIAL CARE,MIHOMECARE LTD,374.44,PHY LTS 65+,HOMECARE - C&V,2102715238,
04.09.2017,ADULT SOCIAL CARE,MIHOMECARE LTD,382.95,PHY LTS 65+,HOMECARE - C&V,2102715199,
04.09.2017,ADULT SOCIAL CARE,MIHOMECARE LTD,382.97,PHY LTS 65+,HOMECARE - C&V,2102715019,
04.09.2017,ADULT SOCIAL CARE,MIHOMECARE LTD,391.46,PHY LTS 65+,HOMECARE - C&V,2102715136,
04.09.2017,ADULT SOCIAL CARE,MIHOMECARE LTD,399.98,PHY LTS 65+,HOMECARE - C&V,2102715105,
04.09.2017,ADULT SOCIAL CARE,MIHOMECARE LTD,404.24,PHY LTS 65+,HOMECARE - C&V,2102715257,
04.09.2017,ADULT SOCIAL CARE,MIHOMECARE LTD,408.48,PHY LTS 65+,HOMECARE - C&V,2102715058,
04.09.2017,ADULT SOCIAL CARE,MIHOMECARE LTD,425.52,PHY LTS 65+,HOMECARE - C&V,2102714943,
04.09.2017,ADULT SOCIAL CARE,MIHOMECARE LTD,425.52,PHY LTS 65+,HOMECARE - C&V,2102715140,
04.09.2017,ADULT SOCIAL CARE,MIHOMECARE LTD,425.52,PHY LTS 65+,HOMECARE - C&V,2102715146,
04.09.2017,ADULT SOCIAL CARE,MIHOMECARE LTD,425.52,PHY LTS 65+,HOMECARE - C&V,2102715203,
04.09.2017,ADULT SOCIAL CARE,MIHOMECARE LTD,425.52,PHY LTS 65+,HOMECARE - C&V,2102715289,
04.09.2017,ADULT SOCIAL CARE,MIHOMECARE LTD,434.01,PHY LTS 65+,HOMECARE - C&V,2102715038,
04.09.2017,ADULT SOCIAL CARE,MIHOMECARE LTD,459.56,PHY LTS 65+,HOMECARE - C&V,2102715080,
04.09.2017,ADULT SOCIAL CARE,MIHOMECARE LTD,468.06,PHY LTS 65+,HOMECARE - C&V,2102715220,
04.09.2017,ADULT SOCIAL CARE,MIHOMECARE LTD,476.56,PHY LTS 65+,HOMECARE - C&V,2102714991,
04.09.2017,ADULT SOCIAL CARE,MIHOMECARE LTD,476.56,PHY LTS 65+,HOMECARE - C&V,2102715075,
04.09.2017,ADULT SOCIAL CARE,MIHOMECARE LTD,489.34,PHY LTS 65+,HOMECARE - C&V,2102715039,
04.09.2017,ADULT SOCIAL CARE,MIHOMECARE LTD,493.60,PHY LTS 65+,HOMECARE - C&V,2102715064,
04.09.2017,ADULT SOCIAL CARE,MIHOMECARE LTD,510.60,PHY LTS 65+,HOMECARE - C&V,2102715194,
04.09.2017,ADULT SOCIAL CARE,MIHOMECARE LTD,510.60,PHY LTS 65+,HOMECARE - C&V,2102715259,
04.09.2017,ADULT SOCIAL CARE,MIHOMECARE LTD,514.87,PHY LTS 65+,HOMECARE - C&V,2102715298,
04.09.2017,ADULT SOCIAL CARE,MIHOMECARE LTD,544.64,PHY LTS 65+,HOMECARE - C&V,2102715020,
04.09.2017,ADULT SOCIAL CARE,MIHOMECARE LTD,544.66,PHY LTS 65+,HOMECARE - C&V,2102715132,
04.09.2017,ADULT SOCIAL CARE,MIHOMECARE LTD,544.66,PHY LTS 65+,HOMECARE - C&V,2102715166,
04.09.2017,ADULT SOCIAL CARE,MIHOMECARE LTD,544.66,PHY LTS 65+,HOMECARE - C&V,2102715176,
04.09.2017,ADULT SOCIAL CARE,MIHOMECARE LTD,561.68,PHY LTS 65+,HOMECARE - C&V,2102714974,
04.09.2017,ADULT SOCIAL CARE,MIHOMECARE LTD,561.68,PHY LTS 65+,HOMECARE - C&V,2102715300,
04.09.2017,ADULT SOCIAL CARE,MIHOMECARE LTD,578.68,PHY LTS 65+,HOMECARE - C&V,2102715240,
04.09.2017,ADULT SOCIAL CARE,MIHOMECARE LTD,595.72,PHY LTS 65+,HOMECARE - C&V,2102714959,
04.09.2017,ADULT SOCIAL CARE,MIHOMECARE LTD,595.72,PHY LTS 65+,HOMECARE - C&V,2102715095,
04.09.2017,ADULT SOCIAL CARE,MIHOMECARE LTD,595.72,PHY LTS 65+,HOMECARE - C&V,2102715216,
04.09.2017,ADULT SOCIAL CARE,MIHOMECARE LTD,595.72,PHY LTS 65+,HOMECARE - C&V,2102715243,
04.09.2017,ADULT SOCIAL CARE,MIHOMECARE LTD,596.72,PHY LTS 65+,HOMECARE - C&V,2102714995,
04.09.2017,ADULT SOCIAL CARE,MIHOMECARE LTD,599.97,PHY LTS 65+,HOMECARE - C&V,2102715159,
04.09.2017,ADULT SOCIAL CARE,MIHOMECARE LTD,608.48,PHY LTS 65+,HOMECARE - C&V,2102715201,
04.09.2017,ADULT SOCIAL CARE,MIHOMECARE LTD,612.72,PHY LTS 65+,HOMECARE - C&V,2102715067,
04.09.2017,ADULT SOCIAL CARE,MIHOMECARE LTD,612.72,PHY LTS 65+,HOMECARE - C&V,2102715162,
04.09.2017,ADULT SOCIAL CARE,MIHOMECARE LTD,612.72,PHY LTS 65+,HOMECARE - C&V,2102715263,
04.09.2017,ADULT SOCIAL CARE,MIHOMECARE LTD,629.74,PHY LTS 65+,HOMECARE - C&V,2102714942,
04.09.2017,ADULT SOCIAL CARE,MIHOMECARE LTD,629.74,PHY LTS 65+,HOMECARE - C&V,2102715113,
04.09.2017,ADULT SOCIAL CARE,MIHOMECARE LTD,638.27,PHY LTS 65+,HOMECARE - C&V,2102715202,
04.09.2017,ADULT SOCIAL CARE,MIHOMECARE LTD,642.51,PHY LTS 65+,HOMECARE - C&V,2102715013,
04.09.2017,ADULT SOCIAL CARE,MIHOMECARE LTD,646.76,PHY LTS 65+,HOMECARE - C&V,2102715172,
04.09.2017,ADULT SOCIAL CARE,MIHOMECARE LTD,651.02,PHY LTS 65+,HOMECARE - C&V,2102715022,
04.09.2017,ADULT SOCIAL CARE,MIHOMECARE LTD,655.27,PHY LTS 65+,HOMECARE - C&V,2102715130,
04.09.2017,ADULT SOCIAL CARE,MIHOMECARE LTD,655.29,PHY LTS 65+,HOMECARE - C&V,2102715028,
04.09.2017,ADULT SOCIAL CARE,MIHOMECARE LTD,663.78,PHY LTS 65+,HOMECARE - C&V,2102715120,
04.09.2017,ADULT SOCIAL CARE,MIHOMECARE LTD,663.80,PHY LTS 65+,HOMECARE - C&V,2102714976,
04.09.2017,ADULT SOCIAL CARE,MIHOMECARE LTD,663.80,PHY LTS 65+,HOMECARE - C&V,2102715041,
04.09.2017,ADULT SOCIAL CARE,MIHOMECARE LTD,663.80,PHY LTS 65+,HOMECARE - C&V,2102715173,
04.09.2017,ADULT SOCIAL CARE,MIHOMECARE LTD,672.31,PHY LTS 65+,HOMECARE - C&V,2102715306,
04.09.2017,ADULT SOCIAL CARE,MIHOMECARE LTD,693.58,PHY LTS 65+,HOMECARE - C&V,2102714971,
04.09.2017,ADULT SOCIAL CARE,MIHOMECARE LTD,697.84,PHY LTS 65+,HOMECARE - C&V,2102714947,
04.09.2017,ADULT SOCIAL CARE,MIHOMECARE LTD,697.84,PHY LTS 65+,HOMECARE - C&V,2102714955,
04.09.2017,ADULT SOCIAL CARE,MIHOMECARE LTD,697.84,PHY LTS 65+,HOMECARE - C&V,2102715206,
04.09.2017,ADULT SOCIAL CARE,MIHOMECARE LTD,706.35,PHY LTS 65+,HOMECARE - C&V,2102715053,
04.09.2017,ADULT SOCIAL CARE,MIHOMECARE LTD,714.84,PHY LTS 65+,HOMECARE - C&V,2102715081,
04.09.2017,ADULT SOCIAL CARE,MIHOMECARE LTD,714.84,PHY LTS 65+,HOMECARE - C&V,2102715180,
04.09.2017,ADULT SOCIAL CARE,MIHOMECARE LTD,714.84,PHY LTS 65+,HOMECARE - C&V,2102715193,
04.09.2017,ADULT SOCIAL CARE,MIHOMECARE LTD,714.84,PHY LTS 65+,HOMECARE - C&V,2102715198,
04.09.2017,ADULT SOCIAL CARE,MIHOMECARE LTD,714.84,PHY LTS 65+,HOMECARE - C&V,2102715211,
04.09.2017,ADULT SOCIAL CARE,MIHOMECARE LTD,714.86,PHY LTS 65+,HOMECARE - C&V,2102715222,
04.09.2017,ADULT SOCIAL CARE,MIHOMECARE LTD,723.37,PHY LTS 65+,HOMECARE - C&V,2102715088,
04.09.2017,ADULT SOCIAL CARE,MIHOMECARE LTD,727.61,PHY LTS 65+,HOMECARE - C&V,2102715269,
04.09.2017,ADULT SOCIAL CARE,MIHOMECARE LTD,731.88,PHY LTS 65+,HOMECARE - C&V,2102715195,
04.09.2017,ADULT SOCIAL CARE,MIHOMECARE LTD,736.12,PHY LTS 65+,HOMECARE - C&V,2102715151,
04.09.2017,ADULT SOCIAL CARE,MIHOMECARE LTD,761.66,PHY LTS 65+,HOMECARE - C&V,2102715254,
04.09.2017,ADULT SOCIAL CARE,MIHOMECARE LTD,761.66,PHY LTS 65+,HOMECARE - C&V,2102715265,
04.09.2017,ADULT SOCIAL CARE,MIHOMECARE LTD,765.90,PHY LTS 65+,HOMECARE - C&V,2102715112,
04.09.2017,ADULT SOCIAL CARE,MIHOMECARE LTD,765.92,PHY LTS 65+,HOMECARE - C&V,2102715097,
04.09.2017,ADULT SOCIAL CARE,MIHOMECARE LTD,774.41,PHY LTS 65+,HOMECARE - C&V,2102715246,
04.09.2017,ADULT SOCIAL CARE,MIHOMECARE LTD,791.44,PHY LTS 65+,HOMECARE - C&V,2102715126,
04.09.2017,ADULT SOCIAL CARE,MIHOMECARE LTD,791.45,PHY LTS 65+,HOMECARE - C&V,2102715317,
04.09.2017,ADULT SOCIAL CARE,MIHOMECARE LTD,808.45,PHY LTS 65+,HOMECARE - C&V,2102715217,
04.09.2017,ADULT SOCIAL CARE,MIHOMECARE LTD,816.96,PHY LTS 65+,HOMECARE - C&V,2102715134,
04.09.2017,ADULT SOCIAL CARE,MIHOMECARE LTD,816.98,PHY LTS 65+,HOMECARE - C&V,2102715141,
04.09.2017,ADULT SOCIAL CARE,MIHOMECARE LTD,816.98,PHY LTS 65+,HOMECARE - C&V,2102715235,
04.09.2017,ADULT SOCIAL CARE,MIHOMECARE LTD,821.23,PHY LTS 65+,HOMECARE - C&V,2102714963,
04.09.2017,ADULT SOCIAL CARE,MIHOMECARE LTD,821.23,PHY LTS 65+,HOMECARE - C&V,2102715218,
04.09.2017,ADULT SOCIAL CARE,MIHOMECARE LTD,825.47,PHY LTS 65+,HOMECARE - C&V,2102715087,
04.09.2017,ADULT SOCIAL CARE,MIHOMECARE LTD,834.00,PHY LTS 65+,HOMECARE - C&V,2102714945,
04.09.2017,ADULT SOCIAL CARE,MIHOMECARE LTD,834.00,PHY LTS 65+,HOMECARE - C&V,2102714950,
04.09.2017,ADULT SOCIAL CARE,MIHOMECARE LTD,834.00,PHY LTS 65+,HOMECARE - C&V,2102714952,
04.09.2017,ADULT SOCIAL CARE,MIHOMECARE LTD,834.00,PHY LTS 65+,HOMECARE - C&V,2102714969,
04.09.2017,ADULT SOCIAL CARE,MIHOMECARE LTD,834.00,PHY LTS 65+,HOMECARE - C&V,2102715002,
04.09.2017,ADULT SOCIAL CARE,MIHOMECARE LTD,834.00,PHY LTS 65+,HOMECARE - C&V,2102715121,
04.09.2017,ADULT SOCIAL CARE,MIHOMECARE LTD,834.00,PHY LTS 65+,HOMECARE - C&V,2102715163,
04.09.2017,ADULT SOCIAL CARE,MIHOMECARE LTD,838.25,PHY LTS 65+,HOMECARE - C&V,2102714944,
04.09.2017,ADULT SOCIAL CARE,MIHOMECARE LTD,838.25,PHY LTS 65+,HOMECARE - C&V,2102715036,
04.09.2017,ADULT SOCIAL CARE,MIHOMECARE LTD,842.51,PHY LTS 65+,HOMECARE - C&V,2102715255,
04.09.2017,ADULT SOCIAL CARE,MIHOMECARE LTD,851.00,PHY LTS 65+,HOMECARE - C&V,2102714998,
04.09.2017,ADULT SOCIAL CARE,MIHOMECARE LTD,851.00,PHY LTS 65+,HOMECARE - C&V,2102715302,
04.09.2017,ADULT SOCIAL CARE,MIHOMECARE LTD,863.78,PHY LTS 65+,HOMECARE - C&V,2102714972,
04.09.2017,ADULT SOCIAL CARE,MIHOMECARE LTD,868.02,PHY LTS 65+,HOMECARE - C&V,2102715236,
04.09.2017,ADULT SOCIAL CARE,MIHOMECARE LTD,885.04,PHY LTS 65+,HOMECARE - C&V,2102715295,
04.09.2017,ADULT SOCIAL CARE,MIHOMECARE LTD,885.04,PHY LTS 65+,HOMECARE - C&V,2102715309,
04.09.2017,ADULT SOCIAL CARE,MIHOMECARE LTD,910.59,PHY LTS 65+,HOMECARE - C&V,2102715261,
04.09.2017,ADULT SOCIAL CARE,MIHOMECARE LTD,936.12,PHY LTS 65+,HOMECARE - C&V,2102715021,
04.09.2017,ADULT SOCIAL CARE,MIHOMECARE LTD,936.12,PHY LTS 65+,HOMECARE - C&V,2102715244,
04.09.2017,ADULT SOCIAL CARE,MIHOMECARE LTD,936.12,PHY LTS 65+,HOMECARE - C&V,2102715248,
04.09.2017,ADULT SOCIAL CARE,MIHOMECARE LTD,936.12,PHY LTS 65+,HOMECARE - C&V,2102715310,
04.09.2017,ADULT SOCIAL CARE,MIHOMECARE LTD,953.12,PHY LTS 65+,HOMECARE - C&V,2102715046,
04.09.2017,ADULT SOCIAL CARE,MIHOMECARE LTD,953.12,PHY LTS 65+,HOMECARE - C&V,2102715128,
04.09.2017,ADULT SOCIAL CARE,MIHOMECARE LTD,953.12,PHY LTS 65+,HOMECARE - C&V,2102715247,
04.09.2017,ADULT SOCIAL CARE,MIHOMECARE LTD,953.12,PHY LTS 65+,HOMECARE - C&V,2102715250,
04.09.2017,ADULT SOCIAL CARE,MIHOMECARE LTD,953.12,PHY LTS 65+,HOMECARE - C&V,2102715287,
04.09.2017,ADULT SOCIAL CARE,MIHOMECARE LTD,953.12,PHY LTS 65+,HOMECARE - C&V,2102715318,
04.09.2017,ADULT SOCIAL CARE,MIHOMECARE LTD,957.39,PHY LTS 65+,HOMECARE - C&V,2102715284,
04.09.2017,ADULT SOCIAL CARE,MIHOMECARE LTD,970.16,PHY LTS 65+,HOMECARE - C&V,2102715299,
04.09.2017,ADULT SOCIAL CARE,MIHOMECARE LTD,970.16,PHY LTS 65+,HOMECARE - C&V,2102715322,
04.09.2017,ADULT SOCIAL CARE,MIHOMECARE LTD,974.41,PHY LTS 65+,HOMECARE - C&V,2102715293,
04.09.2017,ADULT SOCIAL CARE,MIHOMECARE LTD,987.18,PHY LTS 65+,HOMECARE - C&V,2102715267,
04.09.2017,ADULT SOCIAL CARE,MIHOMECARE LTD,995.68,PHY LTS 65+,HOMECARE - C&V,2102715219,
04.09.2017,ADULT SOCIAL CARE,MIHOMECARE LTD,995.68,PHY LTS 65+,HOMECARE - C&V,2102715273,
04.09.2017,ADULT SOCIAL CARE,MIHOMECARE LTD,"1,008.44",PHY LTS 65+,HOMECARE - C&V,2102715010,
04.09.2017,ADULT SOCIAL CARE,MIHOMECARE LTD,"1,033.97",PHY LTS 65+,HOMECARE - C&V,2102715224,
04.09.2017,ADULT SOCIAL CARE,MIHOMECARE LTD,"1,033.98",PHY LTS 65+,HOMECARE - C&V,2102715210,
04.09.2017,ADULT SOCIAL CARE,MIHOMECARE LTD,"1,050.99",PHY LTS 65+,HOMECARE - C&V,2102715138,
04.09.2017,ADULT SOCIAL CARE,MIHOMECARE LTD,"1,055.24",PHY LTS 65+,HOMECARE - C&V,2102714954,
04.09.2017,ADULT SOCIAL CARE,MIHOMECARE LTD,"1,055.24",PHY LTS 65+,HOMECARE - C&V,2102715033,
04.09.2017,ADULT SOCIAL CARE,MIHOMECARE LTD,"1,055.24",PHY LTS 65+,HOMECARE - C&V,2102715048,
04.09.2017,ADULT SOCIAL CARE,MIHOMECARE LTD,"1,055.24",PHY LTS 65+,HOMECARE - C&V,2102715065,
04.09.2017,ADULT SOCIAL CARE,MIHOMECARE LTD,"1,072.28",PHY LTS 65+,HOMECARE - C&V,2102714949,
04.09.2017,ADULT SOCIAL CARE,MIHOMECARE LTD,"1,072.28",PHY LTS 65+,HOMECARE - C&V,2102715260,
04.09.2017,ADULT SOCIAL CARE,MIHOMECARE LTD,"1,072.28",PHY LTS 65+,HOMECARE - C&V,2102715311,
04.09.2017,ADULT SOCIAL CARE,MIHOMECARE LTD,"1,076.53",PHY LTS 65+,HOMECARE - C&V,2102715068,
04.09.2017,ADULT SOCIAL CARE,MIHOMECARE LTD,"1,089.28",PHY LTS 65+,HOMECARE - C&V,2102714985,
04.09.2017,ADULT SOCIAL CARE,MIHOMECARE LTD,"1,089.28",PHY LTS 65+,HOMECARE - C&V,2102715212,
04.09.2017,ADULT SOCIAL CARE,MIHOMECARE LTD,"1,089.28",PHY LTS 65+,HOMECARE - C&V,2102715301,
04.09.2017,ADULT SOCIAL CARE,MIHOMECARE LTD,"1,097.79",PHY LTS 65+,HOMECARE - C&V,2102715072,
04.09.2017,ADULT SOCIAL CARE,MIHOMECARE LTD,"1,102.06",PHY LTS 65+,HOMECARE - C&V,2102715124,
04.09.2017,ADULT SOCIAL CARE,MIHOMECARE LTD,"1,106.32",PHY LTS 65+,HOMECARE - C&V,2102715252,
04.09.2017,ADULT SOCIAL CARE,MIHOMECARE LTD,"1,123.32",PHY LTS 65+,HOMECARE - C&V,2102715208,
04.09.2017,ADULT SOCIAL CARE,MIHOMECARE LTD,"1,131.84",PHY LTS 65+,HOMECARE - C&V,2102715192,
04.09.2017,ADULT SOCIAL CARE,MIHOMECARE LTD,"1,140.36",PHY LTS 65+,HOMECARE - C&V,2102715117,
04.09.2017,ADULT SOCIAL CARE,MIHOMECARE LTD,"1,148.85",PHY LTS 65+,HOMECARE - C&V,2102715164,
04.09.2017,ADULT SOCIAL CARE,MIHOMECARE LTD,"1,165.87",PHY LTS 65+,HOMECARE - C&V,2102715313,
04.09.2017,ADULT SOCIAL CARE,MIHOMECARE LTD,"1,165.88",PHY LTS 65+,HOMECARE - C&V,2102715037,
04.09.2017,ADULT SOCIAL CARE,MIHOMECARE LTD,"1,191.40",PHY LTS 65+,HOMECARE - C&V,2102715157,
04.09.2017,ADULT SOCIAL CARE,MIHOMECARE LTD,"1,191.40",PHY LTS 65+,HOMECARE - C&V,2102715207,
04.09.2017,ADULT SOCIAL CARE,MIHOMECARE LTD,"1,191.40",PHY LTS 65+,HOMECARE - C&V,2102715239,
04.09.2017,ADULT SOCIAL CARE,MIHOMECARE LTD,"1,191.40",PHY LTS 65+,HOMECARE - C&V,2102715312,
04.09.2017,ADULT SOCIAL CARE,MIHOMECARE LTD,"1,208.42",PHY LTS 65+,HOMECARE - C&V,2102715184,
04.09.2017,ADULT SOCIAL CARE,MIHOMECARE LTD,"1,225.44",PHY LTS 65+,HOMECARE - C&V,2102715007,
04.09.2017,ADULT SOCIAL CARE,MIHOMECARE LTD,"1,233.95",PHY LTS 65+,HOMECARE - C&V,2102714951,
04.09.2017,ADULT SOCIAL CARE,MIHOMECARE LTD,"1,238.21",PHY LTS 65+,HOMECARE - C&V,2102715050,
04.09.2017,ADULT SOCIAL CARE,MIHOMECARE LTD,"1,242.48",PHY LTS 65+,HOMECARE - C&V,2102715296,
04.09.2017,ADULT SOCIAL CARE,MIHOMECARE LTD,"1,246.72",PHY LTS 65+,HOMECARE - C&V,2102715017,
04.09.2017,ADULT SOCIAL CARE,MIHOMECARE LTD,"1,259.48",PHY LTS 65+,HOMECARE - C&V,2102715086,
04.09.2017,ADULT SOCIAL CARE,MIHOMECARE LTD,"1,285.03",PHY LTS 65+,HOMECARE - C&V,2102715158,
04.09.2017,ADULT SOCIAL CARE,MIHOMECARE LTD,"1,293.52",PHY LTS 65+,HOMECARE - C&V,2102715288,
04.09.2017,ADULT SOCIAL CARE,MIHOMECARE LTD,"1,302.03",PHY LTS 65+,HOMECARE - C&V,2102715152,
04.09.2017,ADULT SOCIAL CARE,MIHOMECARE LTD,"1,302.03",PHY LTS 65+,HOMECARE - C&V,2102715179,
04.09.2017,ADULT SOCIAL CARE,MIHOMECARE LTD,"1,344.58",PHY LTS 65+,HOMECARE - C&V,2102715129,
04.09.2017,ADULT SOCIAL CARE,MIHOMECARE LTD,"1,378.64",PHY LTS 65+,HOMECARE - C&V,2102715125,
04.09.2017,ADULT SOCIAL CARE,MIHOMECARE LTD,"1,412.67",PHY LTS 65+,HOMECARE - C&V,2102715104,
04.09.2017,ADULT SOCIAL CARE,MIHOMECARE LTD,"1,422.39",PHY LTS 65+,HOMECARE - C&V,2102715272,
04.09.2017,ADULT SOCIAL CARE,MIHOMECARE LTD,"1,429.68",PHY LTS 65+,HOMECARE - C&V,2102715054,
04.09.2017,ADULT SOCIAL CARE,MIHOMECARE LTD,"1,472.24",PHY LTS 65+,HOMECARE - C&V,2102715073,
04.09.2017,ADULT SOCIAL CARE,MIHOMECARE LTD,"1,514.80",PHY LTS 65+,HOMECARE - C&V,2102714953,
04.09.2017,ADULT SOCIAL CARE,MIHOMECARE LTD,"1,531.80",PHY LTS 65+,HOMECARE - C&V,2102714960,
04.09.2017,ADULT SOCIAL CARE,MIHOMECARE LTD,"1,531.80",PHY LTS 65+,HOMECARE - C&V,2102714982,
04.09.2017,ADULT SOCIAL CARE,MIHOMECARE LTD,"1,531.80",PHY LTS 65+,HOMECARE - C&V,2102715093,
04.09.2017,ADULT SOCIAL CARE,MIHOMECARE LTD,"1,531.80",PHY LTS 65+,HOMECARE - C&V,2102715270,
04.09.2017,ADULT SOCIAL CARE,MIHOMECARE LTD,"1,531.80",PHY LTS 65+,HOMECARE - C&V,2102715271,
04.09.2017,ADULT SOCIAL CARE,MIHOMECARE LTD,"1,531.80",PHY LTS 65+,HOMECARE - C&V,2102715274,
04.09.2017,ADULT SOCIAL CARE,MIHOMECARE LTD,"1,548.84",PHY LTS 65+,HOMECARE - C&V,2102715015,
04.09.2017,ADULT SOCIAL CARE,MIHOMECARE LTD,"1,582.88",PHY LTS 65+,HOMECARE - C&V,2102714964,
04.09.2017,ADULT SOCIAL CARE,MIHOMECARE LTD,"1,684.98",PHY LTS 65+,HOMECARE - C&V,2102715275,
04.09.2017,ADULT SOCIAL CARE,MIHOMECARE LTD,"1,880.71",PHY LTS 65+,HOMECARE - C&V,2102715280,
04.09.2017,ADULT SOCIAL CARE,MIHOMECARE LTD,"1,923.28",PHY LTS 65+,HOMECARE - C&V,2102714990,
04.09.2017,ADULT SOCIAL CARE,MIHOMECARE LTD,"2,101.97",PHY LTS 65+,HOMECARE - C&V,2102714939,
04.09.2017,ADULT SOCIAL CARE,MIHOMECARE LTD,"2,136.01",PHY LTS 65+,HOMECARE - C&V,2102715001,
04.09.2017,ADULT SOCIAL CARE,MIHOMECARE LTD,"2,136.01",PHY LTS 65+,HOMECARE - C&V,2102715155,
04.09.2017,ADULT SOCIAL CARE,MIHOMECARE LTD,"2,144.52",PHY LTS 65+,HOMECARE - C&V,2102715116,
04.09.2017,ADULT SOCIAL CARE,MIHOMECARE LTD,"2,144.52",PHY LTS 65+,HOMECARE - C&V,2102715169,
04.09.2017,ADULT SOCIAL CARE,MIHOMECARE LTD,"2,144.52",PHY LTS 65+,HOMECARE - C&V,2102715319,
04.09.2017,ADULT SOCIAL CARE,MIHOMECARE LTD,"2,153.03",PHY LTS 65+,HOMECARE - C&V,2102715209,
04.09.2017,ADULT SOCIAL CARE,MIHOMECARE LTD,"2,170.05",PHY LTS 65+,HOMECARE - C&V,2102715115,
04.09.2017,ADULT SOCIAL CARE,MIHOMECARE LTD,"2,187.07",PHY LTS 65+,HOMECARE - C&V,2102715290,
04.09.2017,ADULT SOCIAL CARE,MIHOMECARE LTD,"2,212.60",PHY LTS 65+,HOMECARE - C&V,2102715111,
04.09.2017,ADULT SOCIAL CARE,MIHOMECARE LTD,"2,275.82",PHY LTS 65+,HOMECARE - C&V,2102715225,
04.09.2017,ADULT SOCIAL CARE,MIHOMECARE LTD,"2,314.72",PHY LTS 65+,HOMECARE - C&V,2102714968,
04.09.2017,ADULT SOCIAL CARE,MIHOMECARE LTD,"2,340.25",PHY LTS 65+,HOMECARE - C&V,2102715292,
04.09.2017,ADULT SOCIAL CARE,MIHOMECARE LTD,"2,361.54",PHY LTS 65+,HOMECARE - C&V,2102715066,
04.09.2017,ADULT SOCIAL CARE,MIHOMECARE LTD,"2,370.04",PHY LTS 65+,HOMECARE - C&V,2102715253,
04.09.2017,ADULT SOCIAL CARE,MIHOMECARE LTD,"2,382.80",PHY LTS 65+,HOMECARE - C&V,2102714999,
04.09.2017,ADULT SOCIAL CARE,MIHOMECARE LTD,"2,382.80",PHY LTS 65+,HOMECARE - C&V,2102715018,
04.09.2017,ADULT SOCIAL CARE,MIHOMECARE LTD,"2,382.80",PHY LTS 65+,HOMECARE - C&V,2102715078,
04.09.2017,ADULT SOCIAL CARE,MIHOMECARE LTD,"2,382.80",PHY LTS 65+,HOMECARE - C&V,2102715187,
04.09.2017,ADULT SOCIAL CARE,MIHOMECARE LTD,"2,450.88",PHY LTS 65+,HOMECARE - C&V,2102715076,
04.09.2017,ADULT SOCIAL CARE,MIHOMECARE LTD,"2,715.31",PHY LTS 65+,HOMECARE - C&V,2102715223,
04.09.2017,ADULT SOCIAL CARE,MIHOMECARE LTD,"2,757.24",PHY LTS 65+,HOMECARE - C&V,2102715108,
04.09.2017,ADULT SOCIAL CARE,MIHOMECARE LTD,"2,757.24",PHY LTS 65+,HOMECARE - C&V,2102715315,
04.09.2017,ADULT SOCIAL CARE,MIHOMECARE LTD,"2,833.85",PHY LTS 65+,HOMECARE - C&V,2102715165,
04.09.2017,ADULT SOCIAL CARE,MIHOMECARE LTD,"2,842.36",PHY LTS 65+,HOMECARE - C&V,2102715297,
04.09.2017,ADULT SOCIAL CARE,MIHOMECARE LTD,"2,859.36",PHY LTS 65+,HOMECARE - C&V,2102715147,
04.09.2017,ADULT SOCIAL CARE,MIHOMECARE LTD,"2,910.42",PHY LTS 65+,HOMECARE - C&V,2102715143,
04.09.2017,ADULT SOCIAL CARE,MIHOMECARE LTD,"2,935.95",PHY LTS 65+,HOMECARE - C&V,2102715282,
04.09.2017,ADULT SOCIAL CARE,MIHOMECARE LTD,"2,978.50",PHY LTS 65+,HOMECARE - C&V,2102715197,
04.09.2017,ADULT SOCIAL CARE,MIHOMECARE LTD,"3,084.88",PHY LTS 65+,HOMECARE - C&V,2102715178,
04.09.2017,ADULT SOCIAL CARE,MIHOMECARE LTD,"3,131.68",PHY LTS 65+,HOMECARE - C&V,2102715153,
04.09.2017,ADULT SOCIAL CARE,MIHOMECARE LTD,"3,165.72",PHY LTS 65+,HOMECARE - C&V,2102715006,
04.09.2017,ADULT SOCIAL CARE,MIHOMECARE LTD,"3,335.92",PHY LTS 65+,HOMECARE - C&V,2102715107,
04.09.2017,ADULT SOCIAL CARE,MIHOMECARE LTD,"3,404.00",PHY LTS 65+,HOMECARE - C&V,2102715056,
04.09.2017,ADULT SOCIAL CARE,MIHOMECARE LTD,"3,676.32",PHY LTS 65+,HOMECARE - C&V,2102715229,
04.09.2017,ADULT SOCIAL CARE,MIHOMECARE LTD,"4,425.20",PHY LTS 65+,HOMECARE - C&V,2102715277,
04.09.2017,ADULT SOCIAL CARE,MIHOMECARE LTD,774.41,PHY LTS 65+,HOMECARE - SPOT,2102715278,
04.09.2017,ADULT SOCIAL CARE,MIHOMECARE LTD,953.14,PHY LTS 65+,HOMECARE - SPOT,2102715071,
04.09.2017,ADULT SOCIAL CARE,MIHOMECARE LTD,"1,276.52",PHY LTS 65+,HOMECARE - SPOT,2102715168,
04.09.2017,ADULT SOCIAL CARE,MISSION CARE,-720.28,PHY LTS 65+,"MAND STATUTORY CHARGES, NURSING",2102716136,
04.09.2017,ADULT SOCIAL CARE,MISSION CARE,"2,555.04",PHY LTS 65+,NURSING PLACEMENTS FEES,2102716137,
04.09.2017,ADULT SOCIAL CARE,N NOTARO HOMES LTD,-537.80,PHY LTS 65+,"MAND STATUTORY CHARGES, RESIDENTIAL",2102716081,
04.09.2017,ADULT SOCIAL CARE,N NOTARO HOMES LTD,"1,835.96",PHY LTS 65+,RESIDENTIAL CARE,2102716082,
04.09.2017,ADULT SOCIAL CARE,N NOTARO HOMES LTD,-799.80,PHY LTS 65+,"MAND STATUTORY CHARGES, RESIDENTIAL",2102715855,
04.09.2017,ADULT SOCIAL CARE,N NOTARO HOMES LTD,"2,087.36",PHY LTS 65+,RESIDENTIAL CARE,2102715856,
04.09.2017,ADULT SOCIAL CARE,NIGHTINGALE HAMMERSON,"2,650.76",PHY LTS 65+,NURSING PLACEMENTS FEES,2102715705,
04.09.2017,ADULT SOCIAL CARE,NIGHTINGALE HOUSE CARE CENTRE,-699.56,PHY LTS 65+,"MAND STATUTORY CHARGES, RESIDENTIAL",2102716500,
04.09.2017,ADULT SOCIAL CARE,NIGHTINGALE HOUSE CARE CENTRE,"2,087.36",PHY LTS 65+,RESIDENTIAL CARE,2102716501,
04.09.2017,ADULT SOCIAL CARE,NORBURY HALL RESIDENTIAL CARE HOME,-522.80,PHY LTS 65+,"MAND STATUTORY CHARGES, RESIDENTIAL",2102716292,
04.09.2017,ADULT SOCIAL CARE,NORBURY HALL RESIDENTIAL CARE HOME,"2,800.00",PHY LTS 65+,RESIDENTIAL CARE,2102716293,
04.09.2017,ADULT SOCIAL CARE,NOVA HOUSE RESIDENTIAL CARE HOME,-645.80,PHY LTS 65+,"MAND STATUTORY CHARGES, RESIDENTIAL",2102715653,
04.09.2017,ADULT SOCIAL CARE,NOVA HOUSE RESIDENTIAL CARE HOME,"2,233.00",PHY LTS 65+,RESIDENTIAL CARE,2102715654,
04.09.2017,ADULT SOCIAL CARE,OAKCROFT NURSING HOME LTD,-543.04,PHY LTS 65+,"MAND STATUTORY CHARGES, NURSING",2102716025,
04.09.2017,ADULT SOCIAL CARE,OAKCROFT NURSING HOME LTD,"2,358.44",PHY LTS 65+,NURSING PLACEMENTS FEES,2102716026,
04.09.2017,ADULT SOCIAL CARE,PARKVIEW NURSING HOME,-620.20,PHY LTS 65+,COSTS RECOVERED,2102715336,
04.09.2017,ADULT SOCIAL CARE,PARKVIEW NURSING HOME,-620.20,PHY LTS 65+,COSTS RECOVERED,2102715392,
04.09.2017,ADULT SOCIAL CARE,PARKVIEW NURSING HOME,-620.20,PHY LTS 65+,COSTS RECOVERED,2102716262,
04.09.2017,ADULT SOCIAL CARE,PARKVIEW NURSING HOME,-620.20,PHY LTS 65+,COSTS RECOVERED,2102716313,
04.09.2017,ADULT SOCIAL CARE,PARKVIEW NURSING HOME,-620.20,PHY LTS 65+,COSTS RECOVERED,2102716474,
04.09.2017,ADULT SOCIAL CARE,PARKVIEW NURSING HOME,-575.90,PHY LTS 65+,COSTS RECOVERED,2102716256,
04.09.2017,ADULT SOCIAL CARE,PARKVIEW NURSING HOME,-404.36,PHY LTS 65+,INCOME FOR THIRD PARTIES/AGENCY ARRANGEMENTS,2102715335,
04.09.2017,ADULT SOCIAL CARE,PARKVIEW NURSING HOME,"-3,000.00",PHY LTS 65+,"MAND STATUTORY CHARGES, NURSING",2102716260,
04.09.2017,ADULT SOCIAL CARE,PARKVIEW NURSING HOME,"-1,448.92",PHY LTS 65+,"MAND STATUTORY CHARGES, NURSING",2102715333,
04.09.2017,ADULT SOCIAL CARE,PARKVIEW NURSING HOME,-537.80,PHY LTS 65+,"MAND STATUTORY CHARGES, NURSING",2102715390,
04.09.2017,ADULT SOCIAL CARE,PARKVIEW NURSING HOME,-537.80,PHY LTS 65+,"MAND STATUTORY CHARGES, NURSING",2102715608,
04.09.2017,ADULT SOCIAL CARE,PARKVIEW NURSING HOME,-499.39,PHY LTS 65+,"MAND STATUTORY CHARGES, NURSING",2102716254,
04.09.2017,ADULT SOCIAL CARE,PARKVIEW NURSING HOME,"1,923.16",PHY LTS 65+,"MAND STATUTORY CHARGES, NURSING",2102716472,
04.09.2017,ADULT SOCIAL CARE,PARKVIEW NURSING HOME,"2,187.68",PHY LTS 65+,NURSING PLACEMENTS FEES,2102715475,
04.09.2017,ADULT SOCIAL CARE,PARKVIEW NURSING HOME,"2,187.68",PHY LTS 65+,NURSING PLACEMENTS FEES,2102715609,
04.09.2017,ADULT SOCIAL CARE,PARKVIEW NURSING HOME,"2,332.84",PHY LTS 65+,NURSING PLACEMENTS FEES,2102716219,
04.09.2017,ADULT SOCIAL CARE,PARKVIEW NURSING HOME,"2,382.00",PHY LTS 65+,NURSING PLACEMENTS FEES,2102715894,
04.09.2017,ADULT SOCIAL CARE,PARKVIEW NURSING HOME,"2,402.80",PHY LTS 65+,NURSING PLACEMENTS FEES,2102715563,
04.09.2017,ADULT SOCIAL CARE,PARKVIEW NURSING HOME,"2,603.04",PHY LTS 65+,NURSING PLACEMENTS FEES,2102716199,
04.09.2017,ADULT SOCIAL CARE,PARKVIEW NURSING HOME,"2,785.71",PHY LTS 65+,NURSING PLACEMENTS FEES,2102716255,
04.09.2017,ADULT SOCIAL CARE,PARKVIEW NURSING HOME,"3,000.00",PHY LTS 65+,NURSING PLACEMENTS FEES,2102715334,
04.09.2017,ADULT SOCIAL CARE,PARKVIEW NURSING HOME,"3,000.00",PHY LTS 65+,NURSING PLACEMENTS FEES,2102715391,
04.09.2017,ADULT SOCIAL CARE,PARKVIEW NURSING HOME,"3,000.00",PHY LTS 65+,NURSING PLACEMENTS FEES,2102716261,
04.09.2017,ADULT SOCIAL CARE,PARKVIEW NURSING HOME,"3,000.00",PHY LTS 65+,NURSING PLACEMENTS FEES,2102716312,
04.09.2017,ADULT SOCIAL CARE,PARKVIEW NURSING HOME,"3,000.00",PHY LTS 65+,NURSING PLACEMENTS FEES,2102716473,
04.09.2017,ADULT SOCIAL CARE,PARKVIEW NURSING HOME,575.90,PHY LTS 65+,RECOVERABLE COSTS INCL. HEALTH,2102716257,
04.09.2017,ADULT SOCIAL CARE,PARKVIEW NURSING HOME,620.20,PHY LTS 65+,RECOVERABLE COSTS INCL. HEALTH,2102715337,
04.09.2017,ADULT SOCIAL CARE,PARKVIEW NURSING HOME,620.20,PHY LTS 65+,RECOVERABLE COSTS INCL. HEALTH,2102715393,
04.09.2017,ADULT SOCIAL CARE,PARKVIEW NURSING HOME,620.20,PHY LTS 65+,RECOVERABLE COSTS INCL. HEALTH,2102716263,
04.09.2017,ADULT SOCIAL CARE,PARKVIEW NURSING HOME,620.20,PHY LTS 65+,RECOVERABLE COSTS INCL. HEALTH,2102716314,
04.09.2017,ADULT SOCIAL CARE,PARKVIEW NURSING HOME,620.20,PHY LTS 65+,RECOVERABLE COSTS INCL. HEALTH,2102716475,
04.09.2017,ADULT SOCIAL CARE,PARKVIEW NURSING HOME,404.36,PHY LTS 65+,THIRD PARTY TOP UP CARE,2102715332,
04.09.2017,ADULT SOCIAL CARE,PEARTREE CARE CENTRE (EXCELCARE),"2,292.88",PHY LTS 65+,NURSING PLACEMENTS FEES,2102715795,
04.09.2017,ADULT SOCIAL CARE,PEARTREE CARE CENTRE (EXCELCARE),"2,360.76",PHY LTS 65+,NURSING PLACEMENTS FEES,2102715962,
04.09.2017,ADULT SOCIAL CARE,PEARTREE CARE CENTRE (EXCELCARE),"2,403.12",PHY LTS 65+,NURSING PLACEMENTS FEES,2102715836,
04.09.2017,ADULT SOCIAL CARE,PEARTREE CARE CENTRE (EXCELCARE),"2,620.40",PHY LTS 65+,NURSING PLACEMENTS FEES,2102715501,
04.09.2017,ADULT SOCIAL CARE,PILGRIMS WAY RESIDENTIAL HOME,-620.20,PHY LTS 65+,COSTS RECOVERED,2102716118,
04.09.2017,ADULT SOCIAL CARE,PILGRIMS WAY RESIDENTIAL HOME,-537.80,PHY LTS 65+,"MAND STATUTORY CHARGES, NURSING",2102716116,
04.09.2017,ADULT SOCIAL CARE,PILGRIMS WAY RESIDENTIAL HOME,"3,525.00",PHY LTS 65+,NURSING PLACEMENTS FEES,2102716117,
04.09.2017,ADULT SOCIAL CARE,PILGRIMS WAY RESIDENTIAL HOME,620.20,PHY LTS 65+,RECOVERABLE COSTS INCL. HEALTH,2102716119,
04.09.2017,ADULT SOCIAL CARE,PROFAD CARE AGENCY,279.36,PHY LTS 65+,HOMECARE - C&V,2102714914,
04.09.2017,ADULT SOCIAL CARE,PROFAD CARE AGENCY,279.18,PHY LTS 65+,HOMECARE - SPOT,2102714923,
04.09.2017,ADULT SOCIAL CARE,PROFAD CARE AGENCY,441.28,PHY LTS 65+,HOMECARE - SPOT,2102714905,
04.09.2017,ADULT SOCIAL CARE,PROFAD CARE AGENCY,441.28,PHY LTS 65+,HOMECARE - SPOT,2102714930,
04.09.2017,ADULT SOCIAL CARE,PROFAD CARE AGENCY,469.16,PHY LTS 65+,HOMECARE - SPOT,2102714910,
04.09.2017,ADULT SOCIAL CARE,PROFAD CARE AGENCY,593.04,PHY LTS 65+,HOMECARE - SPOT,2102714912,
04.09.2017,ADULT SOCIAL CARE,PROFAD CARE AGENCY,639.95,PHY LTS 65+,HOMECARE - SPOT,2102714913,
04.09.2017,ADULT SOCIAL CARE,PROFAD CARE AGENCY,731.08,PHY LTS 65+,HOMECARE - SPOT,2102714936,
04.09.2017,ADULT SOCIAL CARE,PROFAD CARE AGENCY,938.08,PHY LTS 65+,HOMECARE - SPOT,2102714924,
04.09.2017,ADULT SOCIAL CARE,PROFAD CARE AGENCY,965.72,PHY LTS 65+,HOMECARE - SPOT,2102714922,
04.09.2017,ADULT SOCIAL CARE,PROFAD CARE AGENCY,"2,909.69",PHY LTS 65+,HOMECARE - SPOT,2102714927,
04.09.2017,ADULT SOCIAL CARE,PROFAD CARE AGENCY,"3,158.20",PHY LTS 65+,HOMECARE - SPOT,2102714925,
04.09.2017,ADULT SOCIAL CARE,PROFAD CARE AGENCY,"3,488.87",PHY LTS 65+,HOMECARE - SPOT,2102714920,
04.09.2017,ADULT SOCIAL CARE,RANC CARE HOMES LIMITED,"-1,949.20",PHY LTS 65+,COSTS RECOVERED,2102716143,
04.09.2017,ADULT SOCIAL CARE,RANC CARE HOMES LIMITED,"9,192.86",PHY LTS 65+,NURSING PLACEMENTS FEES,2102716142,
04.09.2017,ADULT SOCIAL CARE,RANC CARE HOMES LIMITED,"1,949.20",PHY LTS 65+,RECOVERABLE COSTS INCL. HEALTH,2102716144,
04.09.2017,ADULT SOCIAL CARE,RIVERLEE CARE HOME,"-1,173.95",PHY LTS 65+,COSTS RECOVERED,2102715490,
04.09.2017,ADULT SOCIAL CARE,RIVERLEE CARE HOME,-620.20,PHY LTS 65+,COSTS RECOVERED,2102716105,
04.09.2017,ADULT SOCIAL CARE,RIVERLEE CARE HOME,-522.80,PHY LTS 65+,"MAND STATUTORY CHARGES, NURSING",2102716103,
04.09.2017,ADULT SOCIAL CARE,RIVERLEE CARE HOME,-537.80,PHY LTS 65+,"MAND STATUTORY CHARGES, RESIDENTIAL",2102715413,
04.09.2017,ADULT SOCIAL CARE,RIVERLEE CARE HOME,"2,244.92",PHY LTS 65+,NURSING PLACEMENTS FEES,2102715613,
04.09.2017,ADULT SOCIAL CARE,RIVERLEE CARE HOME,"2,480.00",PHY LTS 65+,NURSING PLACEMENTS FEES,2102716104,
04.09.2017,ADULT SOCIAL CARE,RIVERLEE CARE HOME,"2,731.56",PHY LTS 65+,NURSING PLACEMENTS FEES,2102716151,
04.09.2017,ADULT SOCIAL CARE,RIVERLEE CARE HOME,"4,921.43",PHY LTS 65+,NURSING PLACEMENTS FEES,2102715489,
04.09.2017,ADULT SOCIAL CARE,RIVERLEE CARE HOME,620.20,PHY LTS 65+,RECOVERABLE COSTS INCL. HEALTH,2102716106,
04.09.2017,ADULT SOCIAL CARE,RIVERLEE CARE HOME,"1,173.95",PHY LTS 65+,RECOVERABLE COSTS INCL. HEALTH,2102715491,
04.09.2017,ADULT SOCIAL CARE,RIVERLEE CARE HOME,"2,233.88",PHY LTS 65+,RESIDENTIAL CARE,2102715937,
04.09.2017,ADULT SOCIAL CARE,RIVERLEE CARE HOME,"2,307.00",PHY LTS 65+,RESIDENTIAL CARE,2102715414,
04.09.2017,ADULT SOCIAL CARE,RIVERLEE CARE HOME,"2,307.00",PHY LTS 65+,RESIDENTIAL CARE,2102716274,
04.09.2017,ADULT SOCIAL CARE,ROSEDENE NURSING HOME,-579.00,PHY LTS 65+,"MAND STATUTORY CHARGES, NURSING",2102715871,
04.09.2017,ADULT SOCIAL CARE,ROSEDENE NURSING HOME,"3,591.68",PHY LTS 65+,NURSING PLACEMENTS FEES,2102715872,
04.09.2017,ADULT SOCIAL CARE,ROSENMANOR LTD,"2,624.00",PHY LTS 65+,RESIDENTIAL CARE,2102716319,
04.09.2017,ADULT SOCIAL CARE,ROSENMANOR LTD,"3,640.00",PHY LTS 65+,RESIDENTIAL CARE,2102716043,
04.09.2017,ADULT SOCIAL CARE,ROYAL HOSPITAL FOR NEURODISABILITY,-582.80,PHY LTS 65+,"MAND STATUTORY CHARGES, NURSING",2102716070,
04.09.2017,ADULT SOCIAL CARE,ROYAL HOSPITAL FOR NEURODISABILITY,"9,600.00",PHY LTS 65+,NURSING PLACEMENTS FEES,2102716071,
04.09.2017,ADULT SOCIAL CARE,RUNWOOD HOMES LTD (FRANK FOSTER HOUSE),-808.88,PHY LTS 65+,"MAND STATUTORY CHARGES, RESIDENTIAL",2102715467,
04.09.2017,ADULT SOCIAL CARE,RUNWOOD HOMES LTD (FRANK FOSTER HOUSE),"2,110.36",PHY LTS 65+,RESIDENTIAL CARE,2102715468,
04.09.2017,ADULT SOCIAL CARE,SANCTUARY CARE LTD,-573.24,PHY LTS 65+,"MAND STATUTORY CHARGES, RESIDENTIAL",2102715383,
04.09.2017,ADULT SOCIAL CARE,SANCTUARY CARE LTD,"2,233.00",PHY LTS 65+,RESIDENTIAL CARE,2102715384,
04.09.2017,ADULT SOCIAL CARE,SANCTUARY CARE LTD,"2,639.00",PHY LTS 65+,RESIDENTIAL CARE,2102715438,
04.09.2017,ADULT SOCIAL CARE,SIGNATURE HEALTH AND LIVING LTD,"3,800.00",PHY LTS 65+,RESIDENTIAL CARE,2102716315,
04.09.2017,ADULT SOCIAL CARE,SOUTH EAST LONDON BAPTIST HOME,"-12,600.00",PHY LTS 65+,"MAND STATUTORY CHARGES, RESIDENTIAL",2102716090,
04.09.2017,ADULT SOCIAL CARE,SOUTH EAST LONDON BAPTIST HOME,"20,430.00",PHY LTS 65+,"MAND STATUTORY CHARGES, RESIDENTIAL",2102716146,
04.09.2017,ADULT SOCIAL CARE,SOUTH EAST LONDON BAPTIST HOME,"2,923.20",PHY LTS 65+,RESIDENTIAL CARE,2102715428,
04.09.2017,ADULT SOCIAL CARE,SOUTH EAST LONDON BAPTIST HOME,"3,268.32",PHY LTS 65+,RESIDENTIAL CARE,2102716356,
04.09.2017,ADULT SOCIAL CARE,SOUTH EAST LONDON BAPTIST HOME,"27,946.80",PHY LTS 65+,RESIDENTIAL CARE,2102716091,
04.09.2017,ADULT SOCIAL CARE,SOUTHLANDS COURT CARE HOMES LTD,-650.28,PHY LTS 65+,"MAND STATUTORY CHARGES, RESIDENTIAL",2102716310,
04.09.2017,ADULT SOCIAL CARE,SOUTHLANDS COURT CARE HOMES LTD,"2,216.76",PHY LTS 65+,RESIDENTIAL CARE,2102716311,
04.09.2017,ADULT SOCIAL CARE,ST ANTONY`S CARE HOME,"2,089.68",PHY LTS 65+,RESIDENTIAL CARE,2102715834,
04.09.2017,ADULT SOCIAL CARE,ST GEORGES NURSING HOME LTD,-620.20,PHY LTS 65+,COSTS RECOVERED,2102715403,
04.09.2017,ADULT SOCIAL CARE,ST GEORGES NURSING HOME LTD,-522.80,PHY LTS 65+,"MAND STATUTORY CHARGES, NURSING",2102715401,
04.09.2017,ADULT SOCIAL CARE,ST GEORGES NURSING HOME LTD,"3,015.00",PHY LTS 65+,NURSING PLACEMENTS FEES,2102715402,
04.09.2017,ADULT SOCIAL CARE,ST GEORGES NURSING HOME LTD,620.20,PHY LTS 65+,RECOVERABLE COSTS INCL. HEALTH,2102715404,
04.09.2017,ADULT SOCIAL CARE,ST MARY'S CARE HOMES,"-1,041.05",PHY LTS 65+,COSTS RECOVERED,2102716049,
04.09.2017,ADULT SOCIAL CARE,ST MARY'S CARE HOMES,"4,108.40",PHY LTS 65+,NURSING PLACEMENTS FEES,2102716048,
04.09.2017,ADULT SOCIAL CARE,ST MARY'S CARE HOMES,"1,041.05",PHY LTS 65+,RECOVERABLE COSTS INCL. HEALTH,2102716050,
04.09.2017,ADULT SOCIAL CARE,STRODE PARK FNDN FOR THE DISABLED,-537.80,PHY LTS 65+,"MAND STATUTORY CHARGES, RESIDENTIAL",2102716068,
04.09.2017,ADULT SOCIAL CARE,STRODE PARK FNDN FOR THE DISABLED,"3,983.28",PHY LTS 65+,RESIDENTIAL CARE,2102716069,
04.09.2017,ADULT SOCIAL CARE,THE ABBEYFIELD KENT SOCIETY,"2,341.60",PHY LTS 65+,RESIDENTIAL CARE,2102716455,
04.09.2017,ADULT SOCIAL CARE,THE LIME TREE RESIDENTIAL CARE HOME,-537.80,PHY LTS 65+,"MAND STATUTORY CHARGES, RESIDENTIAL",2102715938,
04.09.2017,ADULT SOCIAL CARE,THE LIME TREE RESIDENTIAL CARE HOME,"2,087.36",PHY LTS 65+,RESIDENTIAL CARE,2102715939,
04.09.2017,ADULT SOCIAL CARE,TOWER BRIDGE NURSING CENTRE,-637.36,PHY LTS 65+,"MAND STATUTORY CHARGES, NURSING",2102715648,
04.09.2017,ADULT SOCIAL CARE,TOWER BRIDGE NURSING CENTRE,-537.80,PHY LTS 65+,"MAND STATUTORY CHARGES, NURSING",2102715796,
04.09.2017,ADULT SOCIAL CARE,TOWER BRIDGE NURSING CENTRE,"2,187.64",PHY LTS 65+,NURSING PLACEMENTS FEES,2102715649,
04.09.2017,ADULT SOCIAL CARE,TOWER BRIDGE NURSING CENTRE,"2,187.64",PHY LTS 65+,NURSING PLACEMENTS FEES,2102715797,
04.09.2017,ADULT SOCIAL CARE,TWINGLOBE CARE LTD,"3,198.48",PHY LTS 65+,RESIDENTIAL CARE,2102715793,
04.09.2017,ADULT SOCIAL CARE,VICTORIA NURSING GROUP LTD,"-5,372.65",PHY LTS 65+,COSTS RECOVERED,2102715973,
04.09.2017,ADULT SOCIAL CARE,VICTORIA NURSING GROUP LTD,-537.80,PHY LTS 65+,"MAND STATUTORY CHARGES, RESIDENTIAL",2102716512,
04.09.2017,ADULT SOCIAL CARE,VICTORIA NURSING GROUP LTD,"22,296.84",PHY LTS 65+,NURSING PLACEMENTS FEES,2102715972,
04.09.2017,ADULT SOCIAL CARE,VICTORIA NURSING GROUP LTD,"5,372.65",PHY LTS 65+,RECOVERABLE COSTS INCL. HEALTH,2102715974,
04.09.2017,ADULT SOCIAL CARE,VICTORIA NURSING GROUP LTD,"2,087.36",PHY LTS 65+,RESIDENTIAL CARE,2102716513,
04.09.2017,ADULT SOCIAL CARE,WAVERTREE NURSING HOME,-537.80,PHY LTS 65+,"MAND STATUTORY CHARGES, NURSING",2102715371,
04.09.2017,ADULT SOCIAL CARE,WAVERTREE NURSING HOME,"2,137.60",PHY LTS 65+,NURSING PLACEMENTS FEES,2102715372,
04.09.2017,ADULT SOCIAL CARE,WEST DUNBARTONSHIRE COUNCIL,"2,522.16",PHY LTS 65+,RESIDENTIAL CARE,2102715773,
04.09.2017,ADULT SOCIAL CARE,WESTHOPE LTD,"4,848.00",PHY LTS 65+,RESIDENTIAL CARE,2102715788,
04.09.2017,ADULT SOCIAL CARE,WOMBWELL HALL NURSING HOME,-620.20,PHY LTS 65+,COSTS RECOVERED,2102716354,
04.09.2017,ADULT SOCIAL CARE,WOMBWELL HALL NURSING HOME,"-1,059.48",PHY LTS 65+,"MAND STATUTORY CHARGES, NURSING",2102716352,
04.09.2017,ADULT SOCIAL CARE,WOMBWELL HALL NURSING HOME,"2,162.40",PHY LTS 65+,NURSING PLACEMENTS FEES,2102716353,
04.09.2017,ADULT SOCIAL CARE,WOMBWELL HALL NURSING HOME,620.20,PHY LTS 65+,RECOVERABLE COSTS INCL. HEALTH,2102716355,
04.09.2017,ADULT SOCIAL CARE,WOODLANDS TOTAL CARE NURSING HOME,"-1,860.60",PHY LTS 65+,COSTS RECOVERED,2102715758,
04.09.2017,ADULT SOCIAL CARE,WOODLANDS TOTAL CARE NURSING HOME,"6,669.36",PHY LTS 65+,NURSING PLACEMENTS FEES,2102715757,
04.09.2017,ADULT SOCIAL CARE,WOODLANDS TOTAL CARE NURSING HOME,"1,860.60",PHY LTS 65+,RECOVERABLE COSTS INCL. HEALTH,2102715759,
04.09.2017,ADULT SOCIAL CARE,YOURCARE LTD,"-2,879.50",PHY LTS 65+,COSTS RECOVERED,2102716245,
04.09.2017,ADULT SOCIAL CARE,YOURCARE LTD,"-2,765.98",PHY LTS 65+,"MAND STATUTORY CHARGES, NURSING",2102716243,
04.09.2017,ADULT SOCIAL CARE,YOURCARE LTD,"13,650.00",PHY LTS 65+,NURSING PLACEMENTS FEES,2102716244,
04.09.2017,ADULT SOCIAL CARE,YOURCARE LTD,"2,879.50",PHY LTS 65+,RECOVERABLE COSTS INCL. HEALTH,2102716246,
04.09.2017,ADULT SOCIAL CARE,YOUTH GRACES (UK) LTD,499.94,PHY LTS 65+,HOMECARE - C&V,2102714859,
04.09.2017,ADULT SOCIAL CARE,YOUTH GRACES (UK) LTD,255.22,PHY LTS 65+,HOMECARE - SPOT,2102714868,
04.09.2017,ADULT SOCIAL CARE,YOUTH GRACES (UK) LTD,282.66,PHY LTS 65+,HOMECARE - SPOT,2102714822,
04.09.2017,ADULT SOCIAL CARE,YOUTH GRACES (UK) LTD,351.75,PHY LTS 65+,HOMECARE - SPOT,2102714870,
04.09.2017,ADULT SOCIAL CARE,YOUTH GRACES (UK) LTD,472.36,PHY LTS 65+,HOMECARE - SPOT,2102714846,
04.09.2017,ADULT SOCIAL CARE,YOUTH GRACES (UK) LTD,503.41,PHY LTS 65+,HOMECARE - SPOT,2102714816,
04.09.2017,ADULT SOCIAL CARE,YOUTH GRACES (UK) LTD,548.25,PHY LTS 65+,HOMECARE - SPOT,2102714891,
04.09.2017,ADULT SOCIAL CARE,FLAGSWAN TWO LIMITED,-352.56,SEN LTS 18-64,"MAND STATUTORY CHARGES, NURSING",2102715910,
04.09.2017,ADULT SOCIAL CARE,FLAGSWAN TWO LIMITED,"3,212.24",SEN LTS 18-64,NURSING PLACEMENTS FEES,2102715911,
04.09.2017,ADULT SOCIAL CARE,ANCHOR TRUST,-522.80,SEN LTS 65+,"MAND STATUTORY CHARGES, RESIDENTIAL",2102716181,
04.09.2017,ADULT SOCIAL CARE,ANCHOR TRUST,"1,963.80",SEN LTS 65+,RESIDENTIAL CARE,2102716180,
04.09.2017,ADULT SOCIAL CARE,ASHLEY GARDENS C/O HEALTHCARE HOMES (LSC) LTD,-620.20,SEN LTS 65+,COSTS RECOVERED,2102715953,
04.09.2017,ADULT SOCIAL CARE,ASHLEY GARDENS C/O HEALTHCARE HOMES (LSC) LTD,"2,672.00",SEN LTS 65+,NURSING PLACEMENTS FEES,2102715952,
04.09.2017,ADULT SOCIAL CARE,ASHLEY GARDENS C/O HEALTHCARE HOMES (LSC) LTD,620.20,SEN LTS 65+,RECOVERABLE COSTS INCL. HEALTH,2102715951,
04.09.2017,ADULT SOCIAL CARE,GREENHILL CARE HOME,-620.20,SEN LTS 65+,COSTS RECOVERED,2102716525,
04.09.2017,ADULT SOCIAL CARE,GREENHILL CARE HOME,-535.66,SEN LTS 65+,"MAND STATUTORY CHARGES, NURSING",2102716524,
04.09.2017,ADULT SOCIAL CARE,GREENHILL CARE HOME,"2,540.00",SEN LTS 65+,NURSING PLACEMENTS FEES,2102716523,
04.09.2017,ADULT SOCIAL CARE,GREENHILL CARE HOME,620.20,SEN LTS 65+,RECOVERABLE COSTS INCL. HEALTH,2102716522,
04.09.2017,ADULT SOCIAL CARE,MIHOMECARE LTD,493.58,SEN LTS 65+,HOMECARE - C&V,2102715123,
04.09.2017,ADULT SOCIAL CARE,MIHOMECARE LTD,851.00,SEN LTS 65+,HOMECARE - C&V,2102715182,
04.09.2017,ADULT SOCIAL CARE,PROFAD CARE AGENCY,537.88,SEN LTS 65+,HOMECARE - SPOT,2102714929,
04.09.2017,ADULT SOCIAL CARE,ANCHOR TRUST,-633.84,SOCIAL ISOLATION,"MAND STATUTORY CHARGES, RESIDENTIAL",2102715829,
04.09.2017,ADULT SOCIAL CARE,ANCHOR TRUST,"2,314.48",SOCIAL ISOLATION,RESIDENTIAL CARE,2102715830,
04.09.2017,ADULT SOCIAL CARE,ARCHERS POINT RESIDENTIAL HOME,"5,491.43",SOCIAL ISOLATION,RESIDENTIAL CARE,2102715338,
04.09.2017,ADULT SOCIAL CARE,MIHOMECARE LTD,408.48,SOCIAL ISOLATION,HOMECARE - C&V,2102715027,
04.09.2017,ADULT SOCIAL CARE,MIHOMECARE LTD,476.56,SOCIAL ISOLATION,HOMECARE - C&V,2102715014,
04.09.2017,ADULT SOCIAL CARE,MIHOMECARE LTD,646.76,SOCIAL ISOLATION,HOMECARE - C&V,2102714938,
04.09.2017,ADULT SOCIAL CARE,MIHOMECARE LTD,663.78,SOCIAL ISOLATION,HOMECARE - C&V,2102715005,
04.09.2017,ADULT SOCIAL CARE,MIHOMECARE LTD,731.88,SOCIAL ISOLATION,HOMECARE - C&V,2102715060,
04.09.2017,ADULT SOCIAL CARE,MIHOMECARE LTD,799.96,SOCIAL ISOLATION,HOMECARE - C&V,2102715156,
04.09.2017,ADULT SOCIAL CARE,MIHOMECARE LTD,816.96,SOCIAL ISOLATION,HOMECARE - C&V,2102714989,
04.09.2017,ADULT SOCIAL CARE,MIHOMECARE LTD,851.00,SOCIAL ISOLATION,HOMECARE - C&V,2102715320,
04.09.2017,ADULT SOCIAL CARE,MIHOMECARE LTD,859.51,SOCIAL ISOLATION,HOMECARE - C&V,2102714994,
04.09.2017,ADULT SOCIAL CARE,MIHOMECARE LTD,"2,493.44",SOCIAL ISOLATION,HOMECARE - C&V,2102715083,
04.09.2017,ADULT SOCIAL CARE,PROFAD CARE AGENCY,303.52,SOCIAL ISOLATION,HOMECARE - SPOT,2102714906,
04.09.2017,ADULT SOCIAL CARE,YOUTH GRACES (UK) LTD,489.75,SOCIAL ISOLATION,HOMECARE - SPOT,2102714867,
04.09.2017,ADULT SOCIAL CARE,CHANDOS HOUSE TREATMENT,-786.60,SUB LTS 18-64,"MAND STATUTORY CHARGES, RESIDENTIAL",2102716085,
04.09.2017,ADULT SOCIAL CARE,CHANDOS HOUSE TREATMENT,-701.40,SUB LTS 18-64,"MAND STATUTORY CHARGES, RESIDENTIAL",2102716559,
04.09.2017,ADULT SOCIAL CARE,CHANDOS HOUSE TREATMENT,"2,800.00",SUB LTS 18-64,RESIDENTIAL CARE,2102716086,
04.09.2017,ADULT SOCIAL CARE,EQUINOX,"2,260.92",SUB LTS 18-64,RESIDENTIAL CARE,2102715932,
04.09.2017,ADULT SOCIAL CARE,LOVE WALK HOSTEL FOR DISABLED,"3,146.52",SUB LTS 18-64,RESIDENTIAL CARE,2102715808,
04.09.2017,ADULT SOCIAL CARE,MIHOMECARE LTD,451.03,SUB LTS 18-64,HOMECARE - C&V,2102714979,
04.09.2017,ADULT SOCIAL CARE,PARK VIEW CARE HOME,"4,070.56",SUB LTS 18-64,NURSING PLACEMENTS FEES,2102716247,
04.09.2017,ADULT SOCIAL CARE,ST GEORGES NURSING HOME LTD,-620.20,SUB LTS 18-64,COSTS RECOVERED,2102715924,
04.09.2017,ADULT SOCIAL CARE,ST GEORGES NURSING HOME LTD,"3,640.00",SUB LTS 18-64,NURSING PLACEMENTS FEES,2102715925,
04.09.2017,ADULT SOCIAL CARE,EQUINOX,"2,723.00",SUB LTS 65+,RESIDENTIAL CARE,2102716062,
04.09.2017,ADULT SOCIAL CARE,CARE O LINE,"2,921.25",TRANSITION 14YRS TO 18YRS,SECTION 17 PAYMENTS TO AGENCIES/CARERS,2102714787,
04.09.2017,ADULT SOCIAL CARE,CARE O LINE,"3,016.25",TRANSITION 14YRS TO 18YRS,SECTION 17 PAYMENTS TO AGENCIES/CARERS,2102714788,
04.09.2017,ADULT SOCIAL CARE,CARE O LINE,"3,016.25",TRANSITION 14YRS TO 18YRS,SECTION 17 PAYMENTS TO AGENCIES/CARERS,2102714791,
04.09.2017,ADULT SOCIAL CARE,CARE O LINE,"3,230.00",TRANSITION 14YRS TO 18YRS,SECTION 17 PAYMENTS TO AGENCIES/CARERS,2102714793,
04.09.2017,ADULT SOCIAL CARE,CONTACT PROFESSIONALS,"2,071.00",TRANSITION 14YRS TO 18YRS,SECTION 17 PAYMENTS TO AGENCIES/CARERS,2102714794,
04.09.2017,ASSET MANAGEMENT,LONDON TOOLS LIMITED,544.50,R&M CONTRACTS (NORTH),MATERIALS,5902266501,
04.09.2017,ASSET MANAGEMENT,BRIDGEWATER ROOFING CONTRACTORS LTD,-550.00,VISIBLE DIFFERENCE (NORTH),BUILDING R&M,5902266872,
04.09.2017,ASSET MANAGEMENT,BRIDGEWATER ROOFING CONTRACTORS LTD,-300.00,VISIBLE DIFFERENCE (NORTH),BUILDING R&M,5902266873,
04.09.2017,ASSET MANAGEMENT,BRIDGEWATER ROOFING CONTRACTORS LTD,300.00,VISIBLE DIFFERENCE (NORTH),BUILDING R&M,5902266756,
04.09.2017,ASSET MANAGEMENT,BRIDGEWATER ROOFING CONTRACTORS LTD,550.00,VISIBLE DIFFERENCE (NORTH),BUILDING R&M,5902266757,
04.09.2017,CENTRAL FUNCTIONS,REDACTED PERSONAL DATA,297.00,HOME OWNERSHIP,LEGAL FEES & COURT COSTS,5902266615,
04.09.2017,CENTRAL FUNCTIONS,REDACTED PERSONAL DATA,279.40,HOME OWNERSHIP INCOME,HOUSING RESIDENTIAL RENTS,5902266589,
04.09.2017,CENTRAL FUNCTIONS,THACKRAY  WILLIAMS SOLICITORS,"12,706.04",HOME OWNERSHIP INCOME,HOUSING RESIDENTIAL RENTS,5902266392,
04.09.2017,CHIEF EXECUTIVE,ADAMS AND SUTHERLAND,"3,681.10",CAPITAL PS (REGEN),CONSTRUCTION FEES,5902266477,
04.09.2017,CHIEF EXECUTIVE,ERECT ARCHITECTURE LTD,750.00,CAPITAL PS (REGEN),CONSTRUCTION FEES,5902266548,
04.09.2017,CHIEF EXECUTIVE,KENNY HUNTER,"5,000.00",CAPITAL PS (REGEN),CONSTRUCTION FEES  - EXTERNAL,5902266549,
04.09.2017,CHILDREN AND ADULT,WILLIAM J MARSHALL & PARTNERS LLP,"4,993.75",CAPITAL PS (EDUCATION),CONSTRUCTION FEES - LEGAL,5902266286,
04.09.2017,CHILDREN AND ADULT,HERBERT CONSULTING LIMITED,"6,600.00",CAPITAL PS (STRAT SERV),ICT ACQUISITION,5902266419,
04.09.2017,CHILDREN'S SERVICES,ASCENT FOSTERING AGENCY LTD,"5,690.67",AGENCY FOSTERING,EXTERNAL AGENCIES AND BODIES,2102714744,
04.09.2017,CHILDREN'S SERVICES,BY THE BRIDGE LTD,"4,218.52",AGENCY FOSTERING,EXTERNAL AGENCIES AND BODIES,2102714767,
04.09.2017,CHILDREN'S SERVICES,BY THE BRIDGE LTD,"4,347.09",AGENCY FOSTERING,EXTERNAL AGENCIES AND BODIES,2102714769,
04.09.2017,CHILDREN'S SERVICES,BY THE BRIDGE LTD,"4,440.57",AGENCY FOSTERING,EXTERNAL AGENCIES AND BODIES,2102714761,
04.09.2017,CHILDREN'S SERVICES,BY THE BRIDGE LTD,"4,440.57",AGENCY FOSTERING,EXTERNAL AGENCIES AND BODIES,2102714779,
04.09.2017,CHILDREN'S SERVICES,BY THE BRIDGE LTD,"4,504.96",AGENCY FOSTERING,EXTERNAL AGENCIES AND BODIES,2102714780,
04.09.2017,CHILDREN'S SERVICES,BY THE BRIDGE LTD,"4,580.78",AGENCY FOSTERING,EXTERNAL AGENCIES AND BODIES,2102714723,
04.09.2017,CHILDREN'S SERVICES,BY THE BRIDGE LTD,"4,580.78",AGENCY FOSTERING,EXTERNAL AGENCIES AND BODIES,2102714750,
04.09.2017,CHILDREN'S SERVICES,BY THE BRIDGE LTD,"4,580.78",AGENCY FOSTERING,EXTERNAL AGENCIES AND BODIES,2102714751,
04.09.2017,CHILDREN'S SERVICES,BY THE BRIDGE LTD,"4,580.78",AGENCY FOSTERING,EXTERNAL AGENCIES AND BODIES,2102714768,
04.09.2017,CHILDREN'S SERVICES,BY THE BRIDGE LTD,"4,674.27",AGENCY FOSTERING,EXTERNAL AGENCIES AND BODIES,2102714738,
04.09.2017,CHILDREN'S SERVICES,BY THE BRIDGE LTD,"4,674.27",AGENCY FOSTERING,EXTERNAL AGENCIES AND BODIES,2102714749,
04.09.2017,CHILDREN'S SERVICES,BY THE BRIDGE LTD,"4,805.49",AGENCY FOSTERING,EXTERNAL AGENCIES AND BODIES,2102714727,
04.09.2017,CHILDREN'S SERVICES,BY THE BRIDGE LTD,"4,805.49",AGENCY FOSTERING,EXTERNAL AGENCIES AND BODIES,2102714739,
04.09.2017,CHILDREN'S SERVICES,BY THE BRIDGE LTD,"4,903.54",AGENCY FOSTERING,EXTERNAL AGENCIES AND BODIES,2102714762,
04.09.2017,CHILDREN'S SERVICES,BY THE BRIDGE LTD,"5,757.14",AGENCY FOSTERING,EXTERNAL AGENCIES AND BODIES,2102714722,
04.09.2017,CHILDREN'S SERVICES,BY THE BRIDGE LTD,"6,231.00",AGENCY FOSTERING,EXTERNAL AGENCIES AND BODIES,2102714737,
04.09.2017,CHILDREN'S SERVICES,BY THE BRIDGE LTD,"7,276.21",AGENCY FOSTERING,EXTERNAL AGENCIES AND BODIES,2102714781,
04.09.2017,CHILDREN'S SERVICES,CHILDREN FIRST FOSTERING AGENCY LTD,"3,875.00",AGENCY FOSTERING,EXTERNAL AGENCIES AND BODIES,2102714753,
04.09.2017,CHILDREN'S SERVICES,CHILDREN FIRST FOSTERING AGENCY LTD,"3,981.33",AGENCY FOSTERING,EXTERNAL AGENCIES AND BODIES,2102714721,
04.09.2017,CHILDREN'S SERVICES,CHILDREN FIRST FOSTERING AGENCY LTD,"3,981.33",AGENCY FOSTERING,EXTERNAL AGENCIES AND BODIES,2102714747,
04.09.2017,CHILDREN'S SERVICES,CHILDREN OF ALL NATIONS LTD,"2,295.00",AGENCY FOSTERING,EXTERNAL AGENCIES AND BODIES,2102714774,
04.09.2017,CHILDREN'S SERVICES,CHILDREN OF ALL NATIONS LTD,"4,108.43",AGENCY FOSTERING,EXTERNAL AGENCIES AND BODIES,2102714758,
04.09.2017,CHILDREN'S SERVICES,CHILDREN OF ALL NATIONS LTD,"4,108.43",AGENCY FOSTERING,EXTERNAL AGENCIES AND BODIES,2102714771,
04.09.2017,CHILDREN'S SERVICES,CHILDREN OF COLOUR,"3,472.00",AGENCY FOSTERING,EXTERNAL AGENCIES AND BODIES,2102714725,
04.09.2017,CHILDREN'S SERVICES,CHILDREN OF COLOUR,"3,472.00",AGENCY FOSTERING,EXTERNAL AGENCIES AND BODIES,2102714763,
04.09.2017,CHILDREN'S SERVICES,CHILDREN OF COLOUR,"3,558.80",AGENCY FOSTERING,EXTERNAL AGENCIES AND BODIES,2102714777,
04.09.2017,CHILDREN'S SERVICES,CHILDREN OF COLOUR,"3,558.80",AGENCY FOSTERING,EXTERNAL AGENCIES AND BODIES,2102714778,
04.09.2017,CHILDREN'S SERVICES,CHILDREN OF COLOUR,"4,251.43",AGENCY FOSTERING,EXTERNAL AGENCIES AND BODIES,2102714726,
04.09.2017,CHILDREN'S SERVICES,COMPASS FOSTERING LONDON LTD,"3,272.67",AGENCY FOSTERING,EXTERNAL AGENCIES AND BODIES,2102714770,
04.09.2017,CHILDREN'S SERVICES,COMPASS FOSTERING SOUTH LTD,"3,077.99",AGENCY FOSTERING,EXTERNAL AGENCIES AND BODIES,2102714757,
04.09.2017,CHILDREN'S SERVICES,DIAGRAMA FOUNDATION CHILDREN SERVICES,"3,835.14",AGENCY FOSTERING,EXTERNAL AGENCIES AND BODIES,2102714734,
04.09.2017,CHILDREN'S SERVICES,DIVERSE CARE (UK) LTD,"4,490.04",AGENCY FOSTERING,EXTERNAL AGENCIES AND BODIES,2102714733,
04.09.2017,CHILDREN'S SERVICES,HELP ME GROW FOSTERING SERVICES LTD,"2,869.67",AGENCY FOSTERING,EXTERNAL AGENCIES AND BODIES,2102714748,
04.09.2017,CHILDREN'S SERVICES,HELP ME GROW FOSTERING SERVICES LTD,"2,869.67",AGENCY FOSTERING,EXTERNAL AGENCIES AND BODIES,2102714775,
04.09.2017,CHILDREN'S SERVICES,HELP ME GROW FOSTERING SERVICES LTD,"2,879.65",AGENCY FOSTERING,EXTERNAL AGENCIES AND BODIES,2102714765,
04.09.2017,CHILDREN'S SERVICES,HELP ME GROW FOSTERING SERVICES LTD,"2,879.80",AGENCY FOSTERING,EXTERNAL AGENCIES AND BODIES,2102714756,
04.09.2017,CHILDREN'S SERVICES,KENT HOMEFINDING & FOSTERING LTD,"9,123.30",AGENCY FOSTERING,EXTERNAL AGENCIES AND BODIES,2102714755,
04.09.2017,CHILDREN'S SERVICES,MOMENTS FOSTERING LTD,419.40,AGENCY FOSTERING,EXTERNAL AGENCIES AND BODIES,2102714731,
04.09.2017,CHILDREN'S SERVICES,MOMENTS FOSTERING LTD,419.40,AGENCY FOSTERING,EXTERNAL AGENCIES AND BODIES,2102714732,
04.09.2017,CHILDREN'S SERVICES,MOMENTS FOSTERING LTD,"5,535.67",AGENCY FOSTERING,EXTERNAL AGENCIES AND BODIES,2102714730,
04.09.2017,CHILDREN'S SERVICES,MOSAIC FOSTER CARE LTD,"6,642.68",AGENCY FOSTERING,EXTERNAL AGENCIES AND BODIES,2102714760,
04.09.2017,CHILDREN'S SERVICES,MOSAIC FOSTER CARE LTD,"6,975.00",AGENCY FOSTERING,EXTERNAL AGENCIES AND BODIES,2102714735,
04.09.2017,CHILDREN'S SERVICES,PARENT AND CHILD FOSTERING ASSESSMENTS,"5,314.29",AGENCY FOSTERING,EXTERNAL AGENCIES AND BODIES,2102714720,
04.09.2017,CHILDREN'S SERVICES,RAINBOW FOSTERING SERVICES LTD,"3,377.76",AGENCY FOSTERING,EXTERNAL AGENCIES AND BODIES,2102714736,
04.09.2017,CHILDREN'S SERVICES,SANKOFA CARE LTD,"3,593.21",AGENCY FOSTERING,EXTERNAL AGENCIES AND BODIES,2102714743,
04.09.2017,CHILDREN'S SERVICES,SANKOFA CARE LTD,"3,593.21",AGENCY FOSTERING,EXTERNAL AGENCIES AND BODIES,2102714773,
04.09.2017,CHILDREN'S SERVICES,SANKOFA CARE LTD,"3,929.87",AGENCY FOSTERING,EXTERNAL AGENCIES AND BODIES,2102714766,
04.09.2017,CHILDREN'S SERVICES,SANKOFA CARE LTD,"4,538.71",AGENCY FOSTERING,EXTERNAL AGENCIES AND BODIES,2102714741,
04.09.2017,CHILDREN'S SERVICES,SELECT FOSTERCARE SERVICES LTD,"3,653.66",AGENCY FOSTERING,EXTERNAL AGENCIES AND BODIES,2102714772,
04.09.2017,CHILDREN'S SERVICES,SELECT FOSTERCARE SERVICES LTD,"3,720.00",AGENCY FOSTERING,EXTERNAL AGENCIES AND BODIES,2102714728,
04.09.2017,CHILDREN'S SERVICES,SELECT FOSTERCARE SERVICES LTD,"3,720.00",AGENCY FOSTERING,EXTERNAL AGENCIES AND BODIES,2102714745,
04.09.2017,CHILDREN'S SERVICES,SWIIS FOSTER CARE LTD,697.97,AGENCY FOSTERING,EXTERNAL AGENCIES AND BODIES,2102714752,
04.09.2017,CHILDREN'S SERVICES,THE XCEL 2000 PARTNERSHIP LTD,"3,356.86",AGENCY FOSTERING,EXTERNAL AGENCIES AND BODIES,2102714740,
04.09.2017,CHILDREN'S SERVICES,TIME FOR CHILDREN LTD,"3,100.00",AGENCY FOSTERING,EXTERNAL AGENCIES AND BODIES,2102714764,
04.09.2017,CHILDREN'S SERVICES,YOUNG PEOPLE AT HEART LTD,"3,100.00",AGENCY FOSTERING,EXTERNAL AGENCIES AND BODIES,2102714742,
04.09.2017,CHILDREN'S SERVICES,REDACTED PERSONAL DATA,259.28,DISABILITY & HIV,PAYMENTS TO CARERS,2102714657,
04.09.2017,CHILDREN'S SERVICES,REDACTED PERSONAL DATA,500.00,DISABILITY & HIV,PAYMENTS TO CARERS,2102714665,
04.09.2017,CHILDREN'S SERVICES,REDACTED PERSONAL DATA,400.00,DISABILITY & HIV,ADDITIONAL PAYMENTS TO AGENCIES/CARERS,2102714650,
04.09.2017,CHILDREN'S SERVICES,REDACTED PERSONAL DATA,665.34,DISABILITY & HIV,PAYMENTS TO CARERS,2102714654,
04.09.2017,CHILDREN'S SERVICES,REDACTED PERSONAL DATA,400.00,DISABILITY & HIV,ADDITIONAL PAYMENTS TO AGENCIES/CARERS,2102714659,
04.09.2017,CHILDREN'S SERVICES,REDACTED PERSONAL DATA,300.00,DISABILITY & HIV,ADDITIONAL PAYMENTS TO AGENCIES/CARERS,2102714666,
04.09.2017,CHILDREN'S SERVICES,REDACTED PERSONAL DATA,500.00,DISABILITY & HIV,PAYMENTS TO CARERS,2102714649,
04.09.2017,CHILDREN'S SERVICES,REDACTED PERSONAL DATA,300.00,DISABILITY & HIV,ADDITIONAL PAYMENTS TO AGENCIES/CARERS,2102714652,
04.09.2017,CHILDREN'S SERVICES,REDACTED PERSONAL DATA,400.00,DISABILITY & HIV,ADDITIONAL PAYMENTS TO AGENCIES/CARERS,2102714668,
04.09.2017,CHILDREN'S SERVICES,REDACTED PERSONAL DATA,400.00,DISABILITY & HIV,ADDITIONAL PAYMENTS TO AGENCIES/CARERS,2102714677,
04.09.2017,CHILDREN'S SERVICES,REDACTED PERSONAL DATA,807.92,DISABILITY & HIV,PAYMENTS TO CARERS,2102714651,
04.09.2017,CHILDREN'S SERVICES,REDACTED PERSONAL DATA,893.80,DISABILITY & HIV,PAYMENTS TO CARERS,2102714673,
04.09.2017,CHILDREN'S SERVICES,REDACTED PERSONAL DATA,400.00,DISABILITY & HIV,ADDITIONAL PAYMENTS TO AGENCIES/CARERS,2102714648,
04.09.2017,CHILDREN'S SERVICES,REDACTED PERSONAL DATA,300.00,DISABILITY & HIV,ADDITIONAL PAYMENTS TO AGENCIES/CARERS,2102714660,
04.09.2017,CHILDREN'S SERVICES,REDACTED PERSONAL DATA,627.14,DISABILITY & HIV,ADDITIONAL PAYMENTS TO AGENCIES/CARERS,2102714681,
04.09.2017,CHILDREN'S SERVICES,REDACTED PERSONAL DATA,500.00,DISABILITY & HIV,PAYMENTS TO CARERS,2102714664,
04.09.2017,CHILDREN'S SERVICES,REDACTED PERSONAL DATA,382.30,FRIENDS & FAMILY FOSTERING,PAYMENTS TO CARERS,2102714679,
04.09.2017,CHILDREN'S SERVICES,REDACTED PERSONAL DATA,"2,931.90",FRIENDS & FAMILY FOSTERING,PAYMENTS TO CARERS,2102714678,
04.09.2017,CHILDREN'S SERVICES,REDACTED PERSONAL DATA,400.00,FURTHER EDUCATION SUPPORT,OTHER PAYMENTS FOR CLIENTS,2102714684,
04.09.2017,CHILDREN'S SERVICES,BRUNSWICK PARK PRIMARY SCHOOL,"3,000.00",INTERVENTION FUND,MISCELLANEOUS RECHARGES,2102714563,
04.09.2017,CHILDREN'S SERVICES,CAMELOT PRIMARY SCHOOL,"7,000.00",INTERVENTION FUND,MISCELLANEOUS RECHARGES,2102714564,
04.09.2017,CHILDREN'S SERVICES,CHARLOTTE  SHARMAN PRIMARY SCHOOL,"5,000.00",INTERVENTION FUND,MISCELLANEOUS RECHARGES,2102714565,
04.09.2017,CHILDREN'S SERVICES,DULWICH WOOD PRIMARY SCHOOL,"3,000.00",INTERVENTION FUND,MISCELLANEOUS RECHARGES,2102714566,
04.09.2017,CHILDREN'S SERVICES,HOLLYDALE PRIMARY SCHOOL,"5,000.00",INTERVENTION FUND,MISCELLANEOUS RECHARGES,2102714567,
04.09.2017,CHILDREN'S SERVICES,ROBERT BROWNING PRIMARY SCHOOL,"5,000.00",INTERVENTION FUND,MISCELLANEOUS RECHARGES,2102714568,
04.09.2017,CHILDREN'S SERVICES,ST FRANCESCA CABRINI PRIMARY SCHOOL,"5,000.00",INTERVENTION FUND,MISCELLANEOUS RECHARGES,2102714569,
04.09.2017,CHILDREN'S SERVICES,ST FRANCIS'S RC PRIMARY SCHOOL,"3,000.00",INTERVENTION FUND,MISCELLANEOUS RECHARGES,2102714570,
04.09.2017,CHILDREN'S SERVICES,ST GEORGES CE SCHOOL,"10,000.00",INTERVENTION FUND,MISCELLANEOUS RECHARGES,2102714573,
04.09.2017,CHILDREN'S SERVICES,ST GEORGES RC SCHOOL,"7,000.00",INTERVENTION FUND,MISCELLANEOUS RECHARGES,2102714571,
04.09.2017,CHILDREN'S SERVICES,ST GEORGES RC SCHOOL,"15,000.00",INTERVENTION FUND,MISCELLANEOUS RECHARGES,2102714572,
04.09.2017,CHILDREN'S SERVICES,ST JOSEPHS CATHOLIC INFANTS SCHOOL,"5,000.00",INTERVENTION FUND,MISCELLANEOUS RECHARGES,2102714574,
04.09.2017,CHILDREN'S SERVICES,ST JOSEPHS CATHOLIC SCHOOL,"3,000.00",INTERVENTION FUND,MISCELLANEOUS RECHARGES,2102714575,
04.09.2017,CHILDREN'S SERVICES,ST JUDES CHURCH OF ENGLAND PRIMARY,"5,000.00",INTERVENTION FUND,MISCELLANEOUS RECHARGES,2102714576,
04.09.2017,CHILDREN'S SERVICES,ST MARY MAGDALENE CE SCHOOL,"3,000.00",INTERVENTION FUND,MISCELLANEOUS RECHARGES,2102714577,
04.09.2017,CHILDREN'S SERVICES,ST PAULS CE SCHOOL,"7,000.00",INTERVENTION FUND,MISCELLANEOUS RECHARGES,2102714578,
04.09.2017,CHILDREN'S SERVICES,TOWNSEND PRIMARY SCHOOL,"5,000.00",INTERVENTION FUND,MISCELLANEOUS RECHARGES,2102714579,
04.09.2017,CHILDREN'S SERVICES,VICTORY SCHOOL,"5,000.00",INTERVENTION FUND,MISCELLANEOUS RECHARGES,2102714580,
04.09.2017,CHILDREN'S SERVICES,ALBION PRIMARY SCHOOL,300.00,PRIMARY ACHIEVEMENT,MISCELLANEOUS RECHARGES,2102714588,
04.09.2017,CHILDREN'S SERVICES,ALBION PRIMARY SCHOOL,700.00,PRIMARY ACHIEVEMENT,MISCELLANEOUS RECHARGES,2102714584,
04.09.2017,CHILDREN'S SERVICES,BESSEMER GRANGE PRIMARY SCHOOL,600.00,PRIMARY ACHIEVEMENT,MISCELLANEOUS RECHARGES,2102714583,
04.09.2017,CHILDREN'S SERVICES,FRIARS PRIMARY SCHOOL,700.00,PRIMARY ACHIEVEMENT,MISCELLANEOUS RECHARGES,2102714581,
04.09.2017,CHILDREN'S SERVICES,HOLLYDALE PRIMARY SCHOOL,500.00,PRIMARY ACHIEVEMENT,MISCELLANEOUS RECHARGES,2102714590,
04.09.2017,CHILDREN'S SERVICES,KEYWORTH PRIMARY SCHOOL,"1,200.00",PRIMARY ACHIEVEMENT,MISCELLANEOUS RECHARGES,2102714593,
04.09.2017,CHILDREN'S SERVICES,MICHAEL FARADAY PRIMARY SCHOOL,400.00,PRIMARY ACHIEVEMENT,MISCELLANEOUS RECHARGES,2102714589,
04.09.2017,CHILDREN'S SERVICES,ROTHERHITHE PRIMARY SCHOOL,300.00,PRIMARY ACHIEVEMENT,MISCELLANEOUS RECHARGES,2102714587,
04.09.2017,CHILDREN'S SERVICES,RYE OAK PRIMARY SCHOOL,900.00,PRIMARY ACHIEVEMENT,MISCELLANEOUS RECHARGES,2102714594,
04.09.2017,CHILDREN'S SERVICES,SNOWSFIELDS PRIMARY SCHOOL,400.00,PRIMARY ACHIEVEMENT,MISCELLANEOUS RECHARGES,2102714586,
04.09.2017,CHILDREN'S SERVICES,SNOWSFIELDS PRIMARY SCHOOL,600.00,PRIMARY ACHIEVEMENT,MISCELLANEOUS RECHARGES,2102714585,
04.09.2017,CHILDREN'S SERVICES,ST JOHNS RC PRIMARY SCHOOL,600.00,PRIMARY ACHIEVEMENT,MISCELLANEOUS RECHARGES,2102714582,
04.09.2017,CHILDREN'S SERVICES,ST JOSEPHS CATHOLIC SCHOOL,900.00,PRIMARY ACHIEVEMENT,MISCELLANEOUS RECHARGES,2102714595,
04.09.2017,CHILDREN'S SERVICES,ST PETERS CE SCHOOL,"1,100.00",PRIMARY ACHIEVEMENT,MISCELLANEOUS RECHARGES,2102714592,
04.09.2017,CHILDREN'S SERVICES,ADVISING HEALTH AND SOCIAL CARE,"23,139.33",RESIDENTIAL,RESIDENTIAL CARE,2102714697,
04.09.2017,CHILDREN'S SERVICES,AFTERCARE (NW) LTD,"14,614.00",RESIDENTIAL,RESIDENTIAL CARE,2102714687,
04.09.2017,CHILDREN'S SERVICES,ALLIANCE CARE & EDUCATION LTD,"16,165.71",RESIDENTIAL,RESIDENTIAL CARE,2102714708,
04.09.2017,CHILDREN'S SERVICES,CAMBIAN CHILDCARE LTD,"14,835.67",RESIDENTIAL,RESIDENTIAL CARE,2102714704,
04.09.2017,CHILDREN'S SERVICES,CAMBIAN CHILDCARE LTD,"28,564.33",RESIDENTIAL,RESIDENTIAL CARE,2102714699,
04.09.2017,CHILDREN'S SERVICES,CARE FOCUS LTD,"16,607.14",RESIDENTIAL,RESIDENTIAL CARE,2102714689,
04.09.2017,CHILDREN'S SERVICES,CASTLE HOMES LIMITED,"15,625.11",RESIDENTIAL,RESIDENTIAL CARE,2102714706,
04.09.2017,CHILDREN'S SERVICES,CASTLE HOMES LIMITED,"16,889.51",RESIDENTIAL,RESIDENTIAL CARE,2102714712,
04.09.2017,CHILDREN'S SERVICES,CASTLE HOMES LIMITED,"17,614.51",RESIDENTIAL,RESIDENTIAL CARE,2102714693,
04.09.2017,CHILDREN'S SERVICES,CHILDHOOD FIRST,"19,042.86",RESIDENTIAL,RESIDENTIAL CARE,2102714715,
04.09.2017,CHILDREN'S SERVICES,CHILDHOOD FIRST,"19,716.00",RESIDENTIAL,RESIDENTIAL CARE,2102714710,
04.09.2017,CHILDREN'S SERVICES,CHILDHOOD FIRST,"20,158.86",RESIDENTIAL,RESIDENTIAL CARE,2102714705,
04.09.2017,CHILDREN'S SERVICES,DIRECT CARE LIMITED,"15,057.01",RESIDENTIAL,RESIDENTIAL CARE,2102714688,
04.09.2017,CHILDREN'S SERVICES,ESLAND SOUTH LTD,"29,892.86",RESIDENTIAL,RESIDENTIAL CARE,2102714711,
04.09.2017,CHILDREN'S SERVICES,FOOTSTEPS CARE LTD,"22,283.70",RESIDENTIAL,RESIDENTIAL CARE,2102714719,
04.09.2017,CHILDREN'S SERVICES,LIONCARE LIMITED,"16,029.21",RESIDENTIAL,RESIDENTIAL CARE,2102714707,
04.09.2017,CHILDREN'S SERVICES,MEADOWS CARE LTD,"17,271.43",RESIDENTIAL,RESIDENTIAL CARE,2102714703,
04.09.2017,CHILDREN'S SERVICES,NEW HORIZONS CHILD CARE LTD,"17,271.34",RESIDENTIAL,RESIDENTIAL CARE,2102714701,
04.09.2017,CHILDREN'S SERVICES,NEW HORIZONS CHILD CARE LTD,"19,485.67",RESIDENTIAL,RESIDENTIAL CARE,2102714714,
04.09.2017,CHILDREN'S SERVICES,NEW HORIZONS CHILD CARE LTD,"19,928.66",RESIDENTIAL,RESIDENTIAL CARE,2102714685,
04.09.2017,CHILDREN'S SERVICES,NEW HORIZONS CHILD CARE LTD,"19,928.66",RESIDENTIAL,RESIDENTIAL CARE,2102714718,
04.09.2017,CHILDREN'S SERVICES,NORTH LAKES CHILDRENS SERVICES,"8,917.77",RESIDENTIAL,RESIDENTIAL CARE,2102714702,
04.09.2017,CHILDREN'S SERVICES,NORTH LAKES CHILDRENS SERVICES,"9,767.17",RESIDENTIAL,RESIDENTIAL CARE,2102714716,
04.09.2017,CHILDREN'S SERVICES,PLUS ONE LTD,"15,418.51",RESIDENTIAL,RESIDENTIAL CARE,2102714690,
04.09.2017,CHILDREN'S SERVICES,PLUS ONE LTD,"16,381.28",RESIDENTIAL,RESIDENTIAL CARE,2102714700,
04.09.2017,CHILDREN'S SERVICES,PRESTIGE ADOLESCENT CARE & EDUCATION LTD,"15,278.66",RESIDENTIAL,RESIDENTIAL CARE,2102714695,
04.09.2017,CHILDREN'S SERVICES,REAMCARE LTD,"18,157.13",RESIDENTIAL,RESIDENTIAL CARE,2102714686,
04.09.2017,CHILDREN'S SERVICES,SPORTFIT SHORT BREAK CARE LTD,"10,245.50",RESIDENTIAL,RESIDENTIAL CARE,2102714709,
04.09.2017,CHILDREN'S SERVICES,THE AMICUS COMMUNITY (ARUNDEL) LTD,"6,635.70",RESIDENTIAL,RESIDENTIAL CARE,2102714713,
04.09.2017,CHILDREN'S SERVICES,THE AMICUS COMMUNITY (ARUNDEL) LTD,"18,821.34",RESIDENTIAL,RESIDENTIAL CARE,2102714692,
04.09.2017,CHILDREN'S SERVICES,THE DRIVE CARE HOMES LTD,"12,198.76",RESIDENTIAL,RESIDENTIAL CARE,2102714691,
04.09.2017,CHILDREN'S SERVICES,THE DRIVE CARE HOMES LTD,"13,176.24",RESIDENTIAL,RESIDENTIAL CARE,2102714696,
04.09.2017,CHILDREN'S SERVICES,THE DRIVE CARE HOMES LTD,"13,176.24",RESIDENTIAL,RESIDENTIAL CARE,2102714698,
04.09.2017,CHILDREN'S SERVICES,THE DRIVE CARE HOMES LTD,"13,176.24",RESIDENTIAL,RESIDENTIAL CARE,2102714717,
04.09.2017,CHILDREN'S SERVICES,ASSOCIATED CARE SERVICES LTD,"1,417.14",S24 CLA,EXTERNAL AGENCIES AND BODIES,2102714800,
04.09.2017,CHILDREN'S SERVICES,BRIDGING THE GAP,"1,925.72",S24 CLA,EXTERNAL AGENCIES AND BODIES,2102714802,
04.09.2017,CHILDREN'S SERVICES,FRESH START SUPPORT LTD,"2,258.57",S24 CLA,EXTERNAL AGENCIES AND BODIES,2102714805,
04.09.2017,CHILDREN'S SERVICES,CAMERON SUPPORT SERVICES LTD,"4,368.83",SEMI INDEPENDENT,EXTERNAL AGENCIES AND BODIES,2102714807,
04.09.2017,CHILDREN'S SERVICES,CAMERON SUPPORT SERVICES LTD,"4,368.83",SEMI INDEPENDENT,EXTERNAL AGENCIES AND BODIES,2102714812,
04.09.2017,CHILDREN'S SERVICES,FRESH START SUPPORT LTD,"14,171.43",SEMI INDEPENDENT,EXTERNAL AGENCIES AND BODIES,2102714811,
04.09.2017,CHILDREN'S SERVICES,LIBERTY CARE HOMES LTD,"4,831.60",SEMI INDEPENDENT,RESIDENTIAL CARE,2102714808,
04.09.2017,CHILDREN'S SERVICES,SILVER BIRCH CARE LTD,"16,810.86",SEMI INDEPENDENT,EXTERNAL AGENCIES AND BODIES,2102714801,
04.09.2017,CHILDREN'S SERVICES,SILVER BIRCH CARE LTD,265.71,SEMI INDEPENDENT,OTHER PAYMENTS FOR CLIENTS,2102714797,
04.09.2017,CHILDREN'S SERVICES,FLEET TUTORS,"2,550.00",SEN HOME TUITION,STATEMENTED FEES,5902266599,
04.09.2017,CHILDREN'S SERVICES,CONTACT-A-FAMILY,"75,000.00",SHORT BREAKS,EXTERNAL AGENCIES AND BODIES,5902266538,
04.09.2017,CHILDREN'S SERVICES,CONTACT PROFESSIONALS,304.00,SPECIALIST CARE,SECTION 17 PAYMENTS TO AGENCIES/CARERS,2102714792,
04.09.2017,CHILDREN'S SERVICES,CONTACT PROFESSIONALS,456.00,SPECIALIST CARE,SECTION 17 PAYMENTS TO AGENCIES/CARERS,2102714795,
04.09.2017,CHILDREN'S SERVICES,CONTACT PROFESSIONALS,589.00,SPECIALIST CARE,SECTION 17 PAYMENTS TO AGENCIES/CARERS,2102714796,
04.09.2017,CHILDREN'S SERVICES,THORNBURY NURSING SERVICES,"7,275.97",SPECIALIST CARE,SECTION 17 PAYMENTS TO AGENCIES/CARERS,2102714783,
04.09.2017,CHILDREN'S SERVICES,4 FUTURES PHASE 2 LTD,628.80,SSF NSA FM/ICT SACRED HEART,BUILDING R&M,5902266612,
04.09.2017,CHILDREN'S SERVICES,AFFINITY FOSTERING SERVICES LTD,"1,749.33",STAYING PUT,EXTERNAL AGENCIES AND BODIES,2102714798,
04.09.2017,CHILDREN'S SERVICES,AFFINITY FOSTERING SERVICES LTD,"1,749.33",STAYING PUT,EXTERNAL AGENCIES AND BODIES,2102714799,
04.09.2017,CHILDREN'S SERVICES,BY THE BRIDGE LTD,"3,321.43",STAYING PUT,EXTERNAL AGENCIES AND BODIES,2102714806,
04.09.2017,CHILDREN'S SERVICES,COMPASS FOSTERING LONDON LTD,"1,848.84",STAYING PUT,EXTERNAL AGENCIES AND BODIES,2102714804,
04.09.2017,COMMISSIONING & CENTRAL,REFUGE,"31,090.25",SUPPORTING PEOPLE,EXTERNAL AGENCIES AND BODIES,5902266447,
04.09.2017,COMMUNITIES,RISBOL LTD,"1,050.00",NO RECOURSE TO PUBLIC FUNDS,ACCOMMODATION CHARGES,5902266590,
04.09.2017,COMMUNITIES,EQUINOX,"3,800.00",NRPF PHYSICAL DISABILITIES,NATIONAL ASSISTANCE,2102716471,
04.09.2017,CUSTOMER EXPERIENCE HGF,IC CONSULTANTS LTD,276.00,CORONER'S,PROFESSIONAL FEES,5902266579,
04.09.2017,CUSTOMER EXPERIENCE HGF,IC CONSULTANTS LTD,312.00,CORONER'S,PROFESSIONAL FEES,5902266569,
04.09.2017,CUSTOMER EXPERIENCE HGF,IC CONSULTANTS LTD,312.00,CORONER'S,PROFESSIONAL FEES,5902266578,
04.09.2017,CUSTOMER EXPERIENCE HGF,IC CONSULTANTS LTD,312.00,CORONER'S,PROFESSIONAL FEES,5902266581,
04.09.2017,CUSTOMER EXPERIENCE HGF,IC CONSULTANTS LTD,324.00,CORONER'S,PROFESSIONAL FEES,5902266562,
04.09.2017,CUSTOMER EXPERIENCE HGF,IC CONSULTANTS LTD,324.00,CORONER'S,PROFESSIONAL FEES,5902266564,
04.09.2017,CUSTOMER EXPERIENCE HGF,IC CONSULTANTS LTD,324.00,CORONER'S,PROFESSIONAL FEES,5902266583,
04.09.2017,CUSTOMER EXPERIENCE HGF,IC CONSULTANTS LTD,324.00,CORONER'S,PROFESSIONAL FEES,5902266586,
04.09.2017,CUSTOMER EXPERIENCE HGF,IC CONSULTANTS LTD,368.00,CORONER'S,PROFESSIONAL FEES,5902266577,
04.09.2017,CUSTOMER EXPERIENCE HGF,IC CONSULTANTS LTD,384.00,CORONER'S,PROFESSIONAL FEES,5902266566,
04.09.2017,CUSTOMER EXPERIENCE HGF,IC CONSULTANTS LTD,420.00,CORONER'S,PROFESSIONAL FEES,5902266584,
04.09.2017,CUSTOMER EXPERIENCE HGF,IC CONSULTANTS LTD,464.00,CORONER'S,PROFESSIONAL FEES,5902266585,
04.09.2017,CUSTOMER EXPERIENCE HGF,IC CONSULTANTS LTD,484.00,CORONER'S,PROFESSIONAL FEES,5902266563,
04.09.2017,CUSTOMER EXPERIENCE HGF,IC CONSULTANTS LTD,484.00,CORONER'S,PROFESSIONAL FEES,5902266568,
04.09.2017,CUSTOMER EXPERIENCE HGF,IC CONSULTANTS LTD,632.00,CORONER'S,PROFESSIONAL FEES,5902266572,
04.09.2017,CUSTOMER EXPERIENCE HGF,IC CONSULTANTS LTD,728.00,CORONER'S,PROFESSIONAL FEES,5902266571,
04.09.2017,CUSTOMER EXPERIENCE HGF,RENT CONNECT HOUSING LTD,"21,735.80",NIGHTLY TA (NSC),EXTERNAL AGENCIES AND BODIES,5902266559,
04.09.2017,CUSTOMER EXPERIENCE HGF,TAAKSVALE HOUSING LTD,"76,769.45",NIGHTLY TA (NSC),EXTERNAL AGENCIES AND BODIES,5902266565,
04.09.2017,CUSTOMER EXPERIENCE HGF,WEB-LABS LTD,700.00,PROJECTS,SOFTWARE,5902266490,
04.09.2017,CUSTOMER EXPERIENCE HGF,WEB-LABS LTD,"1,400.00",PROJECTS,SOFTWARE,5902266488,
04.09.2017,ENVIRONMENT AND LEISURE,APR SERVICES LTD,"2,250.00",CAPITAL PS (LEISURE),CONSTRUCTION FEES,5902266610,
04.09.2017,ENVIRONMENT AND LEISURE,BAYLIS LANDSCAPE CONTRACTORS LTD,"-1,020.00",CAPITAL PS (LEISURE),CONSTRUCTION MAIN CONTRACT -CERTIFICATED,5902266866,
04.09.2017,ENVIRONMENT AND LEISURE,BAYLIS LANDSCAPE CONTRACTORS LTD,"1,020.00",CAPITAL PS (LEISURE),CONSTRUCTION MAIN CONTRACT -CERTIFICATED,5902266710,
04.09.2017,ENVIRONMENT AND SOCIAL REGENERATION,N & C BUILDING MATERIALS,443.30,SUSPENSE ACCOUNT (COMPANY CODE 1000),CREDITORS -GR/IR CLEARING ACCOUNT,5902266526,
04.09.2017,ENVIRONMENT AND SOCIAL REGENERATION,N & C BUILDING MATERIALS,766.95,SUSPENSE ACCOUNT (COMPANY CODE 1000),CREDITORS -GR/IR CLEARING ACCOUNT,5902266546,
